{"text_format":"1","workbook":"xlsx","n_sheets":3,"sheets":["DATA","Información","REG"],"not_rendered":{"charts":0,"images":9,"macros":1,"external_links":0,"defined_names":2,"comments":0,"pivot_tables":0},"unopened":[],"bounds":{"document_bytes":16777216,"sheet_cells":100000,"rows_first":2000,"rows_last":500,"rows_between":2000,"halvings":0,"cell_chars":16384,"cell_head_chars":4096},"cells_cut":0,"cells_raw":0,"read":"whole","date_system":"1900"}

{"sheet":"DATA","index":0,"n_rows":5015,"n_cols":260,"rows_kept":2250,"cut":true,"hidden":false,"merged":[],"bounds":{"rows_first":1000,"rows_last":250,"rows_between":1000,"halvings":1}}
[null,null,null,null,null,null,null,null,null,null,null,null,null,null,null,null,null,null,null,null,null,null,null,null,null,null,null,null,null,null,null,null,null,null,null,null,null,null,null,null,null,null,null,null,null,null,null,null,null,null,null,null,null,null,null,null,null,null,null,null,null,null,null,null,null,null,null,null,null,null,null,null,null,null,null,null,null,null,null,null,null,null,null,null,null,null,null,null,null,null,null,null,null,null,null,null,null,null,null,null,null,null,null,null,null,null,null,null,null,null,null,null,null,null,null,null,null,null,null,null,null,null,null,null,null,null,null,null,null,null,null,null,null,null,null,null,null,null,null,null,null,null,null,null,null,null,null,null,null,null,null,null,null,null,null,null,null,null,null,null,null,null,null,null,null,null,null,null,null,null,null,null,null,null,null,null,null,null,null,null,null,null,null,null,null,null,null,null,null,null,null,null,null,null,null,null,null,null,null,null,null,null,null,null,null,null,null,null,null,null,null,null,null,null,null,null,null,null,null,null,null,null,null,null,null,null,null,null,null,null,null,null,null,null,null,null,null,null,null,null,null,null,null,null,null,null,null,null,null,null,null,null,null,null,null,null,null,"2021-12-31",{"$f":"TODAY()","v":"2021-05-24"},{"$f":"IF(IX1>IY1,0,1)","v":0}]
[]
[null,null,null,null,null,null,null,null,null,null,null,null,null,null,null,null,null,null,null,null,null,null,null,null,null,null,null,null,null,null,null,null,null,null,null,null,null,null,null,null,null,null,null,null,null,null,null,null,null,null,null,null,null,null,null,null,null,null,null,null,null,null,null,null,null,null,null,null,null,null,null,null,null,null,null,null,null,null,null,null,null,null,null,null,null,null,null,null,null,null,null,null,null,null,null,null,null,null,null,null,null,null,null,null,null,null,null,null,null,null,null,null,null,null,null,null,null,null,null,null,null,null,null,null,null,null,null,null,null,null,null,null,null,null,null,null,null,null,null,null,null,null,null,null,null,null,null,null,null,null,null,null,null,null,null,null,null,null,null,null,null,null,null,null,null,null,null,null,null,null,null,null,null,null,null,null,null,null,null,null,null,null,null,null,null,null,null,null,null,null,null,null,null,null,null,null,null,null,null,null,null,null,null,null,null,null,null,null,null,null,null,null,null,null,null,null,null,null,null,null,null,null,null,null,null,null,null,null,null,null,null,null,null,null,null,null,null,null,null,null,null,null,null,null,null,null,null,null,null,null,null,null,null,null,null,null,null,"Bernarda de Jesús Carmona Cuadros"]
[null,null,null,null,null,null,"Licencia de uso:","Bernarda de Jesús Carmona Cuadros"]
["NIT","DV","1er Apellido","2do Apellido","1er Nombre","Otros nombres","Razon social","ESTADO","AUD",null,null,null,null,"DV","DV-1","dv-2"]
[null,{"$f":"+P6","v":""},null,null,null,null,null,null,{"$f":"IF(H6=\"REGISTRO ACTIVO\",1,0)","v":0},null,null,null,null,{"$f":"MOD((VALUE(MID(TEXT(A6,\"000000000000000\"),15,1))*3+VALUE(MID(TEXT(A6,\"000000000000000\"),14,1))*7+VALUE(MID(TEXT(A6,\"000000000000000\"),13,1))*13+VALUE(MID(TEXT(A6,\"000000000000000\"),12,1))*17+VALUE(MID(TEXT(A6,\"000000000000000\"),11,1))*19+VALUE(MID(TEXT(A6,\"000000000000000\"),10,1))*23+VALUE(MID(TEXT(A6,\"000000000000000\"),9,1))*29+VALUE(MID(TEXT(A6,\"000000000000000\"),8,1))*37+VALUE(MID(TEXT(A6,\"000000000000000\"),7,1))*41+VALUE(MID(TEXT(A6,\"000000000000000\"),6,1))*43+VALUE(MID(TEXT(A6,\"000000000000000\"),5,1))*47+VALUE(MID(TEXT(A6,\"000000000000000\"),4,1))*53+VALUE(MID(TEXT(A6,\"000000000000000\"),3,1))*59+VALUE(MID(TEXT(A6,\"000000000000000\"),2,1))*67+VALUE(MID(TEXT(A6,\"000000000000000\"),1,1))*71),11)","v":0},{"$f":"IF(N6=0,0,IF(N6=1,1,11-N6))","v":0},{"$f":"IF(H6=\"REGISTRO ACTIVO\",O6,\"\")","v":""},null,null,null,null,null,{"$f":"IF(H6=\"\",0,1)","v":0},{"$f":"IF(AND(A6>0,H6=\"\",$V$5007>0),\"NO\",\"\")","v":""}]
[null,{"$f":"+P7","v":""},null,null,null,null,null,null,{"$f":"IF(H7=\"REGISTRO ACTIVO\",1,0)","v":0},null,null,null,null,0,{"$f":"IF(N7=0,0,IF(N7=1,1,11-N7))","v":0},"",null,null,null,null,null,{"$f":"IF(H7=\"\",0,1)","v":0},{"$f":"IF(AND(A7>0,H7=\"\",$V$5007>0),\"NO\",\"\")","v":""}]
[null,"",null,null,null,null,null,null,0,null,null,null,null,0,0,"",null,null,null,null,null,0,""]
[null,"",null,null,null,null,null,null,0,null,null,null,null,0,0,"",null,null,null,null,null,0,""]
[null,"",null,null,null,null,null,null,0,null,null,null,null,0,0,"",null,null,null,null,null,0,""]
[null,"",null,null,null,null,null,null,0,null,null,null,null,0,0,"",null,null,null,null,null,0,""]
[null,"",null,null,null,null,null,null,0,null,null,null,null,0,0,"",null,null,null,null,null,0,""]
[null,"",null,null,null,null,null,null,0,null,null,null,null,0,0,"",null,null,null,null,null,0,""]
[null,"",null,null,null,null,null,null,0,null,null,null,null,0,0,"",null,null,null,null,null,0,""]
[null,"",null,null,null,null,null,null,0,null,null,null,null,0,0,"",null,null,null,null,null,0,""]
[null,"",null,null,null,null,null,null,0,null,null,null,null,0,0,"",null,null,null,null,null,0,""]
[null,"",null,null,null,null,null,null,0,null,null,null,null,0,0,"",null,null,null,null,null,0,""]
[null,"",null,null,null,null,null,null,0,null,null,null,null,0,0,"",null,null,null,null,null,0,""]
[null,"",null,null,null,null,null,null,0,null,null,null,null,0,0,"",null,null,null,null,null,0,""]
[null,"",null,null,null,null,null,null,0,null,null,null,null,0,0,"",null,null,null,null,null,0,""]
[null,"",null,null,null,null,null,null,0,null,null,null,null,0,0,"",null,null,null,null,null,0,""]
[null,"",null,null,null,null,null,null,0,null,null,null,null,0,0,"",null,null,null,null,null,0,""]
[null,"",null,null,null,null,null,null,0,null,null,null,null,0,0,"",null,null,null,null,null,0,""]
[null,"",null,null,null,null,null,null,0,null,null,null,null,0,0,"",null,null,null,null,null,0,""]
[null,"",null,null,null,null,null,null,0,null,null,null,null,0,0,"",null,null,null,null,null,0,""]
[null,"",null,null,null,null,null,null,0,null,null,null,null,0,0,"",null,null,null,null,null,0,""]
[null,"",null,null,null,null,null,null,0,null,null,null,null,0,0,"",null,null,null,null,null,0,""]
[null,"",null,null,null,null,null,null,0,null,null,null,null,0,0,"",null,null,null,null,null,0,""]
[null,"",null,null,null,null,null,null,0,null,null,null,null,0,0,"",null,null,null,null,null,0,""]
[null,"",null,null,null,null,null,null,0,null,null,null,null,0,0,"",null,null,null,null,null,0,""]
[null,"",null,null,null,null,null,null,0,null,null,null,null,0,0,"",null,null,null,null,null,0,""]
[null,"",null,null,null,null,null,null,0,null,null,null,null,0,0,"",null,null,null,null,null,0,""]
[null,"",null,null,null,null,null,null,0,null,null,null,null,0,0,"",null,null,null,null,null,0,""]
[null,"",null,null,null,null,null,null,0,null,null,null,null,0,0,"",null,null,null,null,null,0,""]
[null,"",null,null,null,null,null,null,0,null,null,null,null,0,0,"",null,null,null,null,null,0,""]
[null,"",null,null,null,null,null,null,0,null,null,null,null,0,0,"",null,null,null,null,null,0,""]
[null,"",null,null,null,null,null,null,0,null,null,null,null,0,0,"",null,null,null,null,null,0,""]
[null,"",null,null,null,null,null,null,0,null,null,null,null,0,0,"",null,null,null,null,null,0,""]
[null,"",null,null,null,null,null,null,0,null,null,null,null,0,0,"",null,null,null,null,null,0,""]
[null,"",null,null,null,null,null,null,0,null,null,null,null,0,0,"",null,null,null,null,null,0,""]
[null,"",null,null,null,null,null,null,0,null,null,null,null,0,0,"",null,null,null,null,null,0,""]
[null,"",null,null,null,null,null,null,0,null,null,null,null,0,0,"",null,null,null,null,null,0,""]
[null,"",null,null,null,null,null,null,0,null,null,null,null,0,0,"",null,null,null,null,null,0,""]
[null,"",null,null,null,null,null,null,0,null,null,null,null,0,0,"",null,null,null,null,null,0,""]
[null,"",null,null,null,null,null,null,0,null,null,null,null,0,0,"",null,null,null,null,null,0,""]
[null,"",null,null,null,null,null,null,0,null,null,null,null,0,0,"",null,null,null,null,null,0,""]
[null,"",null,null,null,null,null,null,0,null,null,null,null,0,0,"",null,null,null,null,null,0,""]
[null,"",null,null,null,null,null,null,0,null,null,null,null,0,0,"",null,null,null,null,null,0,""]
[null,"",null,null,null,null,null,null,0,null,null,null,null,0,0,"",null,null,null,null,null,0,""]
[null,"",null,null,null,null,null,null,0,null,null,null,null,0,0,"",null,null,null,null,null,0,""]
[null,"",null,null,null,null,null,null,0,null,null,null,null,0,0,"",null,null,null,null,null,0,""]
[null,"",null,null,null,null,null,null,0,null,null,null,null,0,0,"",null,null,null,null,null,0,""]
[null,"",null,null,null,null,null,null,0,null,null,null,null,0,0,"",null,null,null,null,null,0,""]
[null,"",null,null,null,null,null,null,0,null,null,null,null,0,0,"",null,null,null,null,null,0,""]
[null,"",null,null,null,null,null,null,0,null,null,null,null,0,0,"",null,null,null,null,null,0,""]
[null,"",null,null,null,null,null,null,0,null,null,null,null,0,0,"",null,null,null,null,null,0,""]
[null,"",null,null,null,null,null,null,0,null,null,null,null,0,0,"",null,null,null,null,null,0,""]
[null,"",null,null,null,null,null,null,0,null,null,null,null,0,0,"",null,null,null,null,null,0,""]
[null,"",null,null,null,null,null,null,0,null,null,null,null,0,0,"",null,null,null,null,null,0,""]
[null,"",null,null,null,null,null,null,0,null,null,null,null,0,0,"",null,null,null,null,null,0,""]
[null,"",null,null,null,null,null,null,0,null,null,null,null,0,0,"",null,null,null,null,null,0,""]
[null,"",null,null,null,null,null,null,0,null,null,null,null,0,0,"",null,null,null,null,null,0,""]
[null,"",null,null,null,null,null,null,0,null,null,null,null,0,0,"",null,null,null,null,null,0,""]
[null,"",null,null,null,null,null,null,0,null,null,null,null,0,0,"",null,null,null,null,null,0,""]
[null,"",null,null,null,null,null,null,0,null,null,null,null,0,0,"",null,null,null,null,null,0,""]
[null,"",null,null,null,null,null,null,0,null,null,null,null,0,0,"",null,null,null,null,null,0,""]
[null,"",null,null,null,null,null,null,0,null,null,null,null,0,0,"",null,null,null,null,null,0,""]
[null,"",null,null,null,null,null,null,0,null,null,null,null,0,0,"",null,null,null,null,null,0,""]
[null,"",null,null,null,null,null,null,0,null,null,null,null,0,0,"",null,null,null,null,null,0,""]
[null,"",null,null,null,null,null,null,0,null,null,null,null,{"$f":"MOD((VALUE(MID(TEXT(A70,\"000000000000000\"),15,1))*3+VALUE(MID(TEXT(A70,\"000000000000000\"),14,1))*7+VALUE(MID(TEXT(A70,\"000000000000000\"),13,1))*13+VALUE(MID(TEXT(A70,\"000000000000000\"),12,1))*17+VALUE(MID(TEXT(A70,\"000000000000000\"),11,1))*19+VALUE(MID(TEXT(A70,\"000000000000000\"),10,1))*23+VALUE(MID(TEXT(A70,\"000000000000000\"),9,1))*29+VALUE(MID(TEXT(A70,\"000000000000000\"),8,1))*37+VALUE(MID(TEXT(A70,\"000000000000000\"),7,1))*41+VALUE(MID(TEXT(A70,\"000000000000000\"),6,1))*43+VALUE(MID(TEXT(A70,\"000000000000000\"),5,1))*47+VALUE(MID(TEXT(A70,\"000000000000000\"),4,1))*53+VALUE(MID(TEXT(A70,\"000000000000000\"),3,1))*59+VALUE(MID(TEXT(A70,\"000000000000000\"),2,1))*67+VALUE(MID(TEXT(A70,\"000000000000000\"),1,1))*71),11)","v":0},0,{"$f":"IF(H70=\"REGISTRO ACTIVO\",O70,\"\")","v":""},null,null,null,null,null,0,""]
[null,{"$f":"+P71","v":""},null,null,null,null,null,null,{"$f":"IF(H71=\"REGISTRO ACTIVO\",1,0)","v":0},null,null,null,null,0,{"$f":"IF(N71=0,0,IF(N71=1,1,11-N71))","v":0},"",null,null,null,null,null,{"$f":"IF(H71=\"\",0,1)","v":0},{"$f":"IF(AND(A71>0,H71=\"\",$V$5007>0),\"NO\",\"\")","v":""}]
[null,"",null,null,null,null,null,null,0,null,null,null,null,0,0,"",null,null,null,null,null,0,""]
[null,"",null,null,null,null,null,null,0,null,null,null,null,0,0,"",null,null,null,null,null,0,""]
[null,"",null,null,null,null,null,null,0,null,null,null,null,0,0,"",null,null,null,null,null,0,""]
[null,"",null,null,null,null,null,null,0,null,null,null,null,0,0,"",null,null,null,null,null,0,""]
[null,"",null,null,null,null,null,null,0,null,null,null,null,0,0,"",null,null,null,null,null,0,""]
[null,"",null,null,null,null,null,null,0,null,null,null,null,0,0,"",null,null,null,null,null,0,""]
[null,"",null,null,null,null,null,null,0,null,null,null,null,0,0,"",null,null,null,null,null,0,""]
[null,"",null,null,null,null,null,null,0,null,null,null,null,0,0,"",null,null,null,null,null,0,""]
[null,"",null,null,null,null,null,null,0,null,null,null,null,0,0,"",null,null,null,null,null,0,""]
[null,"",null,null,null,null,null,null,0,null,null,null,null,0,0,"",null,null,null,null,null,0,""]
[null,"",null,null,null,null,null,null,0,null,null,null,null,0,0,"",null,null,null,null,null,0,""]
[null,"",null,null,null,null,null,null,0,null,null,null,null,0,0,"",null,null,null,null,null,0,""]
[null,"",null,null,null,null,null,null,0,null,null,null,null,0,0,"",null,null,null,null,null,0,""]
[null,"",null,null,null,null,null,null,0,null,null,null,null,0,0,"",null,null,null,null,null,0,""]
[null,"",null,null,null,null,null,null,0,null,null,null,null,0,0,"",null,null,null,null,null,0,""]
[null,"",null,null,null,null,null,null,0,null,null,null,null,0,0,"",null,null,null,null,null,0,""]
[null,"",null,null,null,null,null,null,0,null,null,null,null,0,0,"",null,null,null,null,null,0,""]
[null,"",null,null,null,null,null,null,0,null,null,null,null,0,0,"",null,null,null,null,null,0,""]
[null,"",null,null,null,null,null,null,0,null,null,null,null,0,0,"",null,null,null,null,null,0,""]
[null,"",null,null,null,null,null,null,0,null,null,null,null,0,0,"",null,null,null,null,null,0,""]
[null,"",null,null,null,null,null,null,0,null,null,null,null,0,0,"",null,null,null,null,null,0,""]
[null,"",null,null,null,null,null,null,0,null,null,null,null,0,0,"",null,null,null,null,null,0,""]
[null,"",null,null,null,null,null,null,0,null,null,null,null,0,0,"",null,null,null,null,null,0,""]
[null,"",null,null,null,null,null,null,0,null,null,null,null,0,0,"",null,null,null,null,null,0,""]
[null,"",null,null,null,null,null,null,0,null,null,null,null,0,0,"",null,null,null,null,null,0,""]
[null,"",null,null,null,null,null,null,0,null,null,null,null,0,0,"",null,null,null,null,null,0,""]
[null,"",null,null,null,null,null,null,0,null,null,null,null,0,0,"",null,null,null,null,null,0,""]
[null,"",null,null,null,null,null,null,0,null,null,null,null,0,0,"",null,null,null,null,null,0,""]
[null,"",null,null,null,null,null,null,0,null,null,null,null,0,0,"",null,null,null,null,null,0,""]
[null,"",null,null,null,null,null,null,0,null,null,null,null,0,0,"",null,null,null,null,null,0,""]
[null,"",null,null,null,null,null,null,0,null,null,null,null,0,0,"",null,null,null,null,null,0,""]
[null,"",null,null,null,null,null,null,0,null,null,null,null,0,0,"",null,null,null,null,null,0,""]
[null,"",null,null,null,null,null,null,0,null,null,null,null,0,0,"",null,null,null,null,null,0,""]
[null,"",null,null,null,null,null,null,0,null,null,null,null,0,0,"",null,null,null,null,null,0,""]
[null,"",null,null,null,null,null,null,0,null,null,null,null,0,0,"",null,null,null,null,null,0,""]
[null,"",null,null,null,null,null,null,0,null,null,null,null,0,0,"",null,null,null,null,null,0,""]
[null,"",null,null,null,null,null,null,0,null,null,null,null,0,0,"",null,null,null,null,null,0,""]
[null,"",null,null,null,null,null,null,0,null,null,null,null,0,0,"",null,null,null,null,null,0,""]
[null,"",null,null,null,null,null,null,0,null,null,null,null,0,0,"",null,null,null,null,null,0,""]
[null,"",null,null,null,null,null,null,0,null,null,null,null,0,0,"",null,null,null,null,null,0,""]
[null,"",null,null,null,null,null,null,0,null,null,null,null,0,0,"",null,null,null,null,null,0,""]
[null,"",null,null,null,null,null,null,0,null,null,null,null,0,0,"",null,null,null,null,null,0,""]
[null,"",null,null,null,null,null,null,0,null,null,null,null,0,0,"",null,null,null,null,null,0,""]
[null,"",null,null,null,null,null,null,0,null,null,null,null,0,0,"",null,null,null,null,null,0,""]
[null,"",null,null,null,null,null,null,0,null,null,null,null,0,0,"",null,null,null,null,null,0,""]
[null,"",null,null,null,null,null,null,0,null,null,null,null,0,0,"",null,null,null,null,null,0,""]
[null,"",null,null,null,null,null,null,0,null,null,null,null,0,0,"",null,null,null,null,null,0,""]
[null,"",null,null,null,null,null,null,0,null,null,null,null,0,0,"",null,null,null,null,null,0,""]
[null,"",null,null,null,null,null,null,0,null,null,null,null,0,0,"",null,null,null,null,null,0,""]
[null,"",null,null,null,null,null,null,0,null,null,null,null,0,0,"",null,null,null,null,null,0,""]
[null,"",null,null,null,null,null,null,0,null,null,null,null,0,0,"",null,null,null,null,null,0,""]
[null,"",null,null,null,null,null,null,0,null,null,null,null,0,0,"",null,null,null,null,null,0,""]
[null,"",null,null,null,null,null,null,0,null,null,null,null,0,0,"",null,null,null,null,null,0,""]
[null,"",null,null,null,null,null,null,0,null,null,null,null,0,0,"",null,null,null,null,null,0,""]
[null,"",null,null,null,null,null,null,0,null,null,null,null,0,0,"",null,null,null,null,null,0,""]
[null,"",null,null,null,null,null,null,0,null,null,null,null,0,0,"",null,null,null,null,null,0,""]
[null,"",null,null,null,null,null,null,0,null,null,null,null,0,0,"",null,null,null,null,null,0,""]
[null,"",null,null,null,null,null,null,0,null,null,null,null,0,0,"",null,null,null,null,null,0,""]
[null,"",null,null,null,null,null,null,0,null,null,null,null,0,0,"",null,null,null,null,null,0,""]
[null,"",null,null,null,null,null,null,0,null,null,null,null,0,0,"",null,null,null,null,null,0,""]
[null,"",null,null,null,null,null,null,0,null,null,null,null,0,0,"",null,null,null,null,null,0,""]
[null,"",null,null,null,null,null,null,0,null,null,null,null,0,0,"",null,null,null,null,null,0,""]
[null,"",null,null,null,null,null,null,0,null,null,null,null,{"$f":"MOD((VALUE(MID(TEXT(A134,\"000000000000000\"),15,1))*3+VALUE(MID(TEXT(A134,\"000000000000000\"),14,1))*7+VALUE(MID(TEXT(A134,\"000000000000000\"),13,1))*13+VALUE(MID(TEXT(A134,\"000000000000000\"),12,1))*17+VALUE(MID(TEXT(A134,\"000000000000000\"),11,1))*19+VALUE(MID(TEXT(A134,\"000000000000000\"),10,1))*23+VALUE(MID(TEXT(A134,\"000000000000000\"),9,1))*29+VALUE(MID(TEXT(A134,\"000000000000000\"),8,1))*37+VALUE(MID(TEXT(A134,\"000000000000000\"),7,1))*41+VALUE(MID(TEXT(A134,\"000000000000000\"),6,1))*43+VALUE(MID(TEXT(A134,\"000000000000000\"),5,1))*47+VALUE(MID(TEXT(A134,\"000000000000000\"),4,1))*53+VALUE(MID(TEXT(A134,\"000000000000000\"),3,1))*59+VALUE(MID(TEXT(A134,\"000000000000000\"),2,1))*67+VALUE(MID(TEXT(A134,\"000000000000000\"),1,1))*71),11)","v":0},0,{"$f":"IF(H134=\"REGISTRO ACTIVO\",O134,\"\")","v":""},null,null,null,null,null,0,""]
[null,{"$f":"+P135","v":""},null,null,null,null,null,null,{"$f":"IF(H135=\"REGISTRO ACTIVO\",1,0)","v":0},null,null,null,null,0,{"$f":"IF(N135=0,0,IF(N135=1,1,11-N135))","v":0},"",null,null,null,null,null,{"$f":"IF(H135=\"\",0,1)","v":0},{"$f":"IF(AND(A135>0,H135=\"\",$V$5007>0),\"NO\",\"\")","v":""}]
[null,"",null,null,null,null,null,null,0,null,null,null,null,0,0,"",null,null,null,null,null,0,""]
[null,"",null,null,null,null,null,null,0,null,null,null,null,0,0,"",null,null,null,null,null,0,""]
[null,"",null,null,null,null,null,null,0,null,null,null,null,0,0,"",null,null,null,null,null,0,""]
[null,"",null,null,null,null,null,null,0,null,null,null,null,0,0,"",null,null,null,null,null,0,""]
[null,"",null,null,null,null,null,null,0,null,null,null,null,0,0,"",null,null,null,null,null,0,""]
[null,"",null,null,null,null,null,null,0,null,null,null,null,0,0,"",null,null,null,null,null,0,""]
[null,"",null,null,null,null,null,null,0,null,null,null,null,0,0,"",null,null,null,null,null,0,""]
[null,"",null,null,null,null,null,null,0,null,null,null,null,0,0,"",null,null,null,null,null,0,""]
[null,"",null,null,null,null,null,null,0,null,null,null,null,0,0,"",null,null,null,null,null,0,""]
[null,"",null,null,null,null,null,null,0,null,null,null,null,0,0,"",null,null,null,null,null,0,""]
[null,"",null,null,null,null,null,null,0,null,null,null,null,0,0,"",null,null,null,null,null,0,""]
[null,"",null,null,null,null,null,null,0,null,null,null,null,0,0,"",null,null,null,null,null,0,""]
[null,"",null,null,null,null,null,null,0,null,null,null,null,0,0,"",null,null,null,null,null,0,""]
[null,"",null,null,null,null,null,null,0,null,null,null,null,0,0,"",null,null,null,null,null,0,""]
[null,"",null,null,null,null,null,null,0,null,null,null,null,0,0,"",null,null,null,null,null,0,""]
[null,"",null,null,null,null,null,null,0,null,null,null,null,0,0,"",null,null,null,null,null,0,""]
[null,"",null,null,null,null,null,null,0,null,null,null,null,0,0,"",null,null,null,null,null,0,""]
[null,"",null,null,null,null,null,null,0,null,null,null,null,0,0,"",null,null,null,null,null,0,""]
[null,"",null,null,null,null,null,null,0,null,null,null,null,0,0,"",null,null,null,null,null,0,""]
[null,"",null,null,null,null,null,null,0,null,null,null,null,0,0,"",null,null,null,null,null,0,""]
[null,"",null,null,null,null,null,null,0,null,null,null,null,0,0,"",null,null,null,null,null,0,""]
[null,"",null,null,null,null,null,null,0,null,null,null,null,0,0,"",null,null,null,null,null,0,""]
[null,"",null,null,null,null,null,null,0,null,null,null,null,0,0,"",null,null,null,null,null,0,""]
[null,"",null,null,null,null,null,null,0,null,null,null,null,0,0,"",null,null,null,null,null,0,""]
[null,"",null,null,null,null,null,null,0,null,null,null,null,0,0,"",null,null,null,null,null,0,""]
[null,"",null,null,null,null,null,null,0,null,null,null,null,0,0,"",null,null,null,null,null,0,""]
[null,"",null,null,null,null,null,null,0,null,null,null,null,0,0,"",null,null,null,null,null,0,""]
[null,"",null,null,null,null,null,null,0,null,null,null,null,0,0,"",null,null,null,null,null,0,""]
[null,"",null,null,null,null,null,null,0,null,null,null,null,0,0,"",null,null,null,null,null,0,""]
[null,"",null,null,null,null,null,null,0,null,null,null,null,0,0,"",null,null,null,null,null,0,""]
[null,"",null,null,null,null,null,null,0,null,null,null,null,0,0,"",null,null,null,null,null,0,""]
[null,"",null,null,null,null,null,null,0,null,null,null,null,0,0,"",null,null,null,null,null,0,""]
[null,"",null,null,null,null,null,null,0,null,null,null,null,0,0,"",null,null,null,null,null,0,""]
[null,"",null,null,null,null,null,null,0,null,null,null,null,0,0,"",null,null,null,null,null,0,""]
[null,"",null,null,null,null,null,null,0,null,null,null,null,0,0,"",null,null,null,null,null,0,""]
[null,"",null,null,null,null,null,null,0,null,null,null,null,0,0,"",null,null,null,null,null,0,""]
[null,"",null,null,null,null,null,null,0,null,null,null,null,0,0,"",null,null,null,null,null,0,""]
[null,"",null,null,null,null,null,null,0,null,null,null,null,0,0,"",null,null,null,null,null,0,""]
[null,"",null,null,null,null,null,null,0,null,null,null,null,0,0,"",null,null,null,null,null,0,""]
[null,"",null,null,null,null,null,null,0,null,null,null,null,0,0,"",null,null,null,null,null,0,""]
[null,"",null,null,null,null,null,null,0,null,null,null,null,0,0,"",null,null,null,null,null,0,""]
[null,"",null,null,null,null,null,null,0,null,null,null,null,0,0,"",null,null,null,null,null,0,""]
[null,"",null,null,null,null,null,null,0,null,null,null,null,0,0,"",null,null,null,null,null,0,""]
[null,"",null,null,null,null,null,null,0,null,null,null,null,0,0,"",null,null,null,null,null,0,""]
[null,"",null,null,null,null,null,null,0,null,null,null,null,0,0,"",null,null,null,null,null,0,""]
[null,"",null,null,null,null,null,null,0,null,null,null,null,0,0,"",null,null,null,null,null,0,""]
[null,"",null,null,null,null,null,null,0,null,null,null,null,0,0,"",null,null,null,null,null,0,""]
[null,"",null,null,null,null,null,null,0,null,null,null,null,0,0,"",null,null,null,null,null,0,""]
[null,"",null,null,null,null,null,null,0,null,null,null,null,0,0,"",null,null,null,null,null,0,""]
[null,"",null,null,null,null,null,null,0,null,null,null,null,0,0,"",null,null,null,null,null,0,""]
[null,"",null,null,null,null,null,null,0,null,null,null,null,0,0,"",null,null,null,null,null,0,""]
[null,"",null,null,null,null,null,null,0,null,null,null,null,0,0,"",null,null,null,null,null,0,""]
[null,"",null,null,null,null,null,null,0,null,null,null,null,0,0,"",null,null,null,null,null,0,""]
[null,"",null,null,null,null,null,null,0,null,null,null,null,0,0,"",null,null,null,null,null,0,""]
[null,"",null,null,null,null,null,null,0,null,null,null,null,0,0,"",null,null,null,null,null,0,""]
[null,"",null,null,null,null,null,null,0,null,null,null,null,0,0,"",null,null,null,null,null,0,""]
[null,"",null,null,null,null,null,null,0,null,null,null,null,0,0,"",null,null,null,null,null,0,""]
[null,"",null,null,null,null,null,null,0,null,null,null,null,0,0,"",null,null,null,null,null,0,""]
[null,"",null,null,null,null,null,null,0,null,null,null,null,0,0,"",null,null,null,null,null,0,""]
[null,"",null,null,null,null,null,null,0,null,null,null,null,0,0,"",null,null,null,null,null,0,""]
[null,"",null,null,null,null,null,null,0,null,null,null,null,0,0,"",null,null,null,null,null,0,""]
[null,"",null,null,null,null,null,null,0,null,null,null,null,0,0,"",null,null,null,null,null,0,""]
[null,"",null,null,null,null,null,null,0,null,null,null,null,{"$f":"MOD((VALUE(MID(TEXT(A198,\"000000000000000\"),15,1))*3+VALUE(MID(TEXT(A198,\"000000000000000\"),14,1))*7+VALUE(MID(TEXT(A198,\"000000000000000\"),13,1))*13+VALUE(MID(TEXT(A198,\"000000000000000\"),12,1))*17+VALUE(MID(TEXT(A198,\"000000000000000\"),11,1))*19+VALUE(MID(TEXT(A198,\"000000000000000\"),10,1))*23+VALUE(MID(TEXT(A198,\"000000000000000\"),9,1))*29+VALUE(MID(TEXT(A198,\"000000000000000\"),8,1))*37+VALUE(MID(TEXT(A198,\"000000000000000\"),7,1))*41+VALUE(MID(TEXT(A198,\"000000000000000\"),6,1))*43+VALUE(MID(TEXT(A198,\"000000000000000\"),5,1))*47+VALUE(MID(TEXT(A198,\"000000000000000\"),4,1))*53+VALUE(MID(TEXT(A198,\"000000000000000\"),3,1))*59+VALUE(MID(TEXT(A198,\"000000000000000\"),2,1))*67+VALUE(MID(TEXT(A198,\"000000000000000\"),1,1))*71),11)","v":0},0,{"$f":"IF(H198=\"REGISTRO ACTIVO\",O198,\"\")","v":""},null,null,null,null,null,0,""]
[null,{"$f":"+P199","v":""},null,null,null,null,null,null,{"$f":"IF(H199=\"REGISTRO ACTIVO\",1,0)","v":0},null,null,null,null,0,{"$f":"IF(N199=0,0,IF(N199=1,1,11-N199))","v":0},"",null,null,null,null,null,{"$f":"IF(H199=\"\",0,1)","v":0},{"$f":"IF(AND(A199>0,H199=\"\",$V$5007>0),\"NO\",\"\")","v":""}]
[null,"",null,null,null,null,null,null,0,null,null,null,null,0,0,"",null,null,null,null,null,0,""]
[null,"",null,null,null,null,null,null,0,null,null,null,null,0,0,"",null,null,null,null,null,0,""]
[null,"",null,null,null,null,null,null,0,null,null,null,null,0,0,"",null,null,null,null,null,0,""]
[null,"",null,null,null,null,null,null,0,null,null,null,null,0,0,"",null,null,null,null,null,0,""]
[null,"",null,null,null,null,null,null,0,null,null,null,null,0,0,"",null,null,null,null,null,0,""]
[null,"",null,null,null,null,null,null,0,null,null,null,null,0,0,"",null,null,null,null,null,0,""]
[null,"",null,null,null,null,null,null,0,null,null,null,null,0,0,"",null,null,null,null,null,0,""]
[null,"",null,null,null,null,null,null,0,null,null,null,null,0,0,"",null,null,null,null,null,0,""]
[null,"",null,null,null,null,null,null,0,null,null,null,null,0,0,"",null,null,null,null,null,0,""]
[null,"",null,null,null,null,null,null,0,null,null,null,null,0,0,"",null,null,null,null,null,0,""]
[null,"",null,null,null,null,null,null,0,null,null,null,null,0,0,"",null,null,null,null,null,0,""]
[null,"",null,null,null,null,null,null,0,null,null,null,null,0,0,"",null,null,null,null,null,0,""]
[null,"",null,null,null,null,null,null,0,null,null,null,null,0,0,"",null,null,null,null,null,0,""]
[null,"",null,null,null,null,null,null,0,null,null,null,null,0,0,"",null,null,null,null,null,0,""]
[null,"",null,null,null,null,null,null,0,null,null,null,null,0,0,"",null,null,null,null,null,0,""]
[null,"",null,null,null,null,null,null,0,null,null,null,null,0,0,"",null,null,null,null,null,0,""]
[null,"",null,null,null,null,null,null,0,null,null,null,null,0,0,"",null,null,null,null,null,0,""]
[null,"",null,null,null,null,null,null,0,null,null,null,null,0,0,"",null,null,null,null,null,0,""]
[null,"",null,null,null,null,null,null,0,null,null,null,null,0,0,"",null,null,null,null,null,0,""]
[null,"",null,null,null,null,null,null,0,null,null,null,null,0,0,"",null,null,null,null,null,0,""]
[null,"",null,null,null,null,null,null,0,null,null,null,null,0,0,"",null,null,null,null,null,0,""]
[null,"",null,null,null,null,null,null,0,null,null,null,null,0,0,"",null,null,null,null,null,0,""]
[null,"",null,null,null,null,null,null,0,null,null,null,null,0,0,"",null,null,null,null,null,0,""]
[null,"",null,null,null,null,null,null,0,null,null,null,null,0,0,"",null,null,null,null,null,0,""]
[null,"",null,null,null,null,null,null,0,null,null,null,null,0,0,"",null,null,null,null,null,0,""]
[null,"",null,null,null,null,null,null,0,null,null,null,null,0,0,"",null,null,null,null,null,0,""]
[null,"",null,null,null,null,null,null,0,null,null,null,null,0,0,"",null,null,null,null,null,0,""]
[null,"",null,null,null,null,null,null,0,null,null,null,null,0,0,"",null,null,null,null,null,0,""]
[null,"",null,null,null,null,null,null,0,null,null,null,null,0,0,"",null,null,null,null,null,0,""]
[null,"",null,null,null,null,null,null,0,null,null,null,null,0,0,"",null,null,null,null,null,0,""]
[null,"",null,null,null,null,null,null,0,null,null,null,null,0,0,"",null,null,null,null,null,0,""]
[null,"",null,null,null,null,null,null,0,null,null,null,null,0,0,"",null,null,null,null,null,0,""]
[null,"",null,null,null,null,null,null,0,null,null,null,null,0,0,"",null,null,null,null,null,0,""]
[null,"",null,null,null,null,null,null,0,null,null,null,null,0,0,"",null,null,null,null,null,0,""]
[null,"",null,null,null,null,null,null,0,null,null,null,null,0,0,"",null,null,null,null,null,0,""]
[null,"",null,null,null,null,null,null,0,null,null,null,null,0,0,"",null,null,null,null,null,0,""]
[null,"",null,null,null,null,null,null,0,null,null,null,null,0,0,"",null,null,null,null,null,0,""]
[null,"",null,null,null,null,null,null,0,null,null,null,null,0,0,"",null,null,null,null,null,0,""]
[null,"",null,null,null,null,null,null,0,null,null,null,null,0,0,"",null,null,null,null,null,0,""]
[null,"",null,null,null,null,null,null,0,null,null,null,null,0,0,"",null,null,null,null,null,0,""]
[null,"",null,null,null,null,null,null,0,null,null,null,null,0,0,"",null,null,null,null,null,0,""]
[null,"",null,null,null,null,null,null,0,null,null,null,null,0,0,"",null,null,null,null,null,0,""]
[null,"",null,null,null,null,null,null,0,null,null,null,null,0,0,"",null,null,null,null,null,0,""]
[null,"",null,null,null,null,null,null,0,null,null,null,null,0,0,"",null,null,null,null,null,0,""]
[null,"",null,null,null,null,null,null,0,null,null,null,null,0,0,"",null,null,null,null,null,0,""]
[null,"",null,null,null,null,null,null,0,null,null,null,null,0,0,"",null,null,null,null,null,0,""]
[null,"",null,null,null,null,null,null,0,null,null,null,null,0,0,"",null,null,null,null,null,0,""]
[null,"",null,null,null,null,null,null,0,null,null,null,null,0,0,"",null,null,null,null,null,0,""]
[null,"",null,null,null,null,null,null,0,null,null,null,null,0,0,"",null,null,null,null,null,0,""]
[null,"",null,null,null,null,null,null,0,null,null,null,null,0,0,"",null,null,null,null,null,0,""]
[null,"",null,null,null,null,null,null,0,null,null,null,null,0,0,"",null,null,null,null,null,0,""]
[null,"",null,null,null,null,null,null,0,null,null,null,null,0,0,"",null,null,null,null,null,0,""]
[null,"",null,null,null,null,null,null,0,null,null,null,null,0,0,"",null,null,null,null,null,0,""]
[null,"",null,null,null,null,null,null,0,null,null,null,null,0,0,"",null,null,null,null,null,0,""]
[null,"",null,null,null,null,null,null,0,null,null,null,null,0,0,"",null,null,null,null,null,0,""]
[null,"",null,null,null,null,null,null,0,null,null,null,null,0,0,"",null,null,null,null,null,0,""]
[null,"",null,null,null,null,null,null,0,null,null,null,null,0,0,"",null,null,null,null,null,0,""]
[null,"",null,null,null,null,null,null,0,null,null,null,null,0,0,"",null,null,null,null,null,0,""]
[null,"",null,null,null,null,null,null,0,null,null,null,null,0,0,"",null,null,null,null,null,0,""]
[null,"",null,null,null,null,null,null,0,null,null,null,null,0,0,"",null,null,null,null,null,0,""]
[null,"",null,null,null,null,null,null,0,null,null,null,null,0,0,"",null,null,null,null,null,0,""]
[null,"",null,null,null,null,null,null,0,null,null,null,null,0,0,"",null,null,null,null,null,0,""]
[null,"",null,null,null,null,null,null,0,null,null,null,null,{"$f":"MOD((VALUE(MID(TEXT(A262,\"000000000000000\"),15,1))*3+VALUE(MID(TEXT(A262,\"000000000000000\"),14,1))*7+VALUE(MID(TEXT(A262,\"000000000000000\"),13,1))*13+VALUE(MID(TEXT(A262,\"000000000000000\"),12,1))*17+VALUE(MID(TEXT(A262,\"000000000000000\"),11,1))*19+VALUE(MID(TEXT(A262,\"000000000000000\"),10,1))*23+VALUE(MID(TEXT(A262,\"000000000000000\"),9,1))*29+VALUE(MID(TEXT(A262,\"000000000000000\"),8,1))*37+VALUE(MID(TEXT(A262,\"000000000000000\"),7,1))*41+VALUE(MID(TEXT(A262,\"000000000000000\"),6,1))*43+VALUE(MID(TEXT(A262,\"000000000000000\"),5,1))*47+VALUE(MID(TEXT(A262,\"000000000000000\"),4,1))*53+VALUE(MID(TEXT(A262,\"000000000000000\"),3,1))*59+VALUE(MID(TEXT(A262,\"000000000000000\"),2,1))*67+VALUE(MID(TEXT(A262,\"000000000000000\"),1,1))*71),11)","v":0},0,{"$f":"IF(H262=\"REGISTRO ACTIVO\",O262,\"\")","v":""},null,null,null,null,null,0,""]
[null,{"$f":"+P263","v":""},null,null,null,null,null,null,{"$f":"IF(H263=\"REGISTRO ACTIVO\",1,0)","v":0},null,null,null,null,0,{"$f":"IF(N263=0,0,IF(N263=1,1,11-N263))","v":0},"",null,null,null,null,null,{"$f":"IF(H263=\"\",0,1)","v":0},{"$f":"IF(AND(A263>0,H263=\"\",$V$5007>0),\"NO\",\"\")","v":""}]
[null,"",null,null,null,null,null,null,0,null,null,null,null,0,0,"",null,null,null,null,null,0,""]
[null,"",null,null,null,null,null,null,0,null,null,null,null,0,0,"",null,null,null,null,null,0,""]
[null,"",null,null,null,null,null,null,0,null,null,null,null,0,0,"",null,null,null,null,null,0,""]
[null,"",null,null,null,null,null,null,0,null,null,null,null,0,0,"",null,null,null,null,null,0,""]
[null,"",null,null,null,null,null,null,0,null,null,null,null,0,0,"",null,null,null,null,null,0,""]
[null,"",null,null,null,null,null,null,0,null,null,null,null,0,0,"",null,null,null,null,null,0,""]
[null,"",null,null,null,null,null,null,0,null,null,null,null,0,0,"",null,null,null,null,null,0,""]
[null,"",null,null,null,null,null,null,0,null,null,null,null,0,0,"",null,null,null,null,null,0,""]
[null,"",null,null,null,null,null,null,0,null,null,null,null,0,0,"",null,null,null,null,null,0,""]
[null,"",null,null,null,null,null,null,0,null,null,null,null,0,0,"",null,null,null,null,null,0,""]
[null,"",null,null,null,null,null,null,0,null,null,null,null,0,0,"",null,null,null,null,null,0,""]
[null,"",null,null,null,null,null,null,0,null,null,null,null,0,0,"",null,null,null,null,null,0,""]
[null,"",null,null,null,null,null,null,0,null,null,null,null,0,0,"",null,null,null,null,null,0,""]
[null,"",null,null,null,null,null,null,0,null,null,null,null,0,0,"",null,null,null,null,null,0,""]
[null,"",null,null,null,null,null,null,0,null,null,null,null,0,0,"",null,null,null,null,null,0,""]
[null,"",null,null,null,null,null,null,0,null,null,null,null,0,0,"",null,null,null,null,null,0,""]
[null,"",null,null,null,null,null,null,0,null,null,null,null,0,0,"",null,null,null,null,null,0,""]
[null,"",null,null,null,null,null,null,0,null,null,null,null,0,0,"",null,null,null,null,null,0,""]
[null,"",null,null,null,null,null,null,0,null,null,null,null,0,0,"",null,null,null,null,null,0,""]
[null,"",null,null,null,null,null,null,0,null,null,null,null,0,0,"",null,null,null,null,null,0,""]
[null,"",null,null,null,null,null,null,0,null,null,null,null,0,0,"",null,null,null,null,null,0,""]
[null,"",null,null,null,null,null,null,0,null,null,null,null,0,0,"",null,null,null,null,null,0,""]
[null,"",null,null,null,null,null,null,0,null,null,null,null,0,0,"",null,null,null,null,null,0,""]
[null,"",null,null,null,null,null,null,0,null,null,null,null,0,0,"",null,null,null,null,null,0,""]
[null,"",null,null,null,null,null,null,0,null,null,null,null,0,0,"",null,null,null,null,null,0,""]
[null,"",null,null,null,null,null,null,0,null,null,null,null,0,0,"",null,null,null,null,null,0,""]
[null,"",null,null,null,null,null,null,0,null,null,null,null,0,0,"",null,null,null,null,null,0,""]
[null,"",null,null,null,null,null,null,0,null,null,null,null,0,0,"",null,null,null,null,null,0,""]
[null,"",null,null,null,null,null,null,0,null,null,null,null,0,0,"",null,null,null,null,null,0,""]
[null,"",null,null,null,null,null,null,0,null,null,null,null,0,0,"",null,null,null,null,null,0,""]
[null,"",null,null,null,null,null,null,0,null,null,null,null,0,0,"",null,null,null,null,null,0,""]
[null,"",null,null,null,null,null,null,0,null,null,null,null,0,0,"",null,null,null,null,null,0,""]
[null,"",null,null,null,null,null,null,0,null,null,null,null,0,0,"",null,null,null,null,null,0,""]
[null,"",null,null,null,null,null,null,0,null,null,null,null,0,0,"",null,null,null,null,null,0,""]
[null,"",null,null,null,null,null,null,0,null,null,null,null,0,0,"",null,null,null,null,null,0,""]
[null,"",null,null,null,null,null,null,0,null,null,null,null,0,0,"",null,null,null,null,null,0,""]
[null,"",null,null,null,null,null,null,0,null,null,null,null,0,0,"",null,null,null,null,null,0,""]
[null,"",null,null,null,null,null,null,0,null,null,null,null,0,0,"",null,null,null,null,null,0,""]
[null,"",null,null,null,null,null,null,0,null,null,null,null,0,0,"",null,null,null,null,null,0,""]
[null,"",null,null,null,null,null,null,0,null,null,null,null,0,0,"",null,null,null,null,null,0,""]
[null,"",null,null,null,null,null,null,0,null,null,null,null,0,0,"",null,null,null,null,null,0,""]
[null,"",null,null,null,null,null,null,0,null,null,null,null,0,0,"",null,null,null,null,null,0,""]
[null,"",null,null,null,null,null,null,0,null,null,null,null,0,0,"",null,null,null,null,null,0,""]
[null,"",null,null,null,null,null,null,0,null,null,null,null,0,0,"",null,null,null,null,null,0,""]
[null,"",null,null,null,null,null,null,0,null,null,null,null,0,0,"",null,null,null,null,null,0,""]
[null,"",null,null,null,null,null,null,0,null,null,null,null,0,0,"",null,null,null,null,null,0,""]
[null,"",null,null,null,null,null,null,0,null,null,null,null,0,0,"",null,null,null,null,null,0,""]
[null,"",null,null,null,null,null,null,0,null,null,null,null,0,0,"",null,null,null,null,null,0,""]
[null,"",null,null,null,null,null,null,0,null,null,null,null,0,0,"",null,null,null,null,null,0,""]
[null,"",null,null,null,null,null,null,0,null,null,null,null,0,0,"",null,null,null,null,null,0,""]
[null,"",null,null,null,null,null,null,0,null,null,null,null,0,0,"",null,null,null,null,null,0,""]
[null,"",null,null,null,null,null,null,0,null,null,null,null,0,0,"",null,null,null,null,null,0,""]
[null,"",null,null,null,null,null,null,0,null,null,null,null,0,0,"",null,null,null,null,null,0,""]
[null,"",null,null,null,null,null,null,0,null,null,null,null,0,0,"",null,null,null,null,null,0,""]
[null,"",null,null,null,null,null,null,0,null,null,null,null,0,0,"",null,null,null,null,null,0,""]
[null,"",null,null,null,null,null,null,0,null,null,null,null,0,0,"",null,null,null,null,null,0,""]
[null,"",null,null,null,null,null,null,0,null,null,null,null,0,0,"",null,null,null,null,null,0,""]
[null,"",null,null,null,null,null,null,0,null,null,null,null,0,0,"",null,null,null,null,null,0,""]
[null,"",null,null,null,null,null,null,0,null,null,null,null,0,0,"",null,null,null,null,null,0,""]
[null,"",null,null,null,null,null,null,0,null,null,null,null,0,0,"",null,null,null,null,null,0,""]
[null,"",null,null,null,null,null,null,0,null,null,null,null,0,0,"",null,null,null,null,null,0,""]
[null,"",null,null,null,null,null,null,0,null,null,null,null,0,0,"",null,null,null,null,null,0,""]
[null,"",null,null,null,null,null,null,0,null,null,null,null,{"$f":"MOD((VALUE(MID(TEXT(A326,\"000000000000000\"),15,1))*3+VALUE(MID(TEXT(A326,\"000000000000000\"),14,1))*7+VALUE(MID(TEXT(A326,\"000000000000000\"),13,1))*13+VALUE(MID(TEXT(A326,\"000000000000000\"),12,1))*17+VALUE(MID(TEXT(A326,\"000000000000000\"),11,1))*19+VALUE(MID(TEXT(A326,\"000000000000000\"),10,1))*23+VALUE(MID(TEXT(A326,\"000000000000000\"),9,1))*29+VALUE(MID(TEXT(A326,\"000000000000000\"),8,1))*37+VALUE(MID(TEXT(A326,\"000000000000000\"),7,1))*41+VALUE(MID(TEXT(A326,\"000000000000000\"),6,1))*43+VALUE(MID(TEXT(A326,\"000000000000000\"),5,1))*47+VALUE(MID(TEXT(A326,\"000000000000000\"),4,1))*53+VALUE(MID(TEXT(A326,\"000000000000000\"),3,1))*59+VALUE(MID(TEXT(A326,\"000000000000000\"),2,1))*67+VALUE(MID(TEXT(A326,\"000000000000000\"),1,1))*71),11)","v":0},0,{"$f":"IF(H326=\"REGISTRO ACTIVO\",O326,\"\")","v":""},null,null,null,null,null,0,""]
[null,{"$f":"+P327","v":""},null,null,null,null,null,null,{"$f":"IF(H327=\"REGISTRO ACTIVO\",1,0)","v":0},null,null,null,null,0,{"$f":"IF(N327=0,0,IF(N327=1,1,11-N327))","v":0},"",null,null,null,null,null,{"$f":"IF(H327=\"\",0,1)","v":0},{"$f":"IF(AND(A327>0,H327=\"\",$V$5007>0),\"NO\",\"\")","v":""}]
[null,"",null,null,null,null,null,null,0,null,null,null,null,0,0,"",null,null,null,null,null,0,""]
[null,"",null,null,null,null,null,null,0,null,null,null,null,0,0,"",null,null,null,null,null,0,""]
[null,"",null,null,null,null,null,null,0,null,null,null,null,0,0,"",null,null,null,null,null,0,""]
[null,"",null,null,null,null,null,null,0,null,null,null,null,0,0,"",null,null,null,null,null,0,""]
[null,"",null,null,null,null,null,null,0,null,null,null,null,0,0,"",null,null,null,null,null,0,""]
[null,"",null,null,null,null,null,null,0,null,null,null,null,0,0,"",null,null,null,null,null,0,""]
[null,"",null,null,null,null,null,null,0,null,null,null,null,0,0,"",null,null,null,null,null,0,""]
[null,"",null,null,null,null,null,null,0,null,null,null,null,0,0,"",null,null,null,null,null,0,""]
[null,"",null,null,null,null,null,null,0,null,null,null,null,0,0,"",null,null,null,null,null,0,""]
[null,"",null,null,null,null,null,null,0,null,null,null,null,0,0,"",null,null,null,null,null,0,""]
[null,"",null,null,null,null,null,null,0,null,null,null,null,0,0,"",null,null,null,null,null,0,""]
[null,"",null,null,null,null,null,null,0,null,null,null,null,0,0,"",null,null,null,null,null,0,""]
[null,"",null,null,null,null,null,null,0,null,null,null,null,0,0,"",null,null,null,null,null,0,""]
[null,"",null,null,null,null,null,null,0,null,null,null,null,0,0,"",null,null,null,null,null,0,""]
[null,"",null,null,null,null,null,null,0,null,null,null,null,0,0,"",null,null,null,null,null,0,""]
[null,"",null,null,null,null,null,null,0,null,null,null,null,0,0,"",null,null,null,null,null,0,""]
[null,"",null,null,null,null,null,null,0,null,null,null,null,0,0,"",null,null,null,null,null,0,""]
[null,"",null,null,null,null,null,null,0,null,null,null,null,0,0,"",null,null,null,null,null,0,""]
[null,"",null,null,null,null,null,null,0,null,null,null,null,0,0,"",null,null,null,null,null,0,""]
[null,"",null,null,null,null,null,null,0,null,null,null,null,0,0,"",null,null,null,null,null,0,""]
[null,"",null,null,null,null,null,null,0,null,null,null,null,0,0,"",null,null,null,null,null,0,""]
[null,"",null,null,null,null,null,null,0,null,null,null,null,0,0,"",null,null,null,null,null,0,""]
[null,"",null,null,null,null,null,null,0,null,null,null,null,0,0,"",null,null,null,null,null,0,""]
[null,"",null,null,null,null,null,null,0,null,null,null,null,0,0,"",null,null,null,null,null,0,""]
[null,"",null,null,null,null,null,null,0,null,null,null,null,0,0,"",null,null,null,null,null,0,""]
[null,"",null,null,null,null,null,null,0,null,null,null,null,0,0,"",null,null,null,null,null,0,""]
[null,"",null,null,null,null,null,null,0,null,null,null,null,0,0,"",null,null,null,null,null,0,""]
[null,"",null,null,null,null,null,null,0,null,null,null,null,0,0,"",null,null,null,null,null,0,""]
[null,"",null,null,null,null,null,null,0,null,null,null,null,0,0,"",null,null,null,null,null,0,""]
[null,"",null,null,null,null,null,null,0,null,null,null,null,0,0,"",null,null,null,null,null,0,""]
[null,"",null,null,null,null,null,null,0,null,null,null,null,0,0,"",null,null,null,null,null,0,""]
[null,"",null,null,null,null,null,null,0,null,null,null,null,0,0,"",null,null,null,null,null,0,""]
[null,"",null,null,null,null,null,null,0,null,null,null,null,0,0,"",null,null,null,null,null,0,""]
[null,"",null,null,null,null,null,null,0,null,null,null,null,0,0,"",null,null,null,null,null,0,""]
[null,"",null,null,null,null,null,null,0,null,null,null,null,0,0,"",null,null,null,null,null,0,""]
[null,"",null,null,null,null,null,null,0,null,null,null,null,0,0,"",null,null,null,null,null,0,""]
[null,"",null,null,null,null,null,null,0,null,null,null,null,0,0,"",null,null,null,null,null,0,""]
[null,"",null,null,null,null,null,null,0,null,null,null,null,0,0,"",null,null,null,null,null,0,""]
[null,"",null,null,null,null,null,null,0,null,null,null,null,0,0,"",null,null,null,null,null,0,""]
[null,"",null,null,null,null,null,null,0,null,null,null,null,0,0,"",null,null,null,null,null,0,""]
[null,"",null,null,null,null,null,null,0,null,null,null,null,0,0,"",null,null,null,null,null,0,""]
[null,"",null,null,null,null,null,null,0,null,null,null,null,0,0,"",null,null,null,null,null,0,""]
[null,"",null,null,null,null,null,null,0,null,null,null,null,0,0,"",null,null,null,null,null,0,""]
[null,"",null,null,null,null,null,null,0,null,null,null,null,0,0,"",null,null,null,null,null,0,""]
[null,"",null,null,null,null,null,null,0,null,null,null,null,0,0,"",null,null,null,null,null,0,""]
[null,"",null,null,null,null,null,null,0,null,null,null,null,0,0,"",null,null,null,null,null,0,""]
[null,"",null,null,null,null,null,null,0,null,null,null,null,0,0,"",null,null,null,null,null,0,""]
[null,"",null,null,null,null,null,null,0,null,null,null,null,0,0,"",null,null,null,null,null,0,""]
[null,"",null,null,null,null,null,null,0,null,null,null,null,0,0,"",null,null,null,null,null,0,""]
[null,"",null,null,null,null,null,null,0,null,null,null,null,0,0,"",null,null,null,null,null,0,""]
[null,"",null,null,null,null,null,null,0,null,null,null,null,0,0,"",null,null,null,null,null,0,""]
[null,"",null,null,null,null,null,null,0,null,null,null,null,0,0,"",null,null,null,null,null,0,""]
[null,"",null,null,null,null,null,null,0,null,null,null,null,0,0,"",null,null,null,null,null,0,""]
[null,"",null,null,null,null,null,null,0,null,null,null,null,0,0,"",null,null,null,null,null,0,""]
[null,"",null,null,null,null,null,null,0,null,null,null,null,0,0,"",null,null,null,null,null,0,""]
[null,"",null,null,null,null,null,null,0,null,null,null,null,0,0,"",null,null,null,null,null,0,""]
[null,"",null,null,null,null,null,null,0,null,null,null,null,0,0,"",null,null,null,null,null,0,""]
[null,"",null,null,null,null,null,null,0,null,null,null,null,0,0,"",null,null,null,null,null,0,""]
[null,"",null,null,null,null,null,null,0,null,null,null,null,0,0,"",null,null,null,null,null,0,""]
[null,"",null,null,null,null,null,null,0,null,null,null,null,0,0,"",null,null,null,null,null,0,""]
[null,"",null,null,null,null,null,null,0,null,null,null,null,0,0,"",null,null,null,null,null,0,""]
[null,"",null,null,null,null,null,null,0,null,null,null,null,0,0,"",null,null,null,null,null,0,""]
[null,"",null,null,null,null,null,null,0,null,null,null,null,{"$f":"MOD((VALUE(MID(TEXT(A390,\"000000000000000\"),15,1))*3+VALUE(MID(TEXT(A390,\"000000000000000\"),14,1))*7+VALUE(MID(TEXT(A390,\"000000000000000\"),13,1))*13+VALUE(MID(TEXT(A390,\"000000000000000\"),12,1))*17+VALUE(MID(TEXT(A390,\"000000000000000\"),11,1))*19+VALUE(MID(TEXT(A390,\"000000000000000\"),10,1))*23+VALUE(MID(TEXT(A390,\"000000000000000\"),9,1))*29+VALUE(MID(TEXT(A390,\"000000000000000\"),8,1))*37+VALUE(MID(TEXT(A390,\"000000000000000\"),7,1))*41+VALUE(MID(TEXT(A390,\"000000000000000\"),6,1))*43+VALUE(MID(TEXT(A390,\"000000000000000\"),5,1))*47+VALUE(MID(TEXT(A390,\"000000000000000\"),4,1))*53+VALUE(MID(TEXT(A390,\"000000000000000\"),3,1))*59+VALUE(MID(TEXT(A390,\"000000000000000\"),2,1))*67+VALUE(MID(TEXT(A390,\"000000000000000\"),1,1))*71),11)","v":0},0,{"$f":"IF(H390=\"REGISTRO ACTIVO\",O390,\"\")","v":""},null,null,null,null,null,0,""]
[null,{"$f":"+P391","v":""},null,null,null,null,null,null,{"$f":"IF(H391=\"REGISTRO ACTIVO\",1,0)","v":0},null,null,null,null,0,{"$f":"IF(N391=0,0,IF(N391=1,1,11-N391))","v":0},"",null,null,null,null,null,{"$f":"IF(H391=\"\",0,1)","v":0},{"$f":"IF(AND(A391>0,H391=\"\",$V$5007>0),\"NO\",\"\")","v":""}]
[null,"",null,null,null,null,null,null,0,null,null,null,null,0,0,"",null,null,null,null,null,0,""]
[null,"",null,null,null,null,null,null,0,null,null,null,null,0,0,"",null,null,null,null,null,0,""]
[null,"",null,null,null,null,null,null,0,null,null,null,null,0,0,"",null,null,null,null,null,0,""]
[null,"",null,null,null,null,null,null,0,null,null,null,null,0,0,"",null,null,null,null,null,0,""]
[null,"",null,null,null,null,null,null,0,null,null,null,null,0,0,"",null,null,null,null,null,0,""]
[null,"",null,null,null,null,null,null,0,null,null,null,null,0,0,"",null,null,null,null,null,0,""]
[null,"",null,null,null,null,null,null,0,null,null,null,null,0,0,"",null,null,null,null,null,0,""]
[null,"",null,null,null,null,null,null,0,null,null,null,null,0,0,"",null,null,null,null,null,0,""]
[null,"",null,null,null,null,null,null,0,null,null,null,null,0,0,"",null,null,null,null,null,0,""]
[null,"",null,null,null,null,null,null,0,null,null,null,null,0,0,"",null,null,null,null,null,0,""]
[null,"",null,null,null,null,null,null,0,null,null,null,null,0,0,"",null,null,null,null,null,0,""]
[null,"",null,null,null,null,null,null,0,null,null,null,null,0,0,"",null,null,null,null,null,0,""]
[null,"",null,null,null,null,null,null,0,null,null,null,null,0,0,"",null,null,null,null,null,0,""]
[null,"",null,null,null,null,null,null,0,null,null,null,null,0,0,"",null,null,null,null,null,0,""]
[null,"",null,null,null,null,null,null,0,null,null,null,null,0,0,"",null,null,null,null,null,0,""]
[null,"",null,null,null,null,null,null,0,null,null,null,null,0,0,"",null,null,null,null,null,0,""]
[null,"",null,null,null,null,null,null,0,null,null,null,null,0,0,"",null,null,null,null,null,0,""]
[null,"",null,null,null,null,null,null,0,null,null,null,null,0,0,"",null,null,null,null,null,0,""]
[null,"",null,null,null,null,null,null,0,null,null,null,null,0,0,"",null,null,null,null,null,0,""]
[null,"",null,null,null,null,null,null,0,null,null,null,null,0,0,"",null,null,null,null,null,0,""]
[null,"",null,null,null,null,null,null,0,null,null,null,null,0,0,"",null,null,null,null,null,0,""]
[null,"",null,null,null,null,null,null,0,null,null,null,null,0,0,"",null,null,null,null,null,0,""]
[null,"",null,null,null,null,null,null,0,null,null,null,null,0,0,"",null,null,null,null,null,0,""]
[null,"",null,null,null,null,null,null,0,null,null,null,null,0,0,"",null,null,null,null,null,0,""]
[null,"",null,null,null,null,null,null,0,null,null,null,null,0,0,"",null,null,null,null,null,0,""]
[null,"",null,null,null,null,null,null,0,null,null,null,null,0,0,"",null,null,null,null,null,0,""]
[null,"",null,null,null,null,null,null,0,null,null,null,null,0,0,"",null,null,null,null,null,0,""]
[null,"",null,null,null,null,null,null,0,null,null,null,null,0,0,"",null,null,null,null,null,0,""]
[null,"",null,null,null,null,null,null,0,null,null,null,null,0,0,"",null,null,null,null,null,0,""]
[null,"",null,null,null,null,null,null,0,null,null,null,null,0,0,"",null,null,null,null,null,0,""]
[null,"",null,null,null,null,null,null,0,null,null,null,null,0,0,"",null,null,null,null,null,0,""]
[null,"",null,null,null,null,null,null,0,null,null,null,null,0,0,"",null,null,null,null,null,0,""]
[null,"",null,null,null,null,null,null,0,null,null,null,null,0,0,"",null,null,null,null,null,0,""]
[null,"",null,null,null,null,null,null,0,null,null,null,null,0,0,"",null,null,null,null,null,0,""]
[null,"",null,null,null,null,null,null,0,null,null,null,null,0,0,"",null,null,null,null,null,0,""]
[null,"",null,null,null,null,null,null,0,null,null,null,null,0,0,"",null,null,null,null,null,0,""]
[null,"",null,null,null,null,null,null,0,null,null,null,null,0,0,"",null,null,null,null,null,0,""]
[null,"",null,null,null,null,null,null,0,null,null,null,null,0,0,"",null,null,null,null,null,0,""]
[null,"",null,null,null,null,null,null,0,null,null,null,null,0,0,"",null,null,null,null,null,0,""]
[null,"",null,null,null,null,null,null,0,null,null,null,null,0,0,"",null,null,null,null,null,0,""]
[null,"",null,null,null,null,null,null,0,null,null,null,null,0,0,"",null,null,null,null,null,0,""]
[null,"",null,null,null,null,null,null,0,null,null,null,null,0,0,"",null,null,null,null,null,0,""]
[null,"",null,null,null,null,null,null,0,null,null,null,null,0,0,"",null,null,null,null,null,0,""]
[null,"",null,null,null,null,null,null,0,null,null,null,null,0,0,"",null,null,null,null,null,0,""]
[null,"",null,null,null,null,null,null,0,null,null,null,null,0,0,"",null,null,null,null,null,0,""]
[null,"",null,null,null,null,null,null,0,null,null,null,null,0,0,"",null,null,null,null,null,0,""]
[null,"",null,null,null,null,null,null,0,null,null,null,null,0,0,"",null,null,null,null,null,0,""]
[null,"",null,null,null,null,null,null,0,null,null,null,null,0,0,"",null,null,null,null,null,0,""]
[null,"",null,null,null,null,null,null,0,null,null,null,null,0,0,"",null,null,null,null,null,0,""]
[null,"",null,null,null,null,null,null,0,null,null,null,null,0,0,"",null,null,null,null,null,0,""]
[null,"",null,null,null,null,null,null,0,null,null,null,null,0,0,"",null,null,null,null,null,0,""]
[null,"",null,null,null,null,null,null,0,null,null,null,null,0,0,"",null,null,null,null,null,0,""]
[null,"",null,null,null,null,null,null,0,null,null,null,null,0,0,"",null,null,null,null,null,0,""]
[null,"",null,null,null,null,null,null,0,null,null,null,null,0,0,"",null,null,null,null,null,0,""]
[null,"",null,null,null,null,null,null,0,null,null,null,null,0,0,"",null,null,null,null,null,0,""]
[null,"",null,null,null,null,null,null,0,null,null,null,null,0,0,"",null,null,null,null,null,0,""]
[null,"",null,null,null,null,null,null,0,null,null,null,null,0,0,"",null,null,null,null,null,0,""]
[null,"",null,null,null,null,null,null,0,null,null,null,null,0,0,"",null,null,null,null,null,0,""]
[null,"",null,null,null,null,null,null,0,null,null,null,null,0,0,"",null,null,null,null,null,0,""]
[null,"",null,null,null,null,null,null,0,null,null,null,null,0,0,"",null,null,null,null,null,0,""]
[null,"",null,null,null,null,null,null,0,null,null,null,null,0,0,"",null,null,null,null,null,0,""]
[null,"",null,null,null,null,null,null,0,null,null,null,null,0,0,"",null,null,null,null,null,0,""]
[null,"",null,null,null,null,null,null,0,null,null,null,null,{"$f":"MOD((VALUE(MID(TEXT(A454,\"000000000000000\"),15,1))*3+VALUE(MID(TEXT(A454,\"000000000000000\"),14,1))*7+VALUE(MID(TEXT(A454,\"000000000000000\"),13,1))*13+VALUE(MID(TEXT(A454,\"000000000000000\"),12,1))*17+VALUE(MID(TEXT(A454,\"000000000000000\"),11,1))*19+VALUE(MID(TEXT(A454,\"000000000000000\"),10,1))*23+VALUE(MID(TEXT(A454,\"000000000000000\"),9,1))*29+VALUE(MID(TEXT(A454,\"000000000000000\"),8,1))*37+VALUE(MID(TEXT(A454,\"000000000000000\"),7,1))*41+VALUE(MID(TEXT(A454,\"000000000000000\"),6,1))*43+VALUE(MID(TEXT(A454,\"000000000000000\"),5,1))*47+VALUE(MID(TEXT(A454,\"000000000000000\"),4,1))*53+VALUE(MID(TEXT(A454,\"000000000000000\"),3,1))*59+VALUE(MID(TEXT(A454,\"000000000000000\"),2,1))*67+VALUE(MID(TEXT(A454,\"000000000000000\"),1,1))*71),11)","v":0},0,{"$f":"IF(H454=\"REGISTRO ACTIVO\",O454,\"\")","v":""},null,null,null,null,null,0,""]
[null,{"$f":"+P455","v":""},null,null,null,null,null,null,{"$f":"IF(H455=\"REGISTRO ACTIVO\",1,0)","v":0},null,null,null,null,0,{"$f":"IF(N455=0,0,IF(N455=1,1,11-N455))","v":0},"",null,null,null,null,null,{"$f":"IF(H455=\"\",0,1)","v":0},{"$f":"IF(AND(A455>0,H455=\"\",$V$5007>0),\"NO\",\"\")","v":""}]
[null,"",null,null,null,null,null,null,0,null,null,null,null,0,0,"",null,null,null,null,null,0,""]
[null,"",null,null,null,null,null,null,0,null,null,null,null,0,0,"",null,null,null,null,null,0,""]
[null,"",null,null,null,null,null,null,0,null,null,null,null,0,0,"",null,null,null,null,null,0,""]
[null,"",null,null,null,null,null,null,0,null,null,null,null,0,0,"",null,null,null,null,null,0,""]
[null,"",null,null,null,null,null,null,0,null,null,null,null,0,0,"",null,null,null,null,null,0,""]
[null,"",null,null,null,null,null,null,0,null,null,null,null,0,0,"",null,null,null,null,null,0,""]
[null,"",null,null,null,null,null,null,0,null,null,null,null,0,0,"",null,null,null,null,null,0,""]
[null,"",null,null,null,null,null,null,0,null,null,null,null,0,0,"",null,null,null,null,null,0,""]
[null,"",null,null,null,null,null,null,0,null,null,null,null,0,0,"",null,null,null,null,null,0,""]
[null,"",null,null,null,null,null,null,0,null,null,null,null,0,0,"",null,null,null,null,null,0,""]
[null,"",null,null,null,null,null,null,0,null,null,null,null,0,0,"",null,null,null,null,null,0,""]
[null,"",null,null,null,null,null,null,0,null,null,null,null,0,0,"",null,null,null,null,null,0,""]
[null,"",null,null,null,null,null,null,0,null,null,null,null,0,0,"",null,null,null,null,null,0,""]
[null,"",null,null,null,null,null,null,0,null,null,null,null,0,0,"",null,null,null,null,null,0,""]
[null,"",null,null,null,null,null,null,0,null,null,null,null,0,0,"",null,null,null,null,null,0,""]
[null,"",null,null,null,null,null,null,0,null,null,null,null,0,0,"",null,null,null,null,null,0,""]
[null,"",null,null,null,null,null,null,0,null,null,null,null,0,0,"",null,null,null,null,null,0,""]
[null,"",null,null,null,null,null,null,0,null,null,null,null,0,0,"",null,null,null,null,null,0,""]
[null,"",null,null,null,null,null,null,0,null,null,null,null,0,0,"",null,null,null,null,null,0,""]
[null,"",null,null,null,null,null,null,0,null,null,null,null,0,0,"",null,null,null,null,null,0,""]
[null,"",null,null,null,null,null,null,0,null,null,null,null,0,0,"",null,null,null,null,null,0,""]
[null,"",null,null,null,null,null,null,0,null,null,null,null,0,0,"",null,null,null,null,null,0,""]
[null,"",null,null,null,null,null,null,0,null,null,null,null,0,0,"",null,null,null,null,null,0,""]
[null,"",null,null,null,null,null,null,0,null,null,null,null,0,0,"",null,null,null,null,null,0,""]
[null,"",null,null,null,null,null,null,0,null,null,null,null,0,0,"",null,null,null,null,null,0,""]
[null,"",null,null,null,null,null,null,0,null,null,null,null,0,0,"",null,null,null,null,null,0,""]
[null,"",null,null,null,null,null,null,0,null,null,null,null,0,0,"",null,null,null,null,null,0,""]
[null,"",null,null,null,null,null,null,0,null,null,null,null,0,0,"",null,null,null,null,null,0,""]
[null,"",null,null,null,null,null,null,0,null,null,null,null,0,0,"",null,null,null,null,null,0,""]
[null,"",null,null,null,null,null,null,0,null,null,null,null,0,0,"",null,null,null,null,null,0,""]
[null,"",null,null,null,null,null,null,0,null,null,null,null,0,0,"",null,null,null,null,null,0,""]
[null,"",null,null,null,null,null,null,0,null,null,null,null,0,0,"",null,null,null,null,null,0,""]
[null,"",null,null,null,null,null,null,0,null,null,null,null,0,0,"",null,null,null,null,null,0,""]
[null,"",null,null,null,null,null,null,0,null,null,null,null,0,0,"",null,null,null,null,null,0,""]
[null,"",null,null,null,null,null,null,0,null,null,null,null,0,0,"",null,null,null,null,null,0,""]
[null,"",null,null,null,null,null,null,0,null,null,null,null,0,0,"",null,null,null,null,null,0,""]
[null,"",null,null,null,null,null,null,0,null,null,null,null,0,0,"",null,null,null,null,null,0,""]
[null,"",null,null,null,null,null,null,0,null,null,null,null,0,0,"",null,null,null,null,null,0,""]
[null,"",null,null,null,null,null,null,0,null,null,null,null,0,0,"",null,null,null,null,null,0,""]
[null,"",null,null,null,null,null,null,0,null,null,null,null,0,0,"",null,null,null,null,null,0,""]
[null,"",null,null,null,null,null,null,0,null,null,null,null,0,0,"",null,null,null,null,null,0,""]
[null,"",null,null,null,null,null,null,0,null,null,null,null,0,0,"",null,null,null,null,null,0,""]
[null,"",null,null,null,null,null,null,0,null,null,null,null,0,0,"",null,null,null,null,null,0,""]
[null,"",null,null,null,null,null,null,0,null,null,null,null,0,0,"",null,null,null,null,null,0,""]
[null,"",null,null,null,null,null,null,0,null,null,null,null,0,0,"",null,null,null,null,null,0,""]
[null,"",null,null,null,null,null,null,0,null,null,null,null,0,0,"",null,null,null,null,null,0,""]
[null,"",null,null,null,null,null,null,0,null,null,null,null,0,0,"",null,null,null,null,null,0,""]
[null,"",null,null,null,null,null,null,0,null,null,null,null,0,0,"",null,null,null,null,null,0,""]
[null,"",null,null,null,null,null,null,0,null,null,null,null,0,0,"",null,null,null,null,null,0,""]
[null,"",null,null,null,null,null,null,0,null,null,null,null,0,0,"",null,null,null,null,null,0,""]
[null,"",null,null,null,null,null,null,0,null,null,null,null,0,0,"",null,null,null,null,null,0,""]
[null,"",null,null,null,null,null,null,0,null,null,null,null,0,0,"",null,null,null,null,null,0,""]
[null,"",null,null,null,null,null,null,0,null,null,null,null,0,0,"",null,null,null,null,null,0,""]
[null,"",null,null,null,null,null,null,0,null,null,null,null,0,0,"",null,null,null,null,null,0,""]
[null,"",null,null,null,null,null,null,0,null,null,null,null,0,0,"",null,null,null,null,null,0,""]
[null,"",null,null,null,null,null,null,0,null,null,null,null,0,0,"",null,null,null,null,null,0,""]
[null,"",null,null,null,null,null,null,0,null,null,null,null,0,0,"",null,null,null,null,null,0,""]
[null,"",null,null,null,null,null,null,0,null,null,null,null,0,0,"",null,null,null,null,null,0,""]
[null,"",null,null,null,null,null,null,0,null,null,null,null,0,0,"",null,null,null,null,null,0,""]
[null,"",null,null,null,null,null,null,0,null,null,null,null,0,0,"",null,null,null,null,null,0,""]
[null,"",null,null,null,null,null,null,0,null,null,null,null,0,0,"",null,null,null,null,null,0,""]
[null,"",null,null,null,null,null,null,0,null,null,null,null,0,0,"",null,null,null,null,null,0,""]
[null,"",null,null,null,null,null,null,0,null,null,null,null,{"$f":"MOD((VALUE(MID(TEXT(A518,\"000000000000000\"),15,1))*3+VALUE(MID(TEXT(A518,\"000000000000000\"),14,1))*7+VALUE(MID(TEXT(A518,\"000000000000000\"),13,1))*13+VALUE(MID(TEXT(A518,\"000000000000000\"),12,1))*17+VALUE(MID(TEXT(A518,\"000000000000000\"),11,1))*19+VALUE(MID(TEXT(A518,\"000000000000000\"),10,1))*23+VALUE(MID(TEXT(A518,\"000000000000000\"),9,1))*29+VALUE(MID(TEXT(A518,\"000000000000000\"),8,1))*37+VALUE(MID(TEXT(A518,\"000000000000000\"),7,1))*41+VALUE(MID(TEXT(A518,\"000000000000000\"),6,1))*43+VALUE(MID(TEXT(A518,\"000000000000000\"),5,1))*47+VALUE(MID(TEXT(A518,\"000000000000000\"),4,1))*53+VALUE(MID(TEXT(A518,\"000000000000000\"),3,1))*59+VALUE(MID(TEXT(A518,\"000000000000000\"),2,1))*67+VALUE(MID(TEXT(A518,\"000000000000000\"),1,1))*71),11)","v":0},0,{"$f":"IF(H518=\"REGISTRO ACTIVO\",O518,\"\")","v":""},null,null,null,null,null,0,""]
[null,{"$f":"+P519","v":""},null,null,null,null,null,null,{"$f":"IF(H519=\"REGISTRO ACTIVO\",1,0)","v":0},null,null,null,null,0,{"$f":"IF(N519=0,0,IF(N519=1,1,11-N519))","v":0},"",null,null,null,null,null,{"$f":"IF(H519=\"\",0,1)","v":0},{"$f":"IF(AND(A519>0,H519=\"\",$V$5007>0),\"NO\",\"\")","v":""}]
[null,"",null,null,null,null,null,null,0,null,null,null,null,0,0,"",null,null,null,null,null,0,""]
[null,"",null,null,null,null,null,null,0,null,null,null,null,0,0,"",null,null,null,null,null,0,""]
[null,"",null,null,null,null,null,null,0,null,null,null,null,0,0,"",null,null,null,null,null,0,""]
[null,"",null,null,null,null,null,null,0,null,null,null,null,0,0,"",null,null,null,null,null,0,""]
[null,"",null,null,null,null,null,null,0,null,null,null,null,0,0,"",null,null,null,null,null,0,""]
[null,"",null,null,null,null,null,null,0,null,null,null,null,0,0,"",null,null,null,null,null,0,""]
[null,"",null,null,null,null,null,null,0,null,null,null,null,0,0,"",null,null,null,null,null,0,""]
[null,"",null,null,null,null,null,null,0,null,null,null,null,0,0,"",null,null,null,null,null,0,""]
[null,"",null,null,null,null,null,null,0,null,null,null,null,0,0,"",null,null,null,null,null,0,""]
[null,"",null,null,null,null,null,null,0,null,null,null,null,0,0,"",null,null,null,null,null,0,""]
[null,"",null,null,null,null,null,null,0,null,null,null,null,0,0,"",null,null,null,null,null,0,""]
[null,"",null,null,null,null,null,null,0,null,null,null,null,0,0,"",null,null,null,null,null,0,""]
[null,"",null,null,null,null,null,null,0,null,null,null,null,0,0,"",null,null,null,null,null,0,""]
[null,"",null,null,null,null,null,null,0,null,null,null,null,0,0,"",null,null,null,null,null,0,""]
[null,"",null,null,null,null,null,null,0,null,null,null,null,0,0,"",null,null,null,null,null,0,""]
[null,"",null,null,null,null,null,null,0,null,null,null,null,0,0,"",null,null,null,null,null,0,""]
[null,"",null,null,null,null,null,null,0,null,null,null,null,0,0,"",null,null,null,null,null,0,""]
[null,"",null,null,null,null,null,null,0,null,null,null,null,0,0,"",null,null,null,null,null,0,""]
[null,"",null,null,null,null,null,null,0,null,null,null,null,0,0,"",null,null,null,null,null,0,""]
[null,"",null,null,null,null,null,null,0,null,null,null,null,0,0,"",null,null,null,null,null,0,""]
[null,"",null,null,null,null,null,null,0,null,null,null,null,0,0,"",null,null,null,null,null,0,""]
[null,"",null,null,null,null,null,null,0,null,null,null,null,0,0,"",null,null,null,null,null,0,""]
[null,"",null,null,null,null,null,null,0,null,null,null,null,0,0,"",null,null,null,null,null,0,""]
[null,"",null,null,null,null,null,null,0,null,null,null,null,0,0,"",null,null,null,null,null,0,""]
[null,"",null,null,null,null,null,null,0,null,null,null,null,0,0,"",null,null,null,null,null,0,""]
[null,"",null,null,null,null,null,null,0,null,null,null,null,0,0,"",null,null,null,null,null,0,""]
[null,"",null,null,null,null,null,null,0,null,null,null,null,0,0,"",null,null,null,null,null,0,""]
[null,"",null,null,null,null,null,null,0,null,null,null,null,0,0,"",null,null,null,null,null,0,""]
[null,"",null,null,null,null,null,null,0,null,null,null,null,0,0,"",null,null,null,null,null,0,""]
[null,"",null,null,null,null,null,null,0,null,null,null,null,0,0,"",null,null,null,null,null,0,""]
[null,"",null,null,null,null,null,null,0,null,null,null,null,0,0,"",null,null,null,null,null,0,""]
[null,"",null,null,null,null,null,null,0,null,null,null,null,0,0,"",null,null,null,null,null,0,""]
[null,"",null,null,null,null,null,null,0,null,null,null,null,0,0,"",null,null,null,null,null,0,""]
[null,"",null,null,null,null,null,null,0,null,null,null,null,0,0,"",null,null,null,null,null,0,""]
[null,"",null,null,null,null,null,null,0,null,null,null,null,0,0,"",null,null,null,null,null,0,""]
[null,"",null,null,null,null,null,null,0,null,null,null,null,0,0,"",null,null,null,null,null,0,""]
[null,"",null,null,null,null,null,null,0,null,null,null,null,0,0,"",null,null,null,null,null,0,""]
[null,"",null,null,null,null,null,null,0,null,null,null,null,0,0,"",null,null,null,null,null,0,""]
[null,"",null,null,null,null,null,null,0,null,null,null,null,0,0,"",null,null,null,null,null,0,""]
[null,"",null,null,null,null,null,null,0,null,null,null,null,0,0,"",null,null,null,null,null,0,""]
[null,"",null,null,null,null,null,null,0,null,null,null,null,0,0,"",null,null,null,null,null,0,""]
[null,"",null,null,null,null,null,null,0,null,null,null,null,0,0,"",null,null,null,null,null,0,""]
[null,"",null,null,null,null,null,null,0,null,null,null,null,0,0,"",null,null,null,null,null,0,""]
[null,"",null,null,null,null,null,null,0,null,null,null,null,0,0,"",null,null,null,null,null,0,""]
[null,"",null,null,null,null,null,null,0,null,null,null,null,0,0,"",null,null,null,null,null,0,""]
[null,"",null,null,null,null,null,null,0,null,null,null,null,0,0,"",null,null,null,null,null,0,""]
[null,"",null,null,null,null,null,null,0,null,null,null,null,0,0,"",null,null,null,null,null,0,""]
[null,"",null,null,null,null,null,null,0,null,null,null,null,0,0,"",null,null,null,null,null,0,""]
[null,"",null,null,null,null,null,null,0,null,null,null,null,0,0,"",null,null,null,null,null,0,""]
[null,"",null,null,null,null,null,null,0,null,null,null,null,0,0,"",null,null,null,null,null,0,""]
[null,"",null,null,null,null,null,null,0,null,null,null,null,0,0,"",null,null,null,null,null,0,""]
[null,"",null,null,null,null,null,null,0,null,null,null,null,0,0,"",null,null,null,null,null,0,""]
[null,"",null,null,null,null,null,null,0,null,null,null,null,0,0,"",null,null,null,null,null,0,""]
[null,"",null,null,null,null,null,null,0,null,null,null,null,0,0,"",null,null,null,null,null,0,""]
[null,"",null,null,null,null,null,null,0,null,null,null,null,0,0,"",null,null,null,null,null,0,""]
[null,"",null,null,null,null,null,null,0,null,null,null,null,0,0,"",null,null,null,null,null,0,""]
[null,"",null,null,null,null,null,null,0,null,null,null,null,0,0,"",null,null,null,null,null,0,""]
[null,"",null,null,null,null,null,null,0,null,null,null,null,0,0,"",null,null,null,null,null,0,""]
[null,"",null,null,null,null,null,null,0,null,null,null,null,0,0,"",null,null,null,null,null,0,""]
[null,"",null,null,null,null,null,null,0,null,null,null,null,0,0,"",null,null,null,null,null,0,""]
[null,"",null,null,null,null,null,null,0,null,null,null,null,0,0,"",null,null,null,null,null,0,""]
[null,"",null,null,null,null,null,null,0,null,null,null,null,0,0,"",null,null,null,null,null,0,""]
[null,"",null,null,null,null,null,null,0,null,null,null,null,{"$f":"MOD((VALUE(MID(TEXT(A582,\"000000000000000\"),15,1))*3+VALUE(MID(TEXT(A582,\"000000000000000\"),14,1))*7+VALUE(MID(TEXT(A582,\"000000000000000\"),13,1))*13+VALUE(MID(TEXT(A582,\"000000000000000\"),12,1))*17+VALUE(MID(TEXT(A582,\"000000000000000\"),11,1))*19+VALUE(MID(TEXT(A582,\"000000000000000\"),10,1))*23+VALUE(MID(TEXT(A582,\"000000000000000\"),9,1))*29+VALUE(MID(TEXT(A582,\"000000000000000\"),8,1))*37+VALUE(MID(TEXT(A582,\"000000000000000\"),7,1))*41+VALUE(MID(TEXT(A582,\"000000000000000\"),6,1))*43+VALUE(MID(TEXT(A582,\"000000000000000\"),5,1))*47+VALUE(MID(TEXT(A582,\"000000000000000\"),4,1))*53+VALUE(MID(TEXT(A582,\"000000000000000\"),3,1))*59+VALUE(MID(TEXT(A582,\"000000000000000\"),2,1))*67+VALUE(MID(TEXT(A582,\"000000000000000\"),1,1))*71),11)","v":0},0,{"$f":"IF(H582=\"REGISTRO ACTIVO\",O582,\"\")","v":""},null,null,null,null,null,0,""]
[null,{"$f":"+P583","v":""},null,null,null,null,null,null,{"$f":"IF(H583=\"REGISTRO ACTIVO\",1,0)","v":0},null,null,null,null,0,{"$f":"IF(N583=0,0,IF(N583=1,1,11-N583))","v":0},"",null,null,null,null,null,{"$f":"IF(H583=\"\",0,1)","v":0},{"$f":"IF(AND(A583>0,H583=\"\",$V$5007>0),\"NO\",\"\")","v":""}]
[null,"",null,null,null,null,null,null,0,null,null,null,null,0,0,"",null,null,null,null,null,0,""]
[null,"",null,null,null,null,null,null,0,null,null,null,null,0,0,"",null,null,null,null,null,0,""]
[null,"",null,null,null,null,null,null,0,null,null,null,null,0,0,"",null,null,null,null,null,0,""]
[null,"",null,null,null,null,null,null,0,null,null,null,null,0,0,"",null,null,null,null,null,0,""]
[null,"",null,null,null,null,null,null,0,null,null,null,null,0,0,"",null,null,null,null,null,0,""]
[null,"",null,null,null,null,null,null,0,null,null,null,null,0,0,"",null,null,null,null,null,0,""]
[null,"",null,null,null,null,null,null,0,null,null,null,null,0,0,"",null,null,null,null,null,0,""]
[null,"",null,null,null,null,null,null,0,null,null,null,null,0,0,"",null,null,null,null,null,0,""]
[null,"",null,null,null,null,null,null,0,null,null,null,null,0,0,"",null,null,null,null,null,0,""]
[null,"",null,null,null,null,null,null,0,null,null,null,null,0,0,"",null,null,null,null,null,0,""]
[null,"",null,null,null,null,null,null,0,null,null,null,null,0,0,"",null,null,null,null,null,0,""]
[null,"",null,null,null,null,null,null,0,null,null,null,null,0,0,"",null,null,null,null,null,0,""]
[null,"",null,null,null,null,null,null,0,null,null,null,null,0,0,"",null,null,null,null,null,0,""]
[null,"",null,null,null,null,null,null,0,null,null,null,null,0,0,"",null,null,null,null,null,0,""]
[null,"",null,null,null,null,null,null,0,null,null,null,null,0,0,"",null,null,null,null,null,0,""]
[null,"",null,null,null,null,null,null,0,null,null,null,null,0,0,"",null,null,null,null,null,0,""]
[null,"",null,null,null,null,null,null,0,null,null,null,null,0,0,"",null,null,null,null,null,0,""]
[null,"",null,null,null,null,null,null,0,null,null,null,null,0,0,"",null,null,null,null,null,0,""]
[null,"",null,null,null,null,null,null,0,null,null,null,null,0,0,"",null,null,null,null,null,0,""]
[null,"",null,null,null,null,null,null,0,null,null,null,null,0,0,"",null,null,null,null,null,0,""]
[null,"",null,null,null,null,null,null,0,null,null,null,null,0,0,"",null,null,null,null,null,0,""]
[null,"",null,null,null,null,null,null,0,null,null,null,null,0,0,"",null,null,null,null,null,0,""]
[null,"",null,null,null,null,null,null,0,null,null,null,null,0,0,"",null,null,null,null,null,0,""]
[null,"",null,null,null,null,null,null,0,null,null,null,null,0,0,"",null,null,null,null,null,0,""]
[null,"",null,null,null,null,null,null,0,null,null,null,null,0,0,"",null,null,null,null,null,0,""]
[null,"",null,null,null,null,null,null,0,null,null,null,null,0,0,"",null,null,null,null,null,0,""]
[null,"",null,null,null,null,null,null,0,null,null,null,null,0,0,"",null,null,null,null,null,0,""]
[null,"",null,null,null,null,null,null,0,null,null,null,null,0,0,"",null,null,null,null,null,0,""]
[null,"",null,null,null,null,null,null,0,null,null,null,null,0,0,"",null,null,null,null,null,0,""]
[null,"",null,null,null,null,null,null,0,null,null,null,null,0,0,"",null,null,null,null,null,0,""]
[null,"",null,null,null,null,null,null,0,null,null,null,null,0,0,"",null,null,null,null,null,0,""]
[null,"",null,null,null,null,null,null,0,null,null,null,null,0,0,"",null,null,null,null,null,0,""]
[null,"",null,null,null,null,null,null,0,null,null,null,null,0,0,"",null,null,null,null,null,0,""]
[null,"",null,null,null,null,null,null,0,null,null,null,null,0,0,"",null,null,null,null,null,0,""]
[null,"",null,null,null,null,null,null,0,null,null,null,null,0,0,"",null,null,null,null,null,0,""]
[null,"",null,null,null,null,null,null,0,null,null,null,null,0,0,"",null,null,null,null,null,0,""]
[null,"",null,null,null,null,null,null,0,null,null,null,null,0,0,"",null,null,null,null,null,0,""]
[null,"",null,null,null,null,null,null,0,null,null,null,null,0,0,"",null,null,null,null,null,0,""]
[null,"",null,null,null,null,null,null,0,null,null,null,null,0,0,"",null,null,null,null,null,0,""]
[null,"",null,null,null,null,null,null,0,null,null,null,null,0,0,"",null,null,null,null,null,0,""]
[null,"",null,null,null,null,null,null,0,null,null,null,null,0,0,"",null,null,null,null,null,0,""]
[null,"",null,null,null,null,null,null,0,null,null,null,null,0,0,"",null,null,null,null,null,0,""]
[null,"",null,null,null,null,null,null,0,null,null,null,null,0,0,"",null,null,null,null,null,0,""]
[null,"",null,null,null,null,null,null,0,null,null,null,null,0,0,"",null,null,null,null,null,0,""]
[null,"",null,null,null,null,null,null,0,null,null,null,null,0,0,"",null,null,null,null,null,0,""]
[null,"",null,null,null,null,null,null,0,null,null,null,null,0,0,"",null,null,null,null,null,0,""]
[null,"",null,null,null,null,null,null,0,null,null,null,null,0,0,"",null,null,null,null,null,0,""]
[null,"",null,null,null,null,null,null,0,null,null,null,null,0,0,"",null,null,null,null,null,0,""]
[null,"",null,null,null,null,null,null,0,null,null,null,null,0,0,"",null,null,null,null,null,0,""]
[null,"",null,null,null,null,null,null,0,null,null,null,null,0,0,"",null,null,null,null,null,0,""]
[null,"",null,null,null,null,null,null,0,null,null,null,null,0,0,"",null,null,null,null,null,0,""]
[null,"",null,null,null,null,null,null,0,null,null,null,null,0,0,"",null,null,null,null,null,0,""]
[null,"",null,null,null,null,null,null,0,null,null,null,null,0,0,"",null,null,null,null,null,0,""]
[null,"",null,null,null,null,null,null,0,null,null,null,null,0,0,"",null,null,null,null,null,0,""]
[null,"",null,null,null,null,null,null,0,null,null,null,null,0,0,"",null,null,null,null,null,0,""]
[null,"",null,null,null,null,null,null,0,null,null,null,null,0,0,"",null,null,null,null,null,0,""]
[null,"",null,null,null,null,null,null,0,null,null,null,null,0,0,"",null,null,null,null,null,0,""]
[null,"",null,null,null,null,null,null,0,null,null,null,null,0,0,"",null,null,null,null,null,0,""]
[null,"",null,null,null,null,null,null,0,null,null,null,null,0,0,"",null,null,null,null,null,0,""]
[null,"",null,null,null,null,null,null,0,null,null,null,null,0,0,"",null,null,null,null,null,0,""]
[null,"",null,null,null,null,null,null,0,null,null,null,null,0,0,"",null,null,null,null,null,0,""]
[null,"",null,null,null,null,null,null,0,null,null,null,null,0,0,"",null,null,null,null,null,0,""]
[null,"",null,null,null,null,null,null,0,null,null,null,null,{"$f":"MOD((VALUE(MID(TEXT(A646,\"000000000000000\"),15,1))*3+VALUE(MID(TEXT(A646,\"000000000000000\"),14,1))*7+VALUE(MID(TEXT(A646,\"000000000000000\"),13,1))*13+VALUE(MID(TEXT(A646,\"000000000000000\"),12,1))*17+VALUE(MID(TEXT(A646,\"000000000000000\"),11,1))*19+VALUE(MID(TEXT(A646,\"000000000000000\"),10,1))*23+VALUE(MID(TEXT(A646,\"000000000000000\"),9,1))*29+VALUE(MID(TEXT(A646,\"000000000000000\"),8,1))*37+VALUE(MID(TEXT(A646,\"000000000000000\"),7,1))*41+VALUE(MID(TEXT(A646,\"000000000000000\"),6,1))*43+VALUE(MID(TEXT(A646,\"000000000000000\"),5,1))*47+VALUE(MID(TEXT(A646,\"000000000000000\"),4,1))*53+VALUE(MID(TEXT(A646,\"000000000000000\"),3,1))*59+VALUE(MID(TEXT(A646,\"000000000000000\"),2,1))*67+VALUE(MID(TEXT(A646,\"000000000000000\"),1,1))*71),11)","v":0},0,{"$f":"IF(H646=\"REGISTRO ACTIVO\",O646,\"\")","v":""},null,null,null,null,null,0,""]
[null,{"$f":"+P647","v":""},null,null,null,null,null,null,{"$f":"IF(H647=\"REGISTRO ACTIVO\",1,0)","v":0},null,null,null,null,0,{"$f":"IF(N647=0,0,IF(N647=1,1,11-N647))","v":0},"",null,null,null,null,null,{"$f":"IF(H647=\"\",0,1)","v":0},{"$f":"IF(AND(A647>0,H647=\"\",$V$5007>0),\"NO\",\"\")","v":""}]
[null,"",null,null,null,null,null,null,0,null,null,null,null,0,0,"",null,null,null,null,null,0,""]
[null,"",null,null,null,null,null,null,0,null,null,null,null,0,0,"",null,null,null,null,null,0,""]
[null,"",null,null,null,null,null,null,0,null,null,null,null,0,0,"",null,null,null,null,null,0,""]
[null,"",null,null,null,null,null,null,0,null,null,null,null,0,0,"",null,null,null,null,null,0,""]
[null,"",null,null,null,null,null,null,0,null,null,null,null,0,0,"",null,null,null,null,null,0,""]
[null,"",null,null,null,null,null,null,0,null,null,null,null,0,0,"",null,null,null,null,null,0,""]
[null,"",null,null,null,null,null,null,0,null,null,null,null,0,0,"",null,null,null,null,null,0,""]
[null,"",null,null,null,null,null,null,0,null,null,null,null,0,0,"",null,null,null,null,null,0,""]
[null,"",null,null,null,null,null,null,0,null,null,null,null,0,0,"",null,null,null,null,null,0,""]
[null,"",null,null,null,null,null,null,0,null,null,null,null,0,0,"",null,null,null,null,null,0,""]
[null,"",null,null,null,null,null,null,0,null,null,null,null,0,0,"",null,null,null,null,null,0,""]
[null,"",null,null,null,null,null,null,0,null,null,null,null,0,0,"",null,null,null,null,null,0,""]
[null,"",null,null,null,null,null,null,0,null,null,null,null,0,0,"",null,null,null,null,null,0,""]
[null,"",null,null,null,null,null,null,0,null,null,null,null,0,0,"",null,null,null,null,null,0,""]
[null,"",null,null,null,null,null,null,0,null,null,null,null,0,0,"",null,null,null,null,null,0,""]
[null,"",null,null,null,null,null,null,0,null,null,null,null,0,0,"",null,null,null,null,null,0,""]
[null,"",null,null,null,null,null,null,0,null,null,null,null,0,0,"",null,null,null,null,null,0,""]
[null,"",null,null,null,null,null,null,0,null,null,null,null,0,0,"",null,null,null,null,null,0,""]
[null,"",null,null,null,null,null,null,0,null,null,null,null,0,0,"",null,null,null,null,null,0,""]
[null,"",null,null,null,null,null,null,0,null,null,null,null,0,0,"",null,null,null,null,null,0,""]
[null,"",null,null,null,null,null,null,0,null,null,null,null,0,0,"",null,null,null,null,null,0,""]
[null,"",null,null,null,null,null,null,0,null,null,null,null,0,0,"",null,null,null,null,null,0,""]
[null,"",null,null,null,null,null,null,0,null,null,null,null,0,0,"",null,null,null,null,null,0,""]
[null,"",null,null,null,null,null,null,0,null,null,null,null,0,0,"",null,null,null,null,null,0,""]
[null,"",null,null,null,null,null,null,0,null,null,null,null,0,0,"",null,null,null,null,null,0,""]
[null,"",null,null,null,null,null,null,0,null,null,null,null,0,0,"",null,null,null,null,null,0,""]
[null,"",null,null,null,null,null,null,0,null,null,null,null,0,0,"",null,null,null,null,null,0,""]
[null,"",null,null,null,null,null,null,0,null,null,null,null,0,0,"",null,null,null,null,null,0,""]
[null,"",null,null,null,null,null,null,0,null,null,null,null,0,0,"",null,null,null,null,null,0,""]
[null,"",null,null,null,null,null,null,0,null,null,null,null,0,0,"",null,null,null,null,null,0,""]
[null,"",null,null,null,null,null,null,0,null,null,null,null,0,0,"",null,null,null,null,null,0,""]
[null,"",null,null,null,null,null,null,0,null,null,null,null,0,0,"",null,null,null,null,null,0,""]
[null,"",null,null,null,null,null,null,0,null,null,null,null,0,0,"",null,null,null,null,null,0,""]
[null,"",null,null,null,null,null,null,0,null,null,null,null,0,0,"",null,null,null,null,null,0,""]
[null,"",null,null,null,null,null,null,0,null,null,null,null,0,0,"",null,null,null,null,null,0,""]
[null,"",null,null,null,null,null,null,0,null,null,null,null,0,0,"",null,null,null,null,null,0,""]
[null,"",null,null,null,null,null,null,0,null,null,null,null,0,0,"",null,null,null,null,null,0,""]
[null,"",null,null,null,null,null,null,0,null,null,null,null,0,0,"",null,null,null,null,null,0,""]
[null,"",null,null,null,null,null,null,0,null,null,null,null,0,0,"",null,null,null,null,null,0,""]
[null,"",null,null,null,null,null,null,0,null,null,null,null,0,0,"",null,null,null,null,null,0,""]
[null,"",null,null,null,null,null,null,0,null,null,null,null,0,0,"",null,null,null,null,null,0,""]
[null,"",null,null,null,null,null,null,0,null,null,null,null,0,0,"",null,null,null,null,null,0,""]
[null,"",null,null,null,null,null,null,0,null,null,null,null,0,0,"",null,null,null,null,null,0,""]
[null,"",null,null,null,null,null,null,0,null,null,null,null,0,0,"",null,null,null,null,null,0,""]
[null,"",null,null,null,null,null,null,0,null,null,null,null,0,0,"",null,null,null,null,null,0,""]
[null,"",null,null,null,null,null,null,0,null,null,null,null,0,0,"",null,null,null,null,null,0,""]
[null,"",null,null,null,null,null,null,0,null,null,null,null,0,0,"",null,null,null,null,null,0,""]
[null,"",null,null,null,null,null,null,0,null,null,null,null,0,0,"",null,null,null,null,null,0,""]
[null,"",null,null,null,null,null,null,0,null,null,null,null,0,0,"",null,null,null,null,null,0,""]
[null,"",null,null,null,null,null,null,0,null,null,null,null,0,0,"",null,null,null,null,null,0,""]
[null,"",null,null,null,null,null,null,0,null,null,null,null,0,0,"",null,null,null,null,null,0,""]
[null,"",null,null,null,null,null,null,0,null,null,null,null,0,0,"",null,null,null,null,null,0,""]
[null,"",null,null,null,null,null,null,0,null,null,null,null,0,0,"",null,null,null,null,null,0,""]
[null,"",null,null,null,null,null,null,0,null,null,null,null,0,0,"",null,null,null,null,null,0,""]
[null,"",null,null,null,null,null,null,0,null,null,null,null,0,0,"",null,null,null,null,null,0,""]
[null,"",null,null,null,null,null,null,0,null,null,null,null,0,0,"",null,null,null,null,null,0,""]
[null,"",null,null,null,null,null,null,0,null,null,null,null,0,0,"",null,null,null,null,null,0,""]
[null,"",null,null,null,null,null,null,0,null,null,null,null,0,0,"",null,null,null,null,null,0,""]
[null,"",null,null,null,null,null,null,0,null,null,null,null,0,0,"",null,null,null,null,null,0,""]
[null,"",null,null,null,null,null,null,0,null,null,null,null,0,0,"",null,null,null,null,null,0,""]
[null,"",null,null,null,null,null,null,0,null,null,null,null,0,0,"",null,null,null,null,null,0,""]
[null,"",null,null,null,null,null,null,0,null,null,null,null,0,0,"",null,null,null,null,null,0,""]
[null,"",null,null,null,null,null,null,0,null,null,null,null,{"$f":"MOD((VALUE(MID(TEXT(A710,\"000000000000000\"),15,1))*3+VALUE(MID(TEXT(A710,\"000000000000000\"),14,1))*7+VALUE(MID(TEXT(A710,\"000000000000000\"),13,1))*13+VALUE(MID(TEXT(A710,\"000000000000000\"),12,1))*17+VALUE(MID(TEXT(A710,\"000000000000000\"),11,1))*19+VALUE(MID(TEXT(A710,\"000000000000000\"),10,1))*23+VALUE(MID(TEXT(A710,\"000000000000000\"),9,1))*29+VALUE(MID(TEXT(A710,\"000000000000000\"),8,1))*37+VALUE(MID(TEXT(A710,\"000000000000000\"),7,1))*41+VALUE(MID(TEXT(A710,\"000000000000000\"),6,1))*43+VALUE(MID(TEXT(A710,\"000000000000000\"),5,1))*47+VALUE(MID(TEXT(A710,\"000000000000000\"),4,1))*53+VALUE(MID(TEXT(A710,\"000000000000000\"),3,1))*59+VALUE(MID(TEXT(A710,\"000000000000000\"),2,1))*67+VALUE(MID(TEXT(A710,\"000000000000000\"),1,1))*71),11)","v":0},0,{"$f":"IF(H710=\"REGISTRO ACTIVO\",O710,\"\")","v":""},null,null,null,null,null,0,""]
[null,{"$f":"+P711","v":""},null,null,null,null,null,null,{"$f":"IF(H711=\"REGISTRO ACTIVO\",1,0)","v":0},null,null,null,null,0,{"$f":"IF(N711=0,0,IF(N711=1,1,11-N711))","v":0},"",null,null,null,null,null,{"$f":"IF(H711=\"\",0,1)","v":0},{"$f":"IF(AND(A711>0,H711=\"\",$V$5007>0),\"NO\",\"\")","v":""}]
[null,"",null,null,null,null,null,null,0,null,null,null,null,0,0,"",null,null,null,null,null,0,""]
[null,"",null,null,null,null,null,null,0,null,null,null,null,0,0,"",null,null,null,null,null,0,""]
[null,"",null,null,null,null,null,null,0,null,null,null,null,0,0,"",null,null,null,null,null,0,""]
[null,"",null,null,null,null,null,null,0,null,null,null,null,0,0,"",null,null,null,null,null,0,""]
[null,"",null,null,null,null,null,null,0,null,null,null,null,0,0,"",null,null,null,null,null,0,""]
[null,"",null,null,null,null,null,null,0,null,null,null,null,0,0,"",null,null,null,null,null,0,""]
[null,"",null,null,null,null,null,null,0,null,null,null,null,0,0,"",null,null,null,null,null,0,""]
[null,"",null,null,null,null,null,null,0,null,null,null,null,0,0,"",null,null,null,null,null,0,""]
[null,"",null,null,null,null,null,null,0,null,null,null,null,0,0,"",null,null,null,null,null,0,""]
[null,"",null,null,null,null,null,null,0,null,null,null,null,0,0,"",null,null,null,null,null,0,""]
[null,"",null,null,null,null,null,null,0,null,null,null,null,0,0,"",null,null,null,null,null,0,""]
[null,"",null,null,null,null,null,null,0,null,null,null,null,0,0,"",null,null,null,null,null,0,""]
[null,"",null,null,null,null,null,null,0,null,null,null,null,0,0,"",null,null,null,null,null,0,""]
[null,"",null,null,null,null,null,null,0,null,null,null,null,0,0,"",null,null,null,null,null,0,""]
[null,"",null,null,null,null,null,null,0,null,null,null,null,0,0,"",null,null,null,null,null,0,""]
[null,"",null,null,null,null,null,null,0,null,null,null,null,0,0,"",null,null,null,null,null,0,""]
[null,"",null,null,null,null,null,null,0,null,null,null,null,0,0,"",null,null,null,null,null,0,""]
[null,"",null,null,null,null,null,null,0,null,null,null,null,0,0,"",null,null,null,null,null,0,""]
[null,"",null,null,null,null,null,null,0,null,null,null,null,0,0,"",null,null,null,null,null,0,""]
[null,"",null,null,null,null,null,null,0,null,null,null,null,0,0,"",null,null,null,null,null,0,""]
[null,"",null,null,null,null,null,null,0,null,null,null,null,0,0,"",null,null,null,null,null,0,""]
[null,"",null,null,null,null,null,null,0,null,null,null,null,0,0,"",null,null,null,null,null,0,""]
[null,"",null,null,null,null,null,null,0,null,null,null,null,0,0,"",null,null,null,null,null,0,""]
[null,"",null,null,null,null,null,null,0,null,null,null,null,0,0,"",null,null,null,null,null,0,""]
[null,"",null,null,null,null,null,null,0,null,null,null,null,0,0,"",null,null,null,null,null,0,""]
[null,"",null,null,null,null,null,null,0,null,null,null,null,0,0,"",null,null,null,null,null,0,""]
[null,"",null,null,null,null,null,null,0,null,null,null,null,0,0,"",null,null,null,null,null,0,""]
[null,"",null,null,null,null,null,null,0,null,null,null,null,0,0,"",null,null,null,null,null,0,""]
[null,"",null,null,null,null,null,null,0,null,null,null,null,0,0,"",null,null,null,null,null,0,""]
[null,"",null,null,null,null,null,null,0,null,null,null,null,0,0,"",null,null,null,null,null,0,""]
[null,"",null,null,null,null,null,null,0,null,null,null,null,0,0,"",null,null,null,null,null,0,""]
[null,"",null,null,null,null,null,null,0,null,null,null,null,0,0,"",null,null,null,null,null,0,""]
[null,"",null,null,null,null,null,null,0,null,null,null,null,0,0,"",null,null,null,null,null,0,""]
[null,"",null,null,null,null,null,null,0,null,null,null,null,0,0,"",null,null,null,null,null,0,""]
[null,"",null,null,null,null,null,null,0,null,null,null,null,0,0,"",null,null,null,null,null,0,""]
[null,"",null,null,null,null,null,null,0,null,null,null,null,0,0,"",null,null,null,null,null,0,""]
[null,"",null,null,null,null,null,null,0,null,null,null,null,0,0,"",null,null,null,null,null,0,""]
[null,"",null,null,null,null,null,null,0,null,null,null,null,0,0,"",null,null,null,null,null,0,""]
[null,"",null,null,null,null,null,null,0,null,null,null,null,0,0,"",null,null,null,null,null,0,""]
[null,"",null,null,null,null,null,null,0,null,null,null,null,0,0,"",null,null,null,null,null,0,""]
[null,"",null,null,null,null,null,null,0,null,null,null,null,0,0,"",null,null,null,null,null,0,""]
[null,"",null,null,null,null,null,null,0,null,null,null,null,0,0,"",null,null,null,null,null,0,""]
[null,"",null,null,null,null,null,null,0,null,null,null,null,0,0,"",null,null,null,null,null,0,""]
[null,"",null,null,null,null,null,null,0,null,null,null,null,0,0,"",null,null,null,null,null,0,""]
[null,"",null,null,null,null,null,null,0,null,null,null,null,0,0,"",null,null,null,null,null,0,""]
[null,"",null,null,null,null,null,null,0,null,null,null,null,0,0,"",null,null,null,null,null,0,""]
[null,"",null,null,null,null,null,null,0,null,null,null,null,0,0,"",null,null,null,null,null,0,""]
[null,"",null,null,null,null,null,null,0,null,null,null,null,0,0,"",null,null,null,null,null,0,""]
[null,"",null,null,null,null,null,null,0,null,null,null,null,0,0,"",null,null,null,null,null,0,""]
[null,"",null,null,null,null,null,null,0,null,null,null,null,0,0,"",null,null,null,null,null,0,""]
[null,"",null,null,null,null,null,null,0,null,null,null,null,0,0,"",null,null,null,null,null,0,""]
[null,"",null,null,null,null,null,null,0,null,null,null,null,0,0,"",null,null,null,null,null,0,""]
[null,"",null,null,null,null,null,null,0,null,null,null,null,0,0,"",null,null,null,null,null,0,""]
[null,"",null,null,null,null,null,null,0,null,null,null,null,0,0,"",null,null,null,null,null,0,""]
[null,"",null,null,null,null,null,null,0,null,null,null,null,0,0,"",null,null,null,null,null,0,""]
[null,"",null,null,null,null,null,null,0,null,null,null,null,0,0,"",null,null,null,null,null,0,""]
[null,"",null,null,null,null,null,null,0,null,null,null,null,0,0,"",null,null,null,null,null,0,""]
[null,"",null,null,null,null,null,null,0,null,null,null,null,0,0,"",null,null,null,null,null,0,""]
[null,"",null,null,null,null,null,null,0,null,null,null,null,0,0,"",null,null,null,null,null,0,""]
[null,"",null,null,null,null,null,null,0,null,null,null,null,0,0,"",null,null,null,null,null,0,""]
[null,"",null,null,null,null,null,null,0,null,null,null,null,0,0,"",null,null,null,null,null,0,""]
[null,"",null,null,null,null,null,null,0,null,null,null,null,0,0,"",null,null,null,null,null,0,""]
[null,"",null,null,null,null,null,null,0,null,null,null,null,{"$f":"MOD((VALUE(MID(TEXT(A774,\"000000000000000\"),15,1))*3+VALUE(MID(TEXT(A774,\"000000000000000\"),14,1))*7+VALUE(MID(TEXT(A774,\"000000000000000\"),13,1))*13+VALUE(MID(TEXT(A774,\"000000000000000\"),12,1))*17+VALUE(MID(TEXT(A774,\"000000000000000\"),11,1))*19+VALUE(MID(TEXT(A774,\"000000000000000\"),10,1))*23+VALUE(MID(TEXT(A774,\"000000000000000\"),9,1))*29+VALUE(MID(TEXT(A774,\"000000000000000\"),8,1))*37+VALUE(MID(TEXT(A774,\"000000000000000\"),7,1))*41+VALUE(MID(TEXT(A774,\"000000000000000\"),6,1))*43+VALUE(MID(TEXT(A774,\"000000000000000\"),5,1))*47+VALUE(MID(TEXT(A774,\"000000000000000\"),4,1))*53+VALUE(MID(TEXT(A774,\"000000000000000\"),3,1))*59+VALUE(MID(TEXT(A774,\"000000000000000\"),2,1))*67+VALUE(MID(TEXT(A774,\"000000000000000\"),1,1))*71),11)","v":0},0,{"$f":"IF(H774=\"REGISTRO ACTIVO\",O774,\"\")","v":""},null,null,null,null,null,0,""]
[null,{"$f":"+P775","v":""},null,null,null,null,null,null,{"$f":"IF(H775=\"REGISTRO ACTIVO\",1,0)","v":0},null,null,null,null,0,{"$f":"IF(N775=0,0,IF(N775=1,1,11-N775))","v":0},"",null,null,null,null,null,{"$f":"IF(H775=\"\",0,1)","v":0},{"$f":"IF(AND(A775>0,H775=\"\",$V$5007>0),\"NO\",\"\")","v":""}]
[null,"",null,null,null,null,null,null,0,null,null,null,null,0,0,"",null,null,null,null,null,0,""]
[null,"",null,null,null,null,null,null,0,null,null,null,null,0,0,"",null,null,null,null,null,0,""]
[null,"",null,null,null,null,null,null,0,null,null,null,null,0,0,"",null,null,null,null,null,0,""]
[null,"",null,null,null,null,null,null,0,null,null,null,null,0,0,"",null,null,null,null,null,0,""]
[null,"",null,null,null,null,null,null,0,null,null,null,null,0,0,"",null,null,null,null,null,0,""]
[null,"",null,null,null,null,null,null,0,null,null,null,null,0,0,"",null,null,null,null,null,0,""]
[null,"",null,null,null,null,null,null,0,null,null,null,null,0,0,"",null,null,null,null,null,0,""]
[null,"",null,null,null,null,null,null,0,null,null,null,null,0,0,"",null,null,null,null,null,0,""]
[null,"",null,null,null,null,null,null,0,null,null,null,null,0,0,"",null,null,null,null,null,0,""]
[null,"",null,null,null,null,null,null,0,null,null,null,null,0,0,"",null,null,null,null,null,0,""]
[null,"",null,null,null,null,null,null,0,null,null,null,null,0,0,"",null,null,null,null,null,0,""]
[null,"",null,null,null,null,null,null,0,null,null,null,null,0,0,"",null,null,null,null,null,0,""]
[null,"",null,null,null,null,null,null,0,null,null,null,null,0,0,"",null,null,null,null,null,0,""]
[null,"",null,null,null,null,null,null,0,null,null,null,null,0,0,"",null,null,null,null,null,0,""]
[null,"",null,null,null,null,null,null,0,null,null,null,null,0,0,"",null,null,null,null,null,0,""]
[null,"",null,null,null,null,null,null,0,null,null,null,null,0,0,"",null,null,null,null,null,0,""]
[null,"",null,null,null,null,null,null,0,null,null,null,null,0,0,"",null,null,null,null,null,0,""]
[null,"",null,null,null,null,null,null,0,null,null,null,null,0,0,"",null,null,null,null,null,0,""]
[null,"",null,null,null,null,null,null,0,null,null,null,null,0,0,"",null,null,null,null,null,0,""]
[null,"",null,null,null,null,null,null,0,null,null,null,null,0,0,"",null,null,null,null,null,0,""]
[null,"",null,null,null,null,null,null,0,null,null,null,null,0,0,"",null,null,null,null,null,0,""]
[null,"",null,null,null,null,null,null,0,null,null,null,null,0,0,"",null,null,null,null,null,0,""]
[null,"",null,null,null,null,null,null,0,null,null,null,null,0,0,"",null,null,null,null,null,0,""]
[null,"",null,null,null,null,null,null,0,null,null,null,null,0,0,"",null,null,null,null,null,0,""]
[null,"",null,null,null,null,null,null,0,null,null,null,null,0,0,"",null,null,null,null,null,0,""]
[null,"",null,null,null,null,null,null,0,null,null,null,null,0,0,"",null,null,null,null,null,0,""]
[null,"",null,null,null,null,null,null,0,null,null,null,null,0,0,"",null,null,null,null,null,0,""]
[null,"",null,null,null,null,null,null,0,null,null,null,null,0,0,"",null,null,null,null,null,0,""]
[null,"",null,null,null,null,null,null,0,null,null,null,null,0,0,"",null,null,null,null,null,0,""]
[null,"",null,null,null,null,null,null,0,null,null,null,null,0,0,"",null,null,null,null,null,0,""]
[null,"",null,null,null,null,null,null,0,null,null,null,null,0,0,"",null,null,null,null,null,0,""]
[null,"",null,null,null,null,null,null,0,null,null,null,null,0,0,"",null,null,null,null,null,0,""]
[null,"",null,null,null,null,null,null,0,null,null,null,null,0,0,"",null,null,null,null,null,0,""]
[null,"",null,null,null,null,null,null,0,null,null,null,null,0,0,"",null,null,null,null,null,0,""]
[null,"",null,null,null,null,null,null,0,null,null,null,null,0,0,"",null,null,null,null,null,0,""]
[null,"",null,null,null,null,null,null,0,null,null,null,null,0,0,"",null,null,null,null,null,0,""]
[null,"",null,null,null,null,null,null,0,null,null,null,null,0,0,"",null,null,null,null,null,0,""]
[null,"",null,null,null,null,null,null,0,null,null,null,null,0,0,"",null,null,null,null,null,0,""]
[null,"",null,null,null,null,null,null,0,null,null,null,null,0,0,"",null,null,null,null,null,0,""]
[null,"",null,null,null,null,null,null,0,null,null,null,null,0,0,"",null,null,null,null,null,0,""]
[null,"",null,null,null,null,null,null,0,null,null,null,null,0,0,"",null,null,null,null,null,0,""]
[null,"",null,null,null,null,null,null,0,null,null,null,null,0,0,"",null,null,null,null,null,0,""]
[null,"",null,null,null,null,null,null,0,null,null,null,null,0,0,"",null,null,null,null,null,0,""]
[null,"",null,null,null,null,null,null,0,null,null,null,null,0,0,"",null,null,null,null,null,0,""]
[null,"",null,null,null,null,null,null,0,null,null,null,null,0,0,"",null,null,null,null,null,0,""]
[null,"",null,null,null,null,null,null,0,null,null,null,null,0,0,"",null,null,null,null,null,0,""]
[null,"",null,null,null,null,null,null,0,null,null,null,null,0,0,"",null,null,null,null,null,0,""]
[null,"",null,null,null,null,null,null,0,null,null,null,null,0,0,"",null,null,null,null,null,0,""]
[null,"",null,null,null,null,null,null,0,null,null,null,null,0,0,"",null,null,null,null,null,0,""]
[null,"",null,null,null,null,null,null,0,null,null,null,null,0,0,"",null,null,null,null,null,0,""]
[null,"",null,null,null,null,null,null,0,null,null,null,null,0,0,"",null,null,null,null,null,0,""]
[null,"",null,null,null,null,null,null,0,null,null,null,null,0,0,"",null,null,null,null,null,0,""]
[null,"",null,null,null,null,null,null,0,null,null,null,null,0,0,"",null,null,null,null,null,0,""]
[null,"",null,null,null,null,null,null,0,null,null,null,null,0,0,"",null,null,null,null,null,0,""]
[null,"",null,null,null,null,null,null,0,null,null,null,null,0,0,"",null,null,null,null,null,0,""]
[null,"",null,null,null,null,null,null,0,null,null,null,null,0,0,"",null,null,null,null,null,0,""]
[null,"",null,null,null,null,null,null,0,null,null,null,null,0,0,"",null,null,null,null,null,0,""]
[null,"",null,null,null,null,null,null,0,null,null,null,null,0,0,"",null,null,null,null,null,0,""]
[null,"",null,null,null,null,null,null,0,null,null,null,null,0,0,"",null,null,null,null,null,0,""]
[null,"",null,null,null,null,null,null,0,null,null,null,null,0,0,"",null,null,null,null,null,0,""]
[null,"",null,null,null,null,null,null,0,null,null,null,null,0,0,"",null,null,null,null,null,0,""]
[null,"",null,null,null,null,null,null,0,null,null,null,null,0,0,"",null,null,null,null,null,0,""]
[null,"",null,null,null,null,null,null,0,null,null,null,null,{"$f":"MOD((VALUE(MID(TEXT(A838,\"000000000000000\"),15,1))*3+VALUE(MID(TEXT(A838,\"000000000000000\"),14,1))*7+VALUE(MID(TEXT(A838,\"000000000000000\"),13,1))*13+VALUE(MID(TEXT(A838,\"000000000000000\"),12,1))*17+VALUE(MID(TEXT(A838,\"000000000000000\"),11,1))*19+VALUE(MID(TEXT(A838,\"000000000000000\"),10,1))*23+VALUE(MID(TEXT(A838,\"000000000000000\"),9,1))*29+VALUE(MID(TEXT(A838,\"000000000000000\"),8,1))*37+VALUE(MID(TEXT(A838,\"000000000000000\"),7,1))*41+VALUE(MID(TEXT(A838,\"000000000000000\"),6,1))*43+VALUE(MID(TEXT(A838,\"000000000000000\"),5,1))*47+VALUE(MID(TEXT(A838,\"000000000000000\"),4,1))*53+VALUE(MID(TEXT(A838,\"000000000000000\"),3,1))*59+VALUE(MID(TEXT(A838,\"000000000000000\"),2,1))*67+VALUE(MID(TEXT(A838,\"000000000000000\"),1,1))*71),11)","v":0},0,{"$f":"IF(H838=\"REGISTRO ACTIVO\",O838,\"\")","v":""},null,null,null,null,null,0,""]
[null,{"$f":"+P839","v":""},null,null,null,null,null,null,{"$f":"IF(H839=\"REGISTRO ACTIVO\",1,0)","v":0},null,null,null,null,0,{"$f":"IF(N839=0,0,IF(N839=1,1,11-N839))","v":0},"",null,null,null,null,null,{"$f":"IF(H839=\"\",0,1)","v":0},{"$f":"IF(AND(A839>0,H839=\"\",$V$5007>0),\"NO\",\"\")","v":""}]
[null,"",null,null,null,null,null,null,0,null,null,null,null,0,0,"",null,null,null,null,null,0,""]
[null,"",null,null,null,null,null,null,0,null,null,null,null,0,0,"",null,null,null,null,null,0,""]
[null,"",null,null,null,null,null,null,0,null,null,null,null,0,0,"",null,null,null,null,null,0,""]
[null,"",null,null,null,null,null,null,0,null,null,null,null,0,0,"",null,null,null,null,null,0,""]
[null,"",null,null,null,null,null,null,0,null,null,null,null,0,0,"",null,null,null,null,null,0,""]
[null,"",null,null,null,null,null,null,0,null,null,null,null,0,0,"",null,null,null,null,null,0,""]
[null,"",null,null,null,null,null,null,0,null,null,null,null,0,0,"",null,null,null,null,null,0,""]
[null,"",null,null,null,null,null,null,0,null,null,null,null,0,0,"",null,null,null,null,null,0,""]
[null,"",null,null,null,null,null,null,0,null,null,null,null,0,0,"",null,null,null,null,null,0,""]
[null,"",null,null,null,null,null,null,0,null,null,null,null,0,0,"",null,null,null,null,null,0,""]
[null,"",null,null,null,null,null,null,0,null,null,null,null,0,0,"",null,null,null,null,null,0,""]
[null,"",null,null,null,null,null,null,0,null,null,null,null,0,0,"",null,null,null,null,null,0,""]
[null,"",null,null,null,null,null,null,0,null,null,null,null,0,0,"",null,null,null,null,null,0,""]
[null,"",null,null,null,null,null,null,0,null,null,null,null,0,0,"",null,null,null,null,null,0,""]
[null,"",null,null,null,null,null,null,0,null,null,null,null,0,0,"",null,null,null,null,null,0,""]
[null,"",null,null,null,null,null,null,0,null,null,null,null,0,0,"",null,null,null,null,null,0,""]
[null,"",null,null,null,null,null,null,0,null,null,null,null,0,0,"",null,null,null,null,null,0,""]
[null,"",null,null,null,null,null,null,0,null,null,null,null,0,0,"",null,null,null,null,null,0,""]
[null,"",null,null,null,null,null,null,0,null,null,null,null,0,0,"",null,null,null,null,null,0,""]
[null,"",null,null,null,null,null,null,0,null,null,null,null,0,0,"",null,null,null,null,null,0,""]
[null,"",null,null,null,null,null,null,0,null,null,null,null,0,0,"",null,null,null,null,null,0,""]
[null,"",null,null,null,null,null,null,0,null,null,null,null,0,0,"",null,null,null,null,null,0,""]
[null,"",null,null,null,null,null,null,0,null,null,null,null,0,0,"",null,null,null,null,null,0,""]
[null,"",null,null,null,null,null,null,0,null,null,null,null,0,0,"",null,null,null,null,null,0,""]
[null,"",null,null,null,null,null,null,0,null,null,null,null,0,0,"",null,null,null,null,null,0,""]
[null,"",null,null,null,null,null,null,0,null,null,null,null,0,0,"",null,null,null,null,null,0,""]
[null,"",null,null,null,null,null,null,0,null,null,null,null,0,0,"",null,null,null,null,null,0,""]
[null,"",null,null,null,null,null,null,0,null,null,null,null,0,0,"",null,null,null,null,null,0,""]
[null,"",null,null,null,null,null,null,0,null,null,null,null,0,0,"",null,null,null,null,null,0,""]
[null,"",null,null,null,null,null,null,0,null,null,null,null,0,0,"",null,null,null,null,null,0,""]
[null,"",null,null,null,null,null,null,0,null,null,null,null,0,0,"",null,null,null,null,null,0,""]
[null,"",null,null,null,null,null,null,0,null,null,null,null,0,0,"",null,null,null,null,null,0,""]
[null,"",null,null,null,null,null,null,0,null,null,null,null,0,0,"",null,null,null,null,null,0,""]
[null,"",null,null,null,null,null,null,0,null,null,null,null,0,0,"",null,null,null,null,null,0,""]
[null,"",null,null,null,null,null,null,0,null,null,null,null,0,0,"",null,null,null,null,null,0,""]
[null,"",null,null,null,null,null,null,0,null,null,null,null,0,0,"",null,null,null,null,null,0,""]
[null,"",null,null,null,null,null,null,0,null,null,null,null,0,0,"",null,null,null,null,null,0,""]
[null,"",null,null,null,null,null,null,0,null,null,null,null,0,0,"",null,null,null,null,null,0,""]
[null,"",null,null,null,null,null,null,0,null,null,null,null,0,0,"",null,null,null,null,null,0,""]
[null,"",null,null,null,null,null,null,0,null,null,null,null,0,0,"",null,null,null,null,null,0,""]
[null,"",null,null,null,null,null,null,0,null,null,null,null,0,0,"",null,null,null,null,null,0,""]
[null,"",null,null,null,null,null,null,0,null,null,null,null,0,0,"",null,null,null,null,null,0,""]
[null,"",null,null,null,null,null,null,0,null,null,null,null,0,0,"",null,null,null,null,null,0,""]
[null,"",null,null,null,null,null,null,0,null,null,null,null,0,0,"",null,null,null,null,null,0,""]
[null,"",null,null,null,null,null,null,0,null,null,null,null,0,0,"",null,null,null,null,null,0,""]
[null,"",null,null,null,null,null,null,0,null,null,null,null,0,0,"",null,null,null,null,null,0,""]
[null,"",null,null,null,null,null,null,0,null,null,null,null,0,0,"",null,null,null,null,null,0,""]
[null,"",null,null,null,null,null,null,0,null,null,null,null,0,0,"",null,null,null,null,null,0,""]
[null,"",null,null,null,null,null,null,0,null,null,null,null,0,0,"",null,null,null,null,null,0,""]
[null,"",null,null,null,null,null,null,0,null,null,null,null,0,0,"",null,null,null,null,null,0,""]
[null,"",null,null,null,null,null,null,0,null,null,null,null,0,0,"",null,null,null,null,null,0,""]
[null,"",null,null,null,null,null,null,0,null,null,null,null,0,0,"",null,null,null,null,null,0,""]
[null,"",null,null,null,null,null,null,0,null,null,null,null,0,0,"",null,null,null,null,null,0,""]
[null,"",null,null,null,null,null,null,0,null,null,null,null,0,0,"",null,null,null,null,null,0,""]
[null,"",null,null,null,null,null,null,0,null,null,null,null,0,0,"",null,null,null,null,null,0,""]
[null,"",null,null,null,null,null,null,0,null,null,null,null,0,0,"",null,null,null,null,null,0,""]
[null,"",null,null,null,null,null,null,0,null,null,null,null,0,0,"",null,null,null,null,null,0,""]
[null,"",null,null,null,null,null,null,0,null,null,null,null,0,0,"",null,null,null,null,null,0,""]
[null,"",null,null,null,null,null,null,0,null,null,null,null,0,0,"",null,null,null,null,null,0,""]
[null,"",null,null,null,null,null,null,0,null,null,null,null,0,0,"",null,null,null,null,null,0,""]
[null,"",null,null,null,null,null,null,0,null,null,null,null,0,0,"",null,null,null,null,null,0,""]
[null,"",null,null,null,null,null,null,0,null,null,null,null,0,0,"",null,null,null,null,null,0,""]
[null,"",null,null,null,null,null,null,0,null,null,null,null,{"$f":"MOD((VALUE(MID(TEXT(A902,\"000000000000000\"),15,1))*3+VALUE(MID(TEXT(A902,\"000000000000000\"),14,1))*7+VALUE(MID(TEXT(A902,\"000000000000000\"),13,1))*13+VALUE(MID(TEXT(A902,\"000000000000000\"),12,1))*17+VALUE(MID(TEXT(A902,\"000000000000000\"),11,1))*19+VALUE(MID(TEXT(A902,\"000000000000000\"),10,1))*23+VALUE(MID(TEXT(A902,\"000000000000000\"),9,1))*29+VALUE(MID(TEXT(A902,\"000000000000000\"),8,1))*37+VALUE(MID(TEXT(A902,\"000000000000000\"),7,1))*41+VALUE(MID(TEXT(A902,\"000000000000000\"),6,1))*43+VALUE(MID(TEXT(A902,\"000000000000000\"),5,1))*47+VALUE(MID(TEXT(A902,\"000000000000000\"),4,1))*53+VALUE(MID(TEXT(A902,\"000000000000000\"),3,1))*59+VALUE(MID(TEXT(A902,\"000000000000000\"),2,1))*67+VALUE(MID(TEXT(A902,\"000000000000000\"),1,1))*71),11)","v":0},0,{"$f":"IF(H902=\"REGISTRO ACTIVO\",O902,\"\")","v":""},null,null,null,null,null,0,""]
[null,{"$f":"+P903","v":""},null,null,null,null,null,null,{"$f":"IF(H903=\"REGISTRO ACTIVO\",1,0)","v":0},null,null,null,null,0,{"$f":"IF(N903=0,0,IF(N903=1,1,11-N903))","v":0},"",null,null,null,null,null,{"$f":"IF(H903=\"\",0,1)","v":0},{"$f":"IF(AND(A903>0,H903=\"\",$V$5007>0),\"NO\",\"\")","v":""}]
[null,"",null,null,null,null,null,null,0,null,null,null,null,0,0,"",null,null,null,null,null,0,""]
[null,"",null,null,null,null,null,null,0,null,null,null,null,0,0,"",null,null,null,null,null,0,""]
[null,"",null,null,null,null,null,null,0,null,null,null,null,0,0,"",null,null,null,null,null,0,""]
[null,"",null,null,null,null,null,null,0,null,null,null,null,0,0,"",null,null,null,null,null,0,""]
[null,"",null,null,null,null,null,null,0,null,null,null,null,0,0,"",null,null,null,null,null,0,""]
[null,"",null,null,null,null,null,null,0,null,null,null,null,0,0,"",null,null,null,null,null,0,""]
[null,"",null,null,null,null,null,null,0,null,null,null,null,0,0,"",null,null,null,null,null,0,""]
[null,"",null,null,null,null,null,null,0,null,null,null,null,0,0,"",null,null,null,null,null,0,""]
[null,"",null,null,null,null,null,null,0,null,null,null,null,0,0,"",null,null,null,null,null,0,""]
[null,"",null,null,null,null,null,null,0,null,null,null,null,0,0,"",null,null,null,null,null,0,""]
[null,"",null,null,null,null,null,null,0,null,null,null,null,0,0,"",null,null,null,null,null,0,""]
[null,"",null,null,null,null,null,null,0,null,null,null,null,0,0,"",null,null,null,null,null,0,""]
[null,"",null,null,null,null,null,null,0,null,null,null,null,0,0,"",null,null,null,null,null,0,""]
[null,"",null,null,null,null,null,null,0,null,null,null,null,0,0,"",null,null,null,null,null,0,""]
[null,"",null,null,null,null,null,null,0,null,null,null,null,0,0,"",null,null,null,null,null,0,""]
[null,"",null,null,null,null,null,null,0,null,null,null,null,0,0,"",null,null,null,null,null,0,""]
[null,"",null,null,null,null,null,null,0,null,null,null,null,0,0,"",null,null,null,null,null,0,""]
[null,"",null,null,null,null,null,null,0,null,null,null,null,0,0,"",null,null,null,null,null,0,""]
[null,"",null,null,null,null,null,null,0,null,null,null,null,0,0,"",null,null,null,null,null,0,""]
[null,"",null,null,null,null,null,null,0,null,null,null,null,0,0,"",null,null,null,null,null,0,""]
[null,"",null,null,null,null,null,null,0,null,null,null,null,0,0,"",null,null,null,null,null,0,""]
[null,"",null,null,null,null,null,null,0,null,null,null,null,0,0,"",null,null,null,null,null,0,""]
[null,"",null,null,null,null,null,null,0,null,null,null,null,0,0,"",null,null,null,null,null,0,""]
[null,"",null,null,null,null,null,null,0,null,null,null,null,0,0,"",null,null,null,null,null,0,""]
[null,"",null,null,null,null,null,null,0,null,null,null,null,0,0,"",null,null,null,null,null,0,""]
[null,"",null,null,null,null,null,null,0,null,null,null,null,0,0,"",null,null,null,null,null,0,""]
[null,"",null,null,null,null,null,null,0,null,null,null,null,0,0,"",null,null,null,null,null,0,""]
[null,"",null,null,null,null,null,null,0,null,null,null,null,0,0,"",null,null,null,null,null,0,""]
[null,"",null,null,null,null,null,null,0,null,null,null,null,0,0,"",null,null,null,null,null,0,""]
[null,"",null,null,null,null,null,null,0,null,null,null,null,0,0,"",null,null,null,null,null,0,""]
[null,"",null,null,null,null,null,null,0,null,null,null,null,0,0,"",null,null,null,null,null,0,""]
[null,"",null,null,null,null,null,null,0,null,null,null,null,0,0,"",null,null,null,null,null,0,""]
[null,"",null,null,null,null,null,null,0,null,null,null,null,0,0,"",null,null,null,null,null,0,""]
[null,"",null,null,null,null,null,null,0,null,null,null,null,0,0,"",null,null,null,null,null,0,""]
[null,"",null,null,null,null,null,null,0,null,null,null,null,0,0,"",null,null,null,null,null,0,""]
[null,"",null,null,null,null,null,null,0,null,null,null,null,0,0,"",null,null,null,null,null,0,""]
[null,"",null,null,null,null,null,null,0,null,null,null,null,0,0,"",null,null,null,null,null,0,""]
[null,"",null,null,null,null,null,null,0,null,null,null,null,0,0,"",null,null,null,null,null,0,""]
[null,"",null,null,null,null,null,null,0,null,null,null,null,0,0,"",null,null,null,null,null,0,""]
[null,"",null,null,null,null,null,null,0,null,null,null,null,0,0,"",null,null,null,null,null,0,""]
[null,"",null,null,null,null,null,null,0,null,null,null,null,0,0,"",null,null,null,null,null,0,""]
[null,"",null,null,null,null,null,null,0,null,null,null,null,0,0,"",null,null,null,null,null,0,""]
[null,"",null,null,null,null,null,null,0,null,null,null,null,0,0,"",null,null,null,null,null,0,""]
[null,"",null,null,null,null,null,null,0,null,null,null,null,0,0,"",null,null,null,null,null,0,""]
[null,"",null,null,null,null,null,null,0,null,null,null,null,0,0,"",null,null,null,null,null,0,""]
[null,"",null,null,null,null,null,null,0,null,null,null,null,0,0,"",null,null,null,null,null,0,""]
[null,"",null,null,null,null,null,null,0,null,null,null,null,0,0,"",null,null,null,null,null,0,""]
[null,"",null,null,null,null,null,null,0,null,null,null,null,0,0,"",null,null,null,null,null,0,""]
[null,"",null,null,null,null,null,null,0,null,null,null,null,0,0,"",null,null,null,null,null,0,""]
[null,"",null,null,null,null,null,null,0,null,null,null,null,0,0,"",null,null,null,null,null,0,""]
[null,"",null,null,null,null,null,null,0,null,null,null,null,0,0,"",null,null,null,null,null,0,""]
[null,"",null,null,null,null,null,null,0,null,null,null,null,0,0,"",null,null,null,null,null,0,""]
[null,"",null,null,null,null,null,null,0,null,null,null,null,0,0,"",null,null,null,null,null,0,""]
[null,"",null,null,null,null,null,null,0,null,null,null,null,0,0,"",null,null,null,null,null,0,""]
[null,"",null,null,null,null,null,null,0,null,null,null,null,0,0,"",null,null,null,null,null,0,""]
[null,"",null,null,null,null,null,null,0,null,null,null,null,0,0,"",null,null,null,null,null,0,""]
[null,"",null,null,null,null,null,null,0,null,null,null,null,0,0,"",null,null,null,null,null,0,""]
[null,"",null,null,null,null,null,null,0,null,null,null,null,0,0,"",null,null,null,null,null,0,""]
[null,"",null,null,null,null,null,null,0,null,null,null,null,0,0,"",null,null,null,null,null,0,""]
[null,"",null,null,null,null,null,null,0,null,null,null,null,0,0,"",null,null,null,null,null,0,""]
[null,"",null,null,null,null,null,null,0,null,null,null,null,0,0,"",null,null,null,null,null,0,""]
[null,"",null,null,null,null,null,null,0,null,null,null,null,0,0,"",null,null,null,null,null,0,""]
[null,"",null,null,null,null,null,null,0,null,null,null,null,{"$f":"MOD((VALUE(MID(TEXT(A966,\"000000000000000\"),15,1))*3+VALUE(MID(TEXT(A966,\"000000000000000\"),14,1))*7+VALUE(MID(TEXT(A966,\"000000000000000\"),13,1))*13+VALUE(MID(TEXT(A966,\"000000000000000\"),12,1))*17+VALUE(MID(TEXT(A966,\"000000000000000\"),11,1))*19+VALUE(MID(TEXT(A966,\"000000000000000\"),10,1))*23+VALUE(MID(TEXT(A966,\"000000000000000\"),9,1))*29+VALUE(MID(TEXT(A966,\"000000000000000\"),8,1))*37+VALUE(MID(TEXT(A966,\"000000000000000\"),7,1))*41+VALUE(MID(TEXT(A966,\"000000000000000\"),6,1))*43+VALUE(MID(TEXT(A966,\"000000000000000\"),5,1))*47+VALUE(MID(TEXT(A966,\"000000000000000\"),4,1))*53+VALUE(MID(TEXT(A966,\"000000000000000\"),3,1))*59+VALUE(MID(TEXT(A966,\"000000000000000\"),2,1))*67+VALUE(MID(TEXT(A966,\"000000000000000\"),1,1))*71),11)","v":0},0,{"$f":"IF(H966=\"REGISTRO ACTIVO\",O966,\"\")","v":""},null,null,null,null,null,0,""]
[null,{"$f":"+P967","v":""},null,null,null,null,null,null,{"$f":"IF(H967=\"REGISTRO ACTIVO\",1,0)","v":0},null,null,null,null,0,{"$f":"IF(N967=0,0,IF(N967=1,1,11-N967))","v":0},"",null,null,null,null,null,{"$f":"IF(H967=\"\",0,1)","v":0},{"$f":"IF(AND(A967>0,H967=\"\",$V$5007>0),\"NO\",\"\")","v":""}]
[null,"",null,null,null,null,null,null,0,null,null,null,null,0,0,"",null,null,null,null,null,0,""]
[null,"",null,null,null,null,null,null,0,null,null,null,null,0,0,"",null,null,null,null,null,0,""]
[null,"",null,null,null,null,null,null,0,null,null,null,null,0,0,"",null,null,null,null,null,0,""]
[null,"",null,null,null,null,null,null,0,null,null,null,null,0,0,"",null,null,null,null,null,0,""]
[null,"",null,null,null,null,null,null,0,null,null,null,null,0,0,"",null,null,null,null,null,0,""]
[null,"",null,null,null,null,null,null,0,null,null,null,null,0,0,"",null,null,null,null,null,0,""]
[null,"",null,null,null,null,null,null,0,null,null,null,null,0,0,"",null,null,null,null,null,0,""]
[null,"",null,null,null,null,null,null,0,null,null,null,null,0,0,"",null,null,null,null,null,0,""]
[null,"",null,null,null,null,null,null,0,null,null,null,null,0,0,"",null,null,null,null,null,0,""]
[null,"",null,null,null,null,null,null,0,null,null,null,null,0,0,"",null,null,null,null,null,0,""]
[null,"",null,null,null,null,null,null,0,null,null,null,null,0,0,"",null,null,null,null,null,0,""]
[null,"",null,null,null,null,null,null,0,null,null,null,null,0,0,"",null,null,null,null,null,0,""]
[null,"",null,null,null,null,null,null,0,null,null,null,null,0,0,"",null,null,null,null,null,0,""]
[null,"",null,null,null,null,null,null,0,null,null,null,null,0,0,"",null,null,null,null,null,0,""]
[null,"",null,null,null,null,null,null,0,null,null,null,null,0,0,"",null,null,null,null,null,0,""]
[null,"",null,null,null,null,null,null,0,null,null,null,null,0,0,"",null,null,null,null,null,0,""]
[null,"",null,null,null,null,null,null,0,null,null,null,null,0,0,"",null,null,null,null,null,0,""]
[null,"",null,null,null,null,null,null,0,null,null,null,null,0,0,"",null,null,null,null,null,0,""]
[null,"",null,null,null,null,null,null,0,null,null,null,null,0,0,"",null,null,null,null,null,0,""]
[null,"",null,null,null,null,null,null,0,null,null,null,null,0,0,"",null,null,null,null,null,0,""]
[null,"",null,null,null,null,null,null,0,null,null,null,null,0,0,"",null,null,null,null,null,0,""]
[null,"",null,null,null,null,null,null,0,null,null,null,null,0,0,"",null,null,null,null,null,0,""]
[null,"",null,null,null,null,null,null,0,null,null,null,null,0,0,"",null,null,null,null,null,0,""]
[null,"",null,null,null,null,null,null,0,null,null,null,null,0,0,"",null,null,null,null,null,0,""]
[null,"",null,null,null,null,null,null,0,null,null,null,null,0,0,"",null,null,null,null,null,0,""]
[null,"",null,null,null,null,null,null,0,null,null,null,null,0,0,"",null,null,null,null,null,0,""]
[null,"",null,null,null,null,null,null,0,null,null,null,null,0,0,"",null,null,null,null,null,0,""]
[null,"",null,null,null,null,null,null,0,null,null,null,null,0,0,"",null,null,null,null,null,0,""]
[null,"",null,null,null,null,null,null,0,null,null,null,null,0,0,"",null,null,null,null,null,0,""]
[null,"",null,null,null,null,null,null,0,null,null,null,null,0,0,"",null,null,null,null,null,0,""]
[null,"",null,null,null,null,null,null,0,null,null,null,null,0,0,"",null,null,null,null,null,0,""]
[null,"",null,null,null,null,null,null,0,null,null,null,null,0,0,"",null,null,null,null,null,0,""]
[null,"",null,null,null,null,null,null,0,null,null,null,null,0,0,"",null,null,null,null,null,0,""]
[null,"",null,null,null,null,null,null,0,null,null,null,null,0,0,"",null,null,null,null,null,0,""]
[null,"",null,null,null,null,null,null,0,null,null,null,null,0,0,"",null,null,null,null,null,0,""]
[null,"",null,null,null,null,null,null,0,null,null,null,null,0,0,"",null,null,null,null,null,0,""]
[null,"",null,null,null,null,null,null,0,null,null,null,null,0,0,"",null,null,null,null,null,0,""]
[null,"",null,null,null,null,null,null,0,null,null,null,null,0,0,"",null,null,null,null,null,0,""]
[null,"",null,null,null,null,null,null,0,null,null,null,null,0,0,"",null,null,null,null,null,0,""]
[null,"",null,null,null,null,null,null,0,null,null,null,null,0,0,"",null,null,null,null,null,0,""]
[null,"",null,null,null,null,null,null,0,null,null,null,null,0,0,"",null,null,null,null,null,0,""]
[null,"",null,null,null,null,null,null,0,null,null,null,null,0,0,"",null,null,null,null,null,0,""]
[null,"",null,null,null,null,null,null,0,null,null,null,null,0,0,"",null,null,null,null,null,0,""]
[null,"",null,null,null,null,null,null,0,null,null,null,null,0,0,"",null,null,null,null,null,0,""]
[null,"",null,null,null,null,null,null,0,null,null,null,null,0,0,"",null,null,null,null,null,0,""]
[null,"",null,null,null,null,null,null,0,null,null,null,null,0,0,"",null,null,null,null,null,0,""]
[null,"",null,null,null,null,null,null,0,null,null,null,null,0,0,"",null,null,null,null,null,0,""]
[null,"",null,null,null,null,null,null,0,null,null,null,null,0,0,"",null,null,null,null,null,0,""]
[null,"",null,null,null,null,null,null,0,null,null,null,null,0,0,"",null,null,null,null,null,0,""]
[null,"",null,null,null,null,null,null,0,null,null,null,null,0,0,"",null,null,null,null,null,0,""]
[null,"",null,null,null,null,null,null,0,null,null,null,null,0,0,"",null,null,null,null,null,0,""]
[null,"",null,null,null,null,null,null,0,null,null,null,null,0,0,"",null,null,null,null,null,0,""]
[null,"",null,null,null,null,null,null,0,null,null,null,null,0,0,"",null,null,null,null,null,0,""]
[null,"",null,null,null,null,null,null,0,null,null,null,null,0,0,"",null,null,null,null,null,0,""]
[null,"",null,null,null,null,null,null,0,null,null,null,null,0,0,"",null,null,null,null,null,0,""]
[null,"",null,null,null,null,null,null,0,null,null,null,null,0,0,"",null,null,null,null,null,0,""]
[null,"",null,null,null,null,null,null,0,null,null,null,null,0,0,"",null,null,null,null,null,0,""]
[null,"",null,null,null,null,null,null,0,null,null,null,null,0,0,"",null,null,null,null,null,0,""]
[null,"",null,null,null,null,null,null,0,null,null,null,null,0,0,"",null,null,null,null,null,0,""]
[null,"",null,null,null,null,null,null,0,null,null,null,null,0,0,"",null,null,null,null,null,0,""]
[null,"",null,null,null,null,null,null,0,null,null,null,null,0,0,"",null,null,null,null,null,0,""]
[null,"",null,null,null,null,null,null,0,null,null,null,null,0,0,"",null,null,null,null,null,0,""]
[null,"",null,null,null,null,null,null,0,null,null,null,null,0,0,"",null,null,null,null,null,0,""]
[null,"",null,null,null,null,null,null,0,null,null,null,null,0,0,"",null,null,null,null,null,0,""]
[null,"",null,null,null,null,null,null,0,null,null,null,null,0,0,"",null,null,null,null,null,0,""]
[null,"",null,null,null,null,null,null,0,null,null,null,null,0,0,"",null,null,null,null,null,0,""]
[null,"",null,null,null,null,null,null,0,null,null,null,null,0,0,"",null,null,null,null,null,0,""]
[null,"",null,null,null,null,null,null,0,null,null,null,null,0,0,"",null,null,null,null,null,0,""]
[null,"",null,null,null,null,null,null,0,null,null,null,null,0,0,"",null,null,null,null,null,0,""]
[null,"",null,null,null,null,null,null,0,null,null,null,null,0,0,"",null,null,null,null,null,0,""]
[null,"",null,null,null,null,null,null,0,null,null,null,null,0,0,"",null,null,null,null,null,0,""]
[null,"",null,null,null,null,null,null,0,null,null,null,null,0,0,"",null,null,null,null,null,0,""]
[null,"",null,null,null,null,null,null,0,null,null,null,null,0,0,"",null,null,null,null,null,0,""]
[null,"",null,null,null,null,null,null,0,null,null,null,null,0,0,"",null,null,null,null,null,0,""]
[null,"",null,null,null,null,null,null,0,null,null,null,null,0,0,"",null,null,null,null,null,0,""]
[null,"",null,null,null,null,null,null,0,null,null,null,null,0,0,"",null,null,null,null,null,0,""]
[null,"",null,null,null,null,null,null,0,null,null,null,null,0,0,"",null,null,null,null,null,0,""]
[null,"",null,null,null,null,null,null,0,null,null,null,null,0,0,"",null,null,null,null,null,0,""]
[null,"",null,null,null,null,null,null,0,null,null,null,null,0,0,"",null,null,null,null,null,0,""]
[null,"",null,null,null,null,null,null,0,null,null,null,null,0,0,"",null,null,null,null,null,0,""]
[null,"",null,null,null,null,null,null,0,null,null,null,null,0,0,"",null,null,null,null,null,0,""]
[null,"",null,null,null,null,null,null,0,null,null,null,null,0,0,"",null,null,null,null,null,0,""]
[null,"",null,null,null,null,null,null,0,null,null,null,null,0,0,"",null,null,null,null,null,0,""]
[null,"",null,null,null,null,null,null,0,null,null,null,null,0,0,"",null,null,null,null,null,0,""]
[null,"",null,null,null,null,null,null,0,null,null,null,null,0,0,"",null,null,null,null,null,0,""]
[null,"",null,null,null,null,null,null,0,null,null,null,null,0,0,"",null,null,null,null,null,0,""]
[null,"",null,null,null,null,null,null,0,null,null,null,null,0,0,"",null,null,null,null,null,0,""]
[null,"",null,null,null,null,null,null,0,null,null,null,null,0,0,"",null,null,null,null,null,0,""]
[null,"",null,null,null,null,null,null,0,null,null,null,null,0,0,"",null,null,null,null,null,0,""]
[null,"",null,null,null,null,null,null,0,null,null,null,null,0,0,"",null,null,null,null,null,0,""]
[null,"",null,null,null,null,null,null,0,null,null,null,null,0,0,"",null,null,null,null,null,0,""]
[null,"",null,null,null,null,null,null,0,null,null,null,null,{"$f":"MOD((VALUE(MID(TEXT(A1222,\"000000000000000\"),15,1))*3+VALUE(MID(TEXT(A1222,\"000000000000000\"),14,1))*7+VALUE(MID(TEXT(A1222,\"000000000000000\"),13,1))*13+VALUE(MID(TEXT(A1222,\"000000000000000\"),12,1))*17+VALUE(MID(TEXT(A1222,\"000000000000000\"),11,1))*19+VALUE(MID(TEXT(A1222,\"000000000000000\"),10,1))*23+VALUE(MID(TEXT(A1222,\"000000000000000\"),9,1))*29+VALUE(MID(TEXT(A1222,\"000000000000000\"),8,1))*37+VALUE(MID(TEXT(A1222,\"000000000000000\"),7,1))*41+VALUE(MID(TEXT(A1222,\"000000000000000\"),6,1))*43+VALUE(MID(TEXT(A1222,\"000000000000000\"),5,1))*47+VALUE(MID(TEXT(A1222,\"000000000000000\"),4,1))*53+VALUE(MID(TEXT(A1222,\"000000000000000\"),3,1))*59+VALUE(MID(TEXT(A1222,\"000000000000000\"),2,1))*67+VALUE(MID(TEXT(A1222,\"000000000000000\"),1,1))*71),11)","v":0},0,{"$f":"IF(H1222=\"REGISTRO ACTIVO\",O1222,\"\")","v":""},null,null,null,null,null,0,""]
[null,"",null,null,null,null,null,null,0,null,null,null,null,0,0,"",null,null,null,null,null,0,""]
[null,"",null,null,null,null,null,null,0,null,null,null,null,0,0,"",null,null,null,null,null,0,""]
[null,"",null,null,null,null,null,null,0,null,null,null,null,0,0,"",null,null,null,null,null,0,""]
[null,"",null,null,null,null,null,null,0,null,null,null,null,0,0,"",null,null,null,null,null,0,""]
[null,"",null,null,null,null,null,null,0,null,null,null,null,0,0,"",null,null,null,null,null,0,""]
[null,"",null,null,null,null,null,null,0,null,null,null,null,0,0,"",null,null,null,null,null,0,""]
[null,"",null,null,null,null,null,null,0,null,null,null,null,0,0,"",null,null,null,null,null,0,""]
[null,"",null,null,null,null,null,null,0,null,null,null,null,0,0,"",null,null,null,null,null,0,""]
[null,"",null,null,null,null,null,null,0,null,null,null,null,0,0,"",null,null,null,null,null,0,""]
[null,"",null,null,null,null,null,null,0,null,null,null,null,0,0,"",null,null,null,null,null,0,""]
[null,"",null,null,null,null,null,null,0,null,null,null,null,0,0,"",null,null,null,null,null,0,""]
[null,"",null,null,null,null,null,null,0,null,null,null,null,0,0,"",null,null,null,null,null,0,""]
[null,"",null,null,null,null,null,null,0,null,null,null,null,0,0,"",null,null,null,null,null,0,""]
[null,"",null,null,null,null,null,null,0,null,null,null,null,0,0,"",null,null,null,null,null,0,""]
[null,"",null,null,null,null,null,null,0,null,null,null,null,0,0,"",null,null,null,null,null,0,""]
[null,"",null,null,null,null,null,null,0,null,null,null,null,0,0,"",null,null,null,null,null,0,""]
[null,"",null,null,null,null,null,null,0,null,null,null,null,0,0,"",null,null,null,null,null,0,""]
[null,{"$f":"+P1287","v":""},null,null,null,null,null,null,{"$f":"IF(H1287=\"REGISTRO ACTIVO\",1,0)","v":0},null,null,null,null,0,{"$f":"IF(N1287=0,0,IF(N1287=1,1,11-N1287))","v":0},"",null,null,null,null,null,{"$f":"IF(H1287=\"\",0,1)","v":0},{"$f":"IF(AND(A1287>0,H1287=\"\",$V$5007>0),\"NO\",\"\")","v":""}]
[null,"",null,null,null,null,null,null,0,null,null,null,null,0,0,"",null,null,null,null,null,0,""]
[null,"",null,null,null,null,null,null,0,null,null,null,null,0,0,"",null,null,null,null,null,0,""]
[null,"",null,null,null,null,null,null,0,null,null,null,null,0,0,"",null,null,null,null,null,0,""]
[null,"",null,null,null,null,null,null,0,null,null,null,null,0,0,"",null,null,null,null,null,0,""]
[null,"",null,null,null,null,null,null,0,null,null,null,null,0,0,"",null,null,null,null,null,0,""]
[null,"",null,null,null,null,null,null,0,null,null,null,null,0,0,"",null,null,null,null,null,0,""]
[null,"",null,null,null,null,null,null,0,null,null,null,null,0,0,"",null,null,null,null,null,0,""]
[null,"",null,null,null,null,null,null,0,null,null,null,null,0,0,"",null,null,null,null,null,0,""]
[null,"",null,null,null,null,null,null,0,null,null,null,null,0,0,"",null,null,null,null,null,0,""]
[null,"",null,null,null,null,null,null,0,null,null,null,null,0,0,"",null,null,null,null,null,0,""]
[null,"",null,null,null,null,null,null,0,null,null,null,null,0,0,"",null,null,null,null,null,0,""]
[null,"",null,null,null,null,null,null,0,null,null,null,null,0,0,"",null,null,null,null,null,0,""]
[null,"",null,null,null,null,null,null,0,null,null,null,null,0,0,"",null,null,null,null,null,0,""]
[null,"",null,null,null,null,null,null,0,null,null,null,null,0,0,"",null,null,null,null,null,0,""]
[null,"",null,null,null,null,null,null,0,null,null,null,null,0,0,"",null,null,null,null,null,0,""]
[null,"",null,null,null,null,null,null,0,null,null,null,null,0,0,"",null,null,null,null,null,0,""]
[null,{"$f":"+P1351","v":""},null,null,null,null,null,null,{"$f":"IF(H1351=\"REGISTRO ACTIVO\",1,0)","v":0},null,null,null,null,0,{"$f":"IF(N1351=0,0,IF(N1351=1,1,11-N1351))","v":0},"",null,null,null,null,null,{"$f":"IF(H1351=\"\",0,1)","v":0},{"$f":"IF(AND(A1351>0,H1351=\"\",$V$5007>0),\"NO\",\"\")","v":""}]
[null,"",null,null,null,null,null,null,0,null,null,null,null,0,0,"",null,null,null,null,null,0,""]
[null,"",null,null,null,null,null,null,0,null,null,null,null,0,0,"",null,null,null,null,null,0,""]
[null,"",null,null,null,null,null,null,0,null,null,null,null,0,0,"",null,null,null,null,null,0,""]
[null,"",null,null,null,null,null,null,0,null,null,null,null,0,0,"",null,null,null,null,null,0,""]
[null,"",null,null,null,null,null,null,0,null,null,null,null,0,0,"",null,null,null,null,null,0,""]
[null,"",null,null,null,null,null,null,0,null,null,null,null,0,0,"",null,null,null,null,null,0,""]
[null,"",null,null,null,null,null,null,0,null,null,null,null,0,0,"",null,null,null,null,null,0,""]
[null,"",null,null,null,null,null,null,0,null,null,null,null,0,0,"",null,null,null,null,null,0,""]
[null,"",null,null,null,null,null,null,0,null,null,null,null,0,0,"",null,null,null,null,null,0,""]
[null,"",null,null,null,null,null,null,0,null,null,null,null,0,0,"",null,null,null,null,null,0,""]
[null,"",null,null,null,null,null,null,0,null,null,null,null,0,0,"",null,null,null,null,null,0,""]
[null,"",null,null,null,null,null,null,0,null,null,null,null,0,0,"",null,null,null,null,null,0,""]
[null,"",null,null,null,null,null,null,0,null,null,null,null,0,0,"",null,null,null,null,null,0,""]
[null,"",null,null,null,null,null,null,0,null,null,null,null,0,0,"",null,null,null,null,null,0,""]
[null,"",null,null,null,null,null,null,0,null,null,null,null,0,0,"",null,null,null,null,null,0,""]
[null,"",null,null,null,null,null,null,0,null,null,null,null,0,0,"",null,null,null,null,null,0,""]
[null,"",null,null,null,null,null,null,0,null,null,null,null,0,0,"",null,null,null,null,null,0,""]
[null,"",null,null,null,null,null,null,0,null,null,null,null,0,0,"",null,null,null,null,null,0,""]
[null,"",null,null,null,null,null,null,0,null,null,null,null,0,0,"",null,null,null,null,null,0,""]
[null,"",null,null,null,null,null,null,0,null,null,null,null,0,0,"",null,null,null,null,null,0,""]
[null,"",null,null,null,null,null,null,0,null,null,null,null,0,0,"",null,null,null,null,null,0,""]
[null,"",null,null,null,null,null,null,0,null,null,null,null,0,0,"",null,null,null,null,null,0,""]
[null,"",null,null,null,null,null,null,0,null,null,null,null,0,0,"",null,null,null,null,null,0,""]
[null,"",null,null,null,null,null,null,0,null,null,null,null,0,0,"",null,null,null,null,null,0,""]
[null,"",null,null,null,null,null,null,0,null,null,null,null,0,0,"",null,null,null,null,null,0,""]
[null,"",null,null,null,null,null,null,0,null,null,null,null,0,0,"",null,null,null,null,null,0,""]
[null,"",null,null,null,null,null,null,0,null,null,null,null,0,0,"",null,null,null,null,null,0,""]
[null,"",null,null,null,null,null,null,0,null,null,null,null,0,0,"",null,null,null,null,null,0,""]
[null,"",null,null,null,null,null,null,0,null,null,null,null,0,0,"",null,null,null,null,null,0,""]
[null,"",null,null,null,null,null,null,0,null,null,null,null,0,0,"",null,null,null,null,null,0,""]
[null,"",null,null,null,null,null,null,0,null,null,null,null,0,0,"",null,null,null,null,null,0,""]
[null,"",null,null,null,null,null,null,0,null,null,null,null,0,0,"",null,null,null,null,null,0,""]
[null,"",null,null,null,null,null,null,0,null,null,null,null,{"$f":"MOD((VALUE(MID(TEXT(A1478,\"000000000000000\"),15,1))*3+VALUE(MID(TEXT(A1478,\"000000000000000\"),14,1))*7+VALUE(MID(TEXT(A1478,\"000000000000000\"),13,1))*13+VALUE(MID(TEXT(A1478,\"000000000000000\"),12,1))*17+VALUE(MID(TEXT(A1478,\"000000000000000\"),11,1))*19+VALUE(MID(TEXT(A1478,\"000000000000000\"),10,1))*23+VALUE(MID(TEXT(A1478,\"000000000000000\"),9,1))*29+VALUE(MID(TEXT(A1478,\"000000000000000\"),8,1))*37+VALUE(MID(TEXT(A1478,\"000000000000000\"),7,1))*41+VALUE(MID(TEXT(A1478,\"000000000000000\"),6,1))*43+VALUE(MID(TEXT(A1478,\"000000000000000\"),5,1))*47+VALUE(MID(TEXT(A1478,\"000000000000000\"),4,1))*53+VALUE(MID(TEXT(A1478,\"000000000000000\"),3,1))*59+VALUE(MID(TEXT(A1478,\"000000000000000\"),2,1))*67+VALUE(MID(TEXT(A1478,\"000000000000000\"),1,1))*71),11)","v":0},0,{"$f":"IF(H1478=\"REGISTRO ACTIVO\",O1478,\"\")","v":""},null,null,null,null,null,0,""]
[null,"",null,null,null,null,null,null,0,null,null,null,null,0,0,"",null,null,null,null,null,0,""]
[null,"",null,null,null,null,null,null,0,null,null,null,null,0,0,"",null,null,null,null,null,0,""]
[null,"",null,null,null,null,null,null,0,null,null,null,null,0,0,"",null,null,null,null,null,0,""]
[null,"",null,null,null,null,null,null,0,null,null,null,null,0,0,"",null,null,null,null,null,0,""]
[null,"",null,null,null,null,null,null,0,null,null,null,null,0,0,"",null,null,null,null,null,0,""]
[null,"",null,null,null,null,null,null,0,null,null,null,null,0,0,"",null,null,null,null,null,0,""]
[null,"",null,null,null,null,null,null,0,null,null,null,null,0,0,"",null,null,null,null,null,0,""]
[null,"",null,null,null,null,null,null,0,null,null,null,null,0,0,"",null,null,null,null,null,0,""]
[null,"",null,null,null,null,null,null,0,null,null,null,null,0,0,"",null,null,null,null,null,0,""]
[null,"",null,null,null,null,null,null,0,null,null,null,null,0,0,"",null,null,null,null,null,0,""]
[null,"",null,null,null,null,null,null,0,null,null,null,null,0,0,"",null,null,null,null,null,0,""]
[null,"",null,null,null,null,null,null,0,null,null,null,null,0,0,"",null,null,null,null,null,0,""]
[null,"",null,null,null,null,null,null,0,null,null,null,null,0,0,"",null,null,null,null,null,0,""]
[null,"",null,null,null,null,null,null,0,null,null,null,null,0,0,"",null,null,null,null,null,0,""]
[null,"",null,null,null,null,null,null,0,null,null,null,null,0,0,"",null,null,null,null,null,0,""]
[null,"",null,null,null,null,null,null,0,null,null,null,null,0,0,"",null,null,null,null,null,0,""]
[null,"",null,null,null,null,null,null,0,null,null,null,null,0,0,"",null,null,null,null,null,0,""]
[null,"",null,null,null,null,null,null,0,null,null,null,null,0,0,"",null,null,null,null,null,0,""]
[null,"",null,null,null,null,null,null,0,null,null,null,null,0,0,"",null,null,null,null,null,0,""]
[null,"",null,null,null,null,null,null,0,null,null,null,null,0,0,"",null,null,null,null,null,0,""]
[null,"",null,null,null,null,null,null,0,null,null,null,null,0,0,"",null,null,null,null,null,0,""]
[null,"",null,null,null,null,null,null,0,null,null,null,null,0,0,"",null,null,null,null,null,0,""]
[null,"",null,null,null,null,null,null,0,null,null,null,null,0,0,"",null,null,null,null,null,0,""]
[null,"",null,null,null,null,null,null,0,null,null,null,null,0,0,"",null,null,null,null,null,0,""]
[null,"",null,null,null,null,null,null,0,null,null,null,null,0,0,"",null,null,null,null,null,0,""]
[null,"",null,null,null,null,null,null,0,null,null,null,null,0,0,"",null,null,null,null,null,0,""]
[null,"",null,null,null,null,null,null,0,null,null,null,null,0,0,"",null,null,null,null,null,0,""]
[null,"",null,null,null,null,null,null,0,null,null,null,null,0,0,"",null,null,null,null,null,0,""]
[null,"",null,null,null,null,null,null,0,null,null,null,null,0,0,"",null,null,null,null,null,0,""]
[null,"",null,null,null,null,null,null,0,null,null,null,null,0,0,"",null,null,null,null,null,0,""]
[null,"",null,null,null,null,null,null,0,null,null,null,null,0,0,"",null,null,null,null,null,0,""]
[null,"",null,null,null,null,null,null,0,null,null,null,null,0,0,"",null,null,null,null,null,0,""]
[null,"",null,null,null,null,null,null,0,null,null,null,null,0,0,"",null,null,null,null,null,0,""]
[null,"",null,null,null,null,null,null,0,null,null,null,null,0,0,"",null,null,null,null,null,0,""]
[null,"",null,null,null,null,null,null,0,null,null,null,null,0,0,"",null,null,null,null,null,0,""]
[null,"",null,null,null,null,null,null,0,null,null,null,null,0,0,"",null,null,null,null,null,0,""]
[null,"",null,null,null,null,null,null,0,null,null,null,null,0,0,"",null,null,null,null,null,0,""]
[null,"",null,null,null,null,null,null,0,null,null,null,null,0,0,"",null,null,null,null,null,0,""]
[null,"",null,null,null,null,null,null,0,null,null,null,null,0,0,"",null,null,null,null,null,0,""]
[null,"",null,null,null,null,null,null,0,null,null,null,null,0,0,"",null,null,null,null,null,0,""]
[null,"",null,null,null,null,null,null,0,null,null,null,null,0,0,"",null,null,null,null,null,0,""]
[null,"",null,null,null,null,null,null,0,null,null,null,null,0,0,"",null,null,null,null,null,0,""]
[null,"",null,null,null,null,null,null,0,null,null,null,null,0,0,"",null,null,null,null,null,0,""]
[null,"",null,null,null,null,null,null,0,null,null,null,null,0,0,"",null,null,null,null,null,0,""]
[null,"",null,null,null,null,null,null,0,null,null,null,null,0,0,"",null,null,null,null,null,0,""]
[null,"",null,null,null,null,null,null,0,null,null,null,null,0,0,"",null,null,null,null,null,0,""]
[null,"",null,null,null,null,null,null,0,null,null,null,null,0,0,"",null,null,null,null,null,0,""]
[null,"",null,null,null,null,null,null,0,null,null,null,null,0,0,"",null,null,null,null,null,0,""]
[null,"",null,null,null,null,null,null,0,null,null,null,null,0,0,"",null,null,null,null,null,0,""]
[null,"",null,null,null,null,null,null,0,null,null,null,null,0,0,"",null,null,null,null,null,0,""]
[null,"",null,null,null,null,null,null,0,null,null,null,null,0,0,"",null,null,null,null,null,0,""]
[null,"",null,null,null,null,null,null,0,null,null,null,null,0,0,"",null,null,null,null,null,0,""]
[null,"",null,null,null,null,null,null,0,null,null,null,null,0,0,"",null,null,null,null,null,0,""]
[null,"",null,null,null,null,null,null,0,null,null,null,null,0,0,"",null,null,null,null,null,0,""]
[null,"",null,null,null,null,null,null,0,null,null,null,null,0,0,"",null,null,null,null,null,0,""]
[null,"",null,null,null,null,null,null,0,null,null,null,null,0,0,"",null,null,null,null,null,0,""]
[null,"",null,null,null,null,null,null,0,null,null,null,null,0,0,"",null,null,null,null,null,0,""]
[null,"",null,null,null,null,null,null,0,null,null,null,null,0,0,"",null,null,null,null,null,0,""]
[null,"",null,null,null,null,null,null,0,null,null,null,null,0,0,"",null,null,null,null,null,0,""]
[null,"",null,null,null,null,null,null,0,null,null,null,null,0,0,"",null,null,null,null,null,0,""]
[null,"",null,null,null,null,null,null,0,null,null,null,null,0,0,"",null,null,null,null,null,0,""]
[null,"",null,null,null,null,null,null,0,null,null,null,null,0,0,"",null,null,null,null,null,0,""]
[null,"",null,null,null,null,null,null,0,null,null,null,null,0,0,"",null,null,null,null,null,0,""]
[null,"",null,null,null,null,null,null,0,null,null,null,null,0,0,"",null,null,null,null,null,0,""]
[null,"",null,null,null,null,null,null,0,null,null,null,null,0,0,"",null,null,null,null,null,0,""]
[null,"",null,null,null,null,null,null,0,null,null,null,null,0,0,"",null,null,null,null,null,0,""]
[null,"",null,null,null,null,null,null,0,null,null,null,null,0,0,"",null,null,null,null,null,0,""]
[null,"",null,null,null,null,null,null,0,null,null,null,null,{"$f":"MOD((VALUE(MID(TEXT(A1734,\"000000000000000\"),15,1))*3+VALUE(MID(TEXT(A1734,\"000000000000000\"),14,1))*7+VALUE(MID(TEXT(A1734,\"000000000000000\"),13,1))*13+VALUE(MID(TEXT(A1734,\"000000000000000\"),12,1))*17+VALUE(MID(TEXT(A1734,\"000000000000000\"),11,1))*19+VALUE(MID(TEXT(A1734,\"000000000000000\"),10,1))*23+VALUE(MID(TEXT(A1734,\"000000000000000\"),9,1))*29+VALUE(MID(TEXT(A1734,\"000000000000000\"),8,1))*37+VALUE(MID(TEXT(A1734,\"000000000000000\"),7,1))*41+VALUE(MID(TEXT(A1734,\"000000000000000\"),6,1))*43+VALUE(MID(TEXT(A1734,\"000000000000000\"),5,1))*47+VALUE(MID(TEXT(A1734,\"000000000000000\"),4,1))*53+VALUE(MID(TEXT(A1734,\"000000000000000\"),3,1))*59+VALUE(MID(TEXT(A1734,\"000000000000000\"),2,1))*67+VALUE(MID(TEXT(A1734,\"000000000000000\"),1,1))*71),11)","v":0},0,{"$f":"IF(H1734=\"REGISTRO ACTIVO\",O1734,\"\")","v":""},null,null,null,null,null,0,""]
[null,{"$f":"+P1735","v":""},null,null,null,null,null,null,{"$f":"IF(H1735=\"REGISTRO ACTIVO\",1,0)","v":0},null,null,null,null,0,{"$f":"IF(N1735=0,0,IF(N1735=1,1,11-N1735))","v":0},"",null,null,null,null,null,{"$f":"IF(H1735=\"\",0,1)","v":0},{"$f":"IF(AND(A1735>0,H1735=\"\",$V$5007>0),\"NO\",\"\")","v":""}]
[null,"",null,null,null,null,null,null,0,null,null,null,null,0,0,"",null,null,null,null,null,0,""]
[null,"",null,null,null,null,null,null,0,null,null,null,null,0,0,"",null,null,null,null,null,0,""]
[null,"",null,null,null,null,null,null,0,null,null,null,null,0,0,"",null,null,null,null,null,0,""]
[null,"",null,null,null,null,null,null,0,null,null,null,null,0,0,"",null,null,null,null,null,0,""]
[null,"",null,null,null,null,null,null,0,null,null,null,null,0,0,"",null,null,null,null,null,0,""]
[null,"",null,null,null,null,null,null,0,null,null,null,null,0,0,"",null,null,null,null,null,0,""]
[null,"",null,null,null,null,null,null,0,null,null,null,null,0,0,"",null,null,null,null,null,0,""]
[null,"",null,null,null,null,null,null,0,null,null,null,null,0,0,"",null,null,null,null,null,0,""]
[null,"",null,null,null,null,null,null,0,null,null,null,null,0,0,"",null,null,null,null,null,0,""]
[null,"",null,null,null,null,null,null,0,null,null,null,null,0,0,"",null,null,null,null,null,0,""]
[null,"",null,null,null,null,null,null,0,null,null,null,null,0,0,"",null,null,null,null,null,0,""]
[null,"",null,null,null,null,null,null,0,null,null,null,null,0,0,"",null,null,null,null,null,0,""]
[null,"",null,null,null,null,null,null,0,null,null,null,null,0,0,"",null,null,null,null,null,0,""]
[null,"",null,null,null,null,null,null,0,null,null,null,null,0,0,"",null,null,null,null,null,0,""]
[null,"",null,null,null,null,null,null,0,null,null,null,null,0,0,"",null,null,null,null,null,0,""]
[null,"",null,null,null,null,null,null,0,null,null,null,null,0,0,"",null,null,null,null,null,0,""]
[null,{"$f":"+P1799","v":""},null,null,null,null,null,null,{"$f":"IF(H1799=\"REGISTRO ACTIVO\",1,0)","v":0},null,null,null,null,0,{"$f":"IF(N1799=0,0,IF(N1799=1,1,11-N1799))","v":0},"",null,null,null,null,null,{"$f":"IF(H1799=\"\",0,1)","v":0},{"$f":"IF(AND(A1799>0,H1799=\"\",$V$5007>0),\"NO\",\"\")","v":""}]
[null,"",null,null,null,null,null,null,0,null,null,null,null,0,0,"",null,null,null,null,null,0,""]
[null,"",null,null,null,null,null,null,0,null,null,null,null,0,0,"",null,null,null,null,null,0,""]
[null,"",null,null,null,null,null,null,0,null,null,null,null,0,0,"",null,null,null,null,null,0,""]
[null,"",null,null,null,null,null,null,0,null,null,null,null,0,0,"",null,null,null,null,null,0,""]
[null,"",null,null,null,null,null,null,0,null,null,null,null,0,0,"",null,null,null,null,null,0,""]
[null,"",null,null,null,null,null,null,0,null,null,null,null,0,0,"",null,null,null,null,null,0,""]
[null,"",null,null,null,null,null,null,0,null,null,null,null,0,0,"",null,null,null,null,null,0,""]
[null,"",null,null,null,null,null,null,0,null,null,null,null,0,0,"",null,null,null,null,null,0,""]
[null,"",null,null,null,null,null,null,0,null,null,null,null,0,0,"",null,null,null,null,null,0,""]
[null,"",null,null,null,null,null,null,0,null,null,null,null,0,0,"",null,null,null,null,null,0,""]
[null,"",null,null,null,null,null,null,0,null,null,null,null,0,0,"",null,null,null,null,null,0,""]
[null,"",null,null,null,null,null,null,0,null,null,null,null,0,0,"",null,null,null,null,null,0,""]
[null,"",null,null,null,null,null,null,0,null,null,null,null,0,0,"",null,null,null,null,null,0,""]
[null,"",null,null,null,null,null,null,0,null,null,null,null,0,0,"",null,null,null,null,null,0,""]
[null,"",null,null,null,null,null,null,0,null,null,null,null,0,0,"",null,null,null,null,null,0,""]
[null,"",null,null,null,null,null,null,0,null,null,null,null,0,0,"",null,null,null,null,null,0,""]
[null,"",null,null,null,null,null,null,0,null,null,null,null,0,0,"",null,null,null,null,null,0,""]
[null,"",null,null,null,null,null,null,0,null,null,null,null,0,0,"",null,null,null,null,null,0,""]
[null,"",null,null,null,null,null,null,0,null,null,null,null,0,0,"",null,null,null,null,null,0,""]
[null,"",null,null,null,null,null,null,0,null,null,null,null,0,0,"",null,null,null,null,null,0,""]
[null,"",null,null,null,null,null,null,0,null,null,null,null,0,0,"",null,null,null,null,null,0,""]
[null,"",null,null,null,null,null,null,0,null,null,null,null,0,0,"",null,null,null,null,null,0,""]
[null,"",null,null,null,null,null,null,0,null,null,null,null,0,0,"",null,null,null,null,null,0,""]
[null,"",null,null,null,null,null,null,0,null,null,null,null,0,0,"",null,null,null,null,null,0,""]
[null,"",null,null,null,null,null,null,0,null,null,null,null,0,0,"",null,null,null,null,null,0,""]
[null,"",null,null,null,null,null,null,0,null,null,null,null,0,0,"",null,null,null,null,null,0,""]
[null,"",null,null,null,null,null,null,0,null,null,null,null,0,0,"",null,null,null,null,null,0,""]
[null,"",null,null,null,null,null,null,0,null,null,null,null,0,0,"",null,null,null,null,null,0,""]
[null,"",null,null,null,null,null,null,0,null,null,null,null,0,0,"",null,null,null,null,null,0,""]
[null,"",null,null,null,null,null,null,0,null,null,null,null,0,0,"",null,null,null,null,null,0,""]
[null,"",null,null,null,null,null,null,0,null,null,null,null,0,0,"",null,null,null,null,null,0,""]
[null,"",null,null,null,null,null,null,0,null,null,null,null,0,0,"",null,null,null,null,null,0,""]
[null,"",null,null,null,null,null,null,0,null,null,null,null,0,0,"",null,null,null,null,null,0,""]
[null,"",null,null,null,null,null,null,0,null,null,null,null,0,0,"",null,null,null,null,null,0,""]
[null,"",null,null,null,null,null,null,0,null,null,null,null,0,0,"",null,null,null,null,null,0,""]
[null,"",null,null,null,null,null,null,0,null,null,null,null,0,0,"",null,null,null,null,null,0,""]
[null,"",null,null,null,null,null,null,0,null,null,null,null,0,0,"",null,null,null,null,null,0,""]
[null,"",null,null,null,null,null,null,0,null,null,null,null,0,0,"",null,null,null,null,null,0,""]
[null,"",null,null,null,null,null,null,0,null,null,null,null,0,0,"",null,null,null,null,null,0,""]
[null,"",null,null,null,null,null,null,0,null,null,null,null,0,0,"",null,null,null,null,null,0,""]
[null,"",null,null,null,null,null,null,0,null,null,null,null,0,0,"",null,null,null,null,null,0,""]
[null,"",null,null,null,null,null,null,0,null,null,null,null,0,0,"",null,null,null,null,null,0,""]
[null,"",null,null,null,null,null,null,0,null,null,null,null,0,0,"",null,null,null,null,null,0,""]
[null,"",null,null,null,null,null,null,0,null,null,null,null,0,0,"",null,null,null,null,null,0,""]
[null,"",null,null,null,null,null,null,0,null,null,null,null,0,0,"",null,null,null,null,null,0,""]
[null,"",null,null,null,null,null,null,0,null,null,null,null,0,0,"",null,null,null,null,null,0,""]
[null,"",null,null,null,null,null,null,0,null,null,null,null,0,0,"",null,null,null,null,null,0,""]
[null,"",null,null,null,null,null,null,0,null,null,null,null,0,0,"",null,null,null,null,null,0,""]
[null,"",null,null,null,null,null,null,0,null,null,null,null,0,0,"",null,null,null,null,null,0,""]
[null,"",null,null,null,null,null,null,0,null,null,null,null,{"$f":"MOD((VALUE(MID(TEXT(A1990,\"000000000000000\"),15,1))*3+VALUE(MID(TEXT(A1990,\"000000000000000\"),14,1))*7+VALUE(MID(TEXT(A1990,\"000000000000000\"),13,1))*13+VALUE(MID(TEXT(A1990,\"000000000000000\"),12,1))*17+VALUE(MID(TEXT(A1990,\"000000000000000\"),11,1))*19+VALUE(MID(TEXT(A1990,\"000000000000000\"),10,1))*23+VALUE(MID(TEXT(A1990,\"000000000000000\"),9,1))*29+VALUE(MID(TEXT(A1990,\"000000000000000\"),8,1))*37+VALUE(MID(TEXT(A1990,\"000000000000000\"),7,1))*41+VALUE(MID(TEXT(A1990,\"000000000000000\"),6,1))*43+VALUE(MID(TEXT(A1990,\"000000000000000\"),5,1))*47+VALUE(MID(TEXT(A1990,\"000000000000000\"),4,1))*53+VALUE(MID(TEXT(A1990,\"000000000000000\"),3,1))*59+VALUE(MID(TEXT(A1990,\"000000000000000\"),2,1))*67+VALUE(MID(TEXT(A1990,\"000000000000000\"),1,1))*71),11)","v":0},0,{"$f":"IF(H1990=\"REGISTRO ACTIVO\",O1990,\"\")","v":""},null,null,null,null,null,0,""]
[null,"",null,null,null,null,null,null,0,null,null,null,null,0,0,"",null,null,null,null,null,0,""]
[null,"",null,null,null,null,null,null,0,null,null,null,null,0,0,"",null,null,null,null,null,0,""]
[null,"",null,null,null,null,null,null,0,null,null,null,null,0,0,"",null,null,null,null,null,0,""]
[null,"",null,null,null,null,null,null,0,null,null,null,null,0,0,"",null,null,null,null,null,0,""]
[null,"",null,null,null,null,null,null,0,null,null,null,null,0,0,"",null,null,null,null,null,0,""]
[null,"",null,null,null,null,null,null,0,null,null,null,null,0,0,"",null,null,null,null,null,0,""]
[null,"",null,null,null,null,null,null,0,null,null,null,null,0,0,"",null,null,null,null,null,0,""]
[null,"",null,null,null,null,null,null,0,null,null,null,null,0,0,"",null,null,null,null,null,0,""]
[null,"",null,null,null,null,null,null,0,null,null,null,null,0,0,"",null,null,null,null,null,0,""]
[null,"",null,null,null,null,null,null,0,null,null,null,null,0,0,"",null,null,null,null,null,0,""]
[null,"",null,null,null,null,null,null,0,null,null,null,null,0,0,"",null,null,null,null,null,0,""]
[null,"",null,null,null,null,null,null,0,null,null,null,null,0,0,"",null,null,null,null,null,0,""]
[null,"",null,null,null,null,null,null,0,null,null,null,null,0,0,"",null,null,null,null,null,0,""]
[null,"",null,null,null,null,null,null,0,null,null,null,null,0,0,"",null,null,null,null,null,0,""]
[null,"",null,null,null,null,null,null,0,null,null,null,null,0,0,"",null,null,null,null,null,0,""]
[null,"",null,null,null,null,null,null,0,null,null,null,null,0,0,"",null,null,null,null,null,0,""]
[null,"",null,null,null,null,null,null,0,null,null,null,null,0,0,"",null,null,null,null,null,0,""]
[null,"",null,null,null,null,null,null,0,null,null,null,null,0,0,"",null,null,null,null,null,0,""]
[null,"",null,null,null,null,null,null,0,null,null,null,null,0,0,"",null,null,null,null,null,0,""]
[null,"",null,null,null,null,null,null,0,null,null,null,null,0,0,"",null,null,null,null,null,0,""]
[null,"",null,null,null,null,null,null,0,null,null,null,null,0,0,"",null,null,null,null,null,0,""]
[null,"",null,null,null,null,null,null,0,null,null,null,null,0,0,"",null,null,null,null,null,0,""]
[null,"",null,null,null,null,null,null,0,null,null,null,null,0,0,"",null,null,null,null,null,0,""]
[null,"",null,null,null,null,null,null,0,null,null,null,null,0,0,"",null,null,null,null,null,0,""]
[null,"",null,null,null,null,null,null,0,null,null,null,null,0,0,"",null,null,null,null,null,0,""]
[null,"",null,null,null,null,null,null,0,null,null,null,null,0,0,"",null,null,null,null,null,0,""]
[null,"",null,null,null,null,null,null,0,null,null,null,null,0,0,"",null,null,null,null,null,0,""]
[null,"",null,null,null,null,null,null,0,null,null,null,null,0,0,"",null,null,null,null,null,0,""]
[null,"",null,null,null,null,null,null,0,null,null,null,null,0,0,"",null,null,null,null,null,0,""]
[null,"",null,null,null,null,null,null,0,null,null,null,null,0,0,"",null,null,null,null,null,0,""]
[null,"",null,null,null,null,null,null,0,null,null,null,null,0,0,"",null,null,null,null,null,0,""]
[null,"",null,null,null,null,null,null,0,null,null,null,null,0,0,"",null,null,null,null,null,0,""]
[null,"",null,null,null,null,null,null,0,null,null,null,null,0,0,"",null,null,null,null,null,0,""]
[null,"",null,null,null,null,null,null,0,null,null,null,null,0,0,"",null,null,null,null,null,0,""]
[null,{"$f":"+P2119","v":""},null,null,null,null,null,null,{"$f":"IF(H2119=\"REGISTRO ACTIVO\",1,0)","v":0},null,null,null,null,0,{"$f":"IF(N2119=0,0,IF(N2119=1,1,11-N2119))","v":0},"",null,null,null,null,null,{"$f":"IF(H2119=\"\",0,1)","v":0},{"$f":"IF(AND(A2119>0,H2119=\"\",$V$5007>0),\"NO\",\"\")","v":""}]
[null,"",null,null,null,null,null,null,0,null,null,null,null,0,0,"",null,null,null,null,null,0,""]
[null,"",null,null,null,null,null,null,0,null,null,null,null,0,0,"",null,null,null,null,null,0,""]
[null,"",null,null,null,null,null,null,0,null,null,null,null,0,0,"",null,null,null,null,null,0,""]
[null,"",null,null,null,null,null,null,0,null,null,null,null,0,0,"",null,null,null,null,null,0,""]
[null,"",null,null,null,null,null,null,0,null,null,null,null,0,0,"",null,null,null,null,null,0,""]
[null,"",null,null,null,null,null,null,0,null,null,null,null,0,0,"",null,null,null,null,null,0,""]
[null,"",null,null,null,null,null,null,0,null,null,null,null,0,0,"",null,null,null,null,null,0,""]
[null,"",null,null,null,null,null,null,0,null,null,null,null,0,0,"",null,null,null,null,null,0,""]
[null,"",null,null,null,null,null,null,0,null,null,null,null,0,0,"",null,null,null,null,null,0,""]
[null,"",null,null,null,null,null,null,0,null,null,null,null,0,0,"",null,null,null,null,null,0,""]
[null,"",null,null,null,null,null,null,0,null,null,null,null,0,0,"",null,null,null,null,null,0,""]
[null,"",null,null,null,null,null,null,0,null,null,null,null,0,0,"",null,null,null,null,null,0,""]
[null,"",null,null,null,null,null,null,0,null,null,null,null,0,0,"",null,null,null,null,null,0,""]
[null,"",null,null,null,null,null,null,0,null,null,null,null,0,0,"",null,null,null,null,null,0,""]
[null,"",null,null,null,null,null,null,0,null,null,null,null,0,0,"",null,null,null,null,null,0,""]
[null,"",null,null,null,null,null,null,0,null,null,null,null,0,0,"",null,null,null,null,null,0,""]
[null,{"$f":"+P2183","v":""},null,null,null,null,null,null,{"$f":"IF(H2183=\"REGISTRO ACTIVO\",1,0)","v":0},null,null,null,null,0,{"$f":"IF(N2183=0,0,IF(N2183=1,1,11-N2183))","v":0},"",null,null,null,null,null,{"$f":"IF(H2183=\"\",0,1)","v":0},{"$f":"IF(AND(A2183>0,H2183=\"\",$V$5007>0),\"NO\",\"\")","v":""}]
[null,"",null,null,null,null,null,null,0,null,null,null,null,0,0,"",null,null,null,null,null,0,""]
[null,"",null,null,null,null,null,null,0,null,null,null,null,0,0,"",null,null,null,null,null,0,""]
[null,"",null,null,null,null,null,null,0,null,null,null,null,0,0,"",null,null,null,null,null,0,""]
[null,"",null,null,null,null,null,null,0,null,null,null,null,0,0,"",null,null,null,null,null,0,""]
[null,"",null,null,null,null,null,null,0,null,null,null,null,0,0,"",null,null,null,null,null,0,""]
[null,"",null,null,null,null,null,null,0,null,null,null,null,0,0,"",null,null,null,null,null,0,""]
[null,"",null,null,null,null,null,null,0,null,null,null,null,0,0,"",null,null,null,null,null,0,""]
[null,"",null,null,null,null,null,null,0,null,null,null,null,0,0,"",null,null,null,null,null,0,""]
[null,"",null,null,null,null,null,null,0,null,null,null,null,0,0,"",null,null,null,null,null,0,""]
[null,"",null,null,null,null,null,null,0,null,null,null,null,0,0,"",null,null,null,null,null,0,""]
[null,"",null,null,null,null,null,null,0,null,null,null,null,0,0,"",null,null,null,null,null,0,""]
[null,"",null,null,null,null,null,null,0,null,null,null,null,0,0,"",null,null,null,null,null,0,""]
[null,"",null,null,null,null,null,null,0,null,null,null,null,0,0,"",null,null,null,null,null,0,""]
[null,"",null,null,null,null,null,null,0,null,null,null,null,0,0,"",null,null,null,null,null,0,""]
[null,"",null,null,null,null,null,null,0,null,null,null,null,0,0,"",null,null,null,null,null,0,""]
[null,"",null,null,null,null,null,null,0,null,null,null,null,{"$f":"MOD((VALUE(MID(TEXT(A2246,\"000000000000000\"),15,1))*3+VALUE(MID(TEXT(A2246,\"000000000000000\"),14,1))*7+VALUE(MID(TEXT(A2246,\"000000000000000\"),13,1))*13+VALUE(MID(TEXT(A2246,\"000000000000000\"),12,1))*17+VALUE(MID(TEXT(A2246,\"000000000000000\"),11,1))*19+VALUE(MID(TEXT(A2246,\"000000000000000\"),10,1))*23+VALUE(MID(TEXT(A2246,\"000000000000000\"),9,1))*29+VALUE(MID(TEXT(A2246,\"000000000000000\"),8,1))*37+VALUE(MID(TEXT(A2246,\"000000000000000\"),7,1))*41+VALUE(MID(TEXT(A2246,\"000000000000000\"),6,1))*43+VALUE(MID(TEXT(A2246,\"000000000000000\"),5,1))*47+VALUE(MID(TEXT(A2246,\"000000000000000\"),4,1))*53+VALUE(MID(TEXT(A2246,\"000000000000000\"),3,1))*59+VALUE(MID(TEXT(A2246,\"000000000000000\"),2,1))*67+VALUE(MID(TEXT(A2246,\"000000000000000\"),1,1))*71),11)","v":0},0,{"$f":"IF(H2246=\"REGISTRO ACTIVO\",O2246,\"\")","v":""},null,null,null,null,null,0,""]
[null,"",null,null,null,null,null,null,0,null,null,null,null,0,0,"",null,null,null,null,null,0,""]
[null,"",null,null,null,null,null,null,0,null,null,null,null,0,0,"",null,null,null,null,null,0,""]
[null,"",null,null,null,null,null,null,0,null,null,null,null,0,0,"",null,null,null,null,null,0,""]
[null,"",null,null,null,null,null,null,0,null,null,null,null,0,0,"",null,null,null,null,null,0,""]
[null,"",null,null,null,null,null,null,0,null,null,null,null,0,0,"",null,null,null,null,null,0,""]
[null,"",null,null,null,null,null,null,0,null,null,null,null,0,0,"",null,null,null,null,null,0,""]
[null,"",null,null,null,null,null,null,0,null,null,null,null,0,0,"",null,null,null,null,null,0,""]
[null,"",null,null,null,null,null,null,0,null,null,null,null,0,0,"",null,null,null,null,null,0,""]
[null,"",null,null,null,null,null,null,0,null,null,null,null,0,0,"",null,null,null,null,null,0,""]
[null,"",null,null,null,null,null,null,0,null,null,null,null,0,0,"",null,null,null,null,null,0,""]
[null,"",null,null,null,null,null,null,0,null,null,null,null,0,0,"",null,null,null,null,null,0,""]
[null,"",null,null,null,null,null,null,0,null,null,null,null,0,0,"",null,null,null,null,null,0,""]
[null,"",null,null,null,null,null,null,0,null,null,null,null,0,0,"",null,null,null,null,null,0,""]
[null,"",null,null,null,null,null,null,0,null,null,null,null,0,0,"",null,null,null,null,null,0,""]
[null,"",null,null,null,null,null,null,0,null,null,null,null,0,0,"",null,null,null,null,null,0,""]
[null,"",null,null,null,null,null,null,0,null,null,null,null,0,0,"",null,null,null,null,null,0,""]
[null,"",null,null,null,null,null,null,0,null,null,null,null,0,0,"",null,null,null,null,null,0,""]
[null,"",null,null,null,null,null,null,0,null,null,null,null,0,0,"",null,null,null,null,null,0,""]
[null,"",null,null,null,null,null,null,0,null,null,null,null,0,0,"",null,null,null,null,null,0,""]
[null,"",null,null,null,null,null,null,0,null,null,null,null,0,0,"",null,null,null,null,null,0,""]
[null,"",null,null,null,null,null,null,0,null,null,null,null,0,0,"",null,null,null,null,null,0,""]
[null,"",null,null,null,null,null,null,0,null,null,null,null,0,0,"",null,null,null,null,null,0,""]
[null,"",null,null,null,null,null,null,0,null,null,null,null,0,0,"",null,null,null,null,null,0,""]
[null,"",null,null,null,null,null,null,0,null,null,null,null,0,0,"",null,null,null,null,null,0,""]
[null,"",null,null,null,null,null,null,0,null,null,null,null,0,0,"",null,null,null,null,null,0,""]
[null,"",null,null,null,null,null,null,0,null,null,null,null,0,0,"",null,null,null,null,null,0,""]
[null,"",null,null,null,null,null,null,0,null,null,null,null,0,0,"",null,null,null,null,null,0,""]
[null,"",null,null,null,null,null,null,0,null,null,null,null,0,0,"",null,null,null,null,null,0,""]
[null,"",null,null,null,null,null,null,0,null,null,null,null,0,0,"",null,null,null,null,null,0,""]
[null,"",null,null,null,null,null,null,0,null,null,null,null,0,0,"",null,null,null,null,null,0,""]
[null,"",null,null,null,null,null,null,0,null,null,null,null,0,0,"",null,null,null,null,null,0,""]
[null,"",null,null,null,null,null,null,0,null,null,null,null,0,0,"",null,null,null,null,null,0,""]
[null,"",null,null,null,null,null,null,0,null,null,null,null,0,0,"",null,null,null,null,null,0,""]
[null,"",null,null,null,null,null,null,0,null,null,null,null,0,0,"",null,null,null,null,null,0,""]
[null,"",null,null,null,null,null,null,0,null,null,null,null,0,0,"",null,null,null,null,null,0,""]
[null,"",null,null,null,null,null,null,0,null,null,null,null,0,0,"",null,null,null,null,null,0,""]
[null,"",null,null,null,null,null,null,0,null,null,null,null,0,0,"",null,null,null,null,null,0,""]
[null,"",null,null,null,null,null,null,0,null,null,null,null,0,0,"",null,null,null,null,null,0,""]
[null,"",null,null,null,null,null,null,0,null,null,null,null,0,0,"",null,null,null,null,null,0,""]
[null,"",null,null,null,null,null,null,0,null,null,null,null,0,0,"",null,null,null,null,null,0,""]
[null,"",null,null,null,null,null,null,0,null,null,null,null,0,0,"",null,null,null,null,null,0,""]
[null,"",null,null,null,null,null,null,0,null,null,null,null,0,0,"",null,null,null,null,null,0,""]
[null,"",null,null,null,null,null,null,0,null,null,null,null,0,0,"",null,null,null,null,null,0,""]
[null,"",null,null,null,null,null,null,0,null,null,null,null,0,0,"",null,null,null,null,null,0,""]
[null,"",null,null,null,null,null,null,0,null,null,null,null,0,0,"",null,null,null,null,null,0,""]
[null,"",null,null,null,null,null,null,0,null,null,null,null,0,0,"",null,null,null,null,null,0,""]
[null,"",null,null,null,null,null,null,0,null,null,null,null,0,0,"",null,null,null,null,null,0,""]
[null,"",null,null,null,null,null,null,0,null,null,null,null,0,0,"",null,null,null,null,null,0,""]
[null,"",null,null,null,null,null,null,0,null,null,null,null,0,0,"",null,null,null,null,null,0,""]
[null,"",null,null,null,null,null,null,0,null,null,null,null,0,0,"",null,null,null,null,null,0,""]
[null,"",null,null,null,null,null,null,0,null,null,null,null,0,0,"",null,null,null,null,null,0,""]
[null,"",null,null,null,null,null,null,0,null,null,null,null,0,0,"",null,null,null,null,null,0,""]
[null,"",null,null,null,null,null,null,0,null,null,null,null,0,0,"",null,null,null,null,null,0,""]
[null,"",null,null,null,null,null,null,0,null,null,null,null,0,0,"",null,null,null,null,null,0,""]
[null,"",null,null,null,null,null,null,0,null,null,null,null,0,0,"",null,null,null,null,null,0,""]
[null,"",null,null,null,null,null,null,0,null,null,null,null,0,0,"",null,null,null,null,null,0,""]
[null,"",null,null,null,null,null,null,0,null,null,null,null,0,0,"",null,null,null,null,null,0,""]
[null,"",null,null,null,null,null,null,0,null,null,null,null,0,0,"",null,null,null,null,null,0,""]
[null,"",null,null,null,null,null,null,0,null,null,null,null,0,0,"",null,null,null,null,null,0,""]
[null,"",null,null,null,null,null,null,0,null,null,null,null,0,0,"",null,null,null,null,null,0,""]
[null,"",null,null,null,null,null,null,0,null,null,null,null,0,0,"",null,null,null,null,null,0,""]
[null,"",null,null,null,null,null,null,0,null,null,null,null,0,0,"",null,null,null,null,null,0,""]
[null,"",null,null,null,null,null,null,0,null,null,null,null,0,0,"",null,null,null,null,null,0,""]
[null,"",null,null,null,null,null,null,0,null,null,null,null,0,0,"",null,null,null,null,null,0,""]
[null,"",null,null,null,null,null,null,0,null,null,null,null,0,0,"",null,null,null,null,null,0,""]
[null,"",null,null,null,null,null,null,0,null,null,null,null,0,0,"",null,null,null,null,null,0,""]
[null,"",null,null,null,null,null,null,0,null,null,null,null,0,0,"",null,null,null,null,null,0,""]
[null,"",null,null,null,null,null,null,0,null,null,null,null,{"$f":"MOD((VALUE(MID(TEXT(A2502,\"000000000000000\"),15,1))*3+VALUE(MID(TEXT(A2502,\"000000000000000\"),14,1))*7+VALUE(MID(TEXT(A2502,\"000000000000000\"),13,1))*13+VALUE(MID(TEXT(A2502,\"000000000000000\"),12,1))*17+VALUE(MID(TEXT(A2502,\"000000000000000\"),11,1))*19+VALUE(MID(TEXT(A2502,\"000000000000000\"),10,1))*23+VALUE(MID(TEXT(A2502,\"000000000000000\"),9,1))*29+VALUE(MID(TEXT(A2502,\"000000000000000\"),8,1))*37+VALUE(MID(TEXT(A2502,\"000000000000000\"),7,1))*41+VALUE(MID(TEXT(A2502,\"000000000000000\"),6,1))*43+VALUE(MID(TEXT(A2502,\"000000000000000\"),5,1))*47+VALUE(MID(TEXT(A2502,\"000000000000000\"),4,1))*53+VALUE(MID(TEXT(A2502,\"000000000000000\"),3,1))*59+VALUE(MID(TEXT(A2502,\"000000000000000\"),2,1))*67+VALUE(MID(TEXT(A2502,\"000000000000000\"),1,1))*71),11)","v":0},0,{"$f":"IF(H2502=\"REGISTRO ACTIVO\",O2502,\"\")","v":""},null,null,null,null,null,0,""]
[null,{"$f":"+P2503","v":""},null,null,null,null,null,null,{"$f":"IF(H2503=\"REGISTRO ACTIVO\",1,0)","v":0},null,null,null,null,0,{"$f":"IF(N2503=0,0,IF(N2503=1,1,11-N2503))","v":0},"",null,null,null,null,null,{"$f":"IF(H2503=\"\",0,1)","v":0},{"$f":"IF(AND(A2503>0,H2503=\"\",$V$5007>0),\"NO\",\"\")","v":""}]
[null,"",null,null,null,null,null,null,0,null,null,null,null,0,0,"",null,null,null,null,null,0,""]
[null,"",null,null,null,null,null,null,0,null,null,null,null,0,0,"",null,null,null,null,null,0,""]
[null,"",null,null,null,null,null,null,0,null,null,null,null,0,0,"",null,null,null,null,null,0,""]
[null,"",null,null,null,null,null,null,0,null,null,null,null,0,0,"",null,null,null,null,null,0,""]
[null,"",null,null,null,null,null,null,0,null,null,null,null,0,0,"",null,null,null,null,null,0,""]
[null,"",null,null,null,null,null,null,0,null,null,null,null,0,0,"",null,null,null,null,null,0,""]
[null,"",null,null,null,null,null,null,0,null,null,null,null,0,0,"",null,null,null,null,null,0,""]
[null,"",null,null,null,null,null,null,0,null,null,null,null,0,0,"",null,null,null,null,null,0,""]
[null,"",null,null,null,null,null,null,0,null,null,null,null,0,0,"",null,null,null,null,null,0,""]
[null,"",null,null,null,null,null,null,0,null,null,null,null,0,0,"",null,null,null,null,null,0,""]
[null,"",null,null,null,null,null,null,0,null,null,null,null,0,0,"",null,null,null,null,null,0,""]
[null,"",null,null,null,null,null,null,0,null,null,null,null,0,0,"",null,null,null,null,null,0,""]
[null,"",null,null,null,null,null,null,0,null,null,null,null,0,0,"",null,null,null,null,null,0,""]
[null,"",null,null,null,null,null,null,0,null,null,null,null,0,0,"",null,null,null,null,null,0,""]
[null,"",null,null,null,null,null,null,0,null,null,null,null,0,0,"",null,null,null,null,null,0,""]
[null,"",null,null,null,null,null,null,0,null,null,null,null,0,0,"",null,null,null,null,null,0,""]
[null,"",null,null,null,null,null,null,0,null,null,null,null,0,0,"",null,null,null,null,null,0,""]
[null,"",null,null,null,null,null,null,0,null,null,null,null,0,0,"",null,null,null,null,null,0,""]
[null,"",null,null,null,null,null,null,0,null,null,null,null,0,0,"",null,null,null,null,null,0,""]
[null,"",null,null,null,null,null,null,0,null,null,null,null,0,0,"",null,null,null,null,null,0,""]
[null,"",null,null,null,null,null,null,0,null,null,null,null,0,0,"",null,null,null,null,null,0,""]
[null,"",null,null,null,null,null,null,0,null,null,null,null,0,0,"",null,null,null,null,null,0,""]
[null,"",null,null,null,null,null,null,0,null,null,null,null,0,0,"",null,null,null,null,null,0,""]
[null,"",null,null,null,null,null,null,0,null,null,null,null,0,0,"",null,null,null,null,null,0,""]
[null,"",null,null,null,null,null,null,0,null,null,null,null,0,0,"",null,null,null,null,null,0,""]
[null,"",null,null,null,null,null,null,0,null,null,null,null,0,0,"",null,null,null,null,null,0,""]
[null,"",null,null,null,null,null,null,0,null,null,null,null,0,0,"",null,null,null,null,null,0,""]
[null,"",null,null,null,null,null,null,0,null,null,null,null,0,0,"",null,null,null,null,null,0,""]
[null,"",null,null,null,null,null,null,0,null,null,null,null,0,0,"",null,null,null,null,null,0,""]
[null,"",null,null,null,null,null,null,0,null,null,null,null,0,0,"",null,null,null,null,null,0,""]
[null,"",null,null,null,null,null,null,0,null,null,null,null,0,0,"",null,null,null,null,null,0,""]
[null,"",null,null,null,null,null,null,0,null,null,null,null,0,0,"",null,null,null,null,null,0,""]
[null,"",null,null,null,null,null,null,0,null,null,null,null,0,0,"",null,null,null,null,null,0,""]
[null,"",null,null,null,null,null,null,0,null,null,null,null,0,0,"",null,null,null,null,null,0,""]
[null,"",null,null,null,null,null,null,0,null,null,null,null,0,0,"",null,null,null,null,null,0,""]
[null,"",null,null,null,null,null,null,0,null,null,null,null,0,0,"",null,null,null,null,null,0,""]
[null,"",null,null,null,null,null,null,0,null,null,null,null,0,0,"",null,null,null,null,null,0,""]
[null,"",null,null,null,null,null,null,0,null,null,null,null,0,0,"",null,null,null,null,null,0,""]
[null,"",null,null,null,null,null,null,0,null,null,null,null,0,0,"",null,null,null,null,null,0,""]
[null,"",null,null,null,null,null,null,0,null,null,null,null,0,0,"",null,null,null,null,null,0,""]
[null,"",null,null,null,null,null,null,0,null,null,null,null,0,0,"",null,null,null,null,null,0,""]
[null,"",null,null,null,null,null,null,0,null,null,null,null,0,0,"",null,null,null,null,null,0,""]
[null,"",null,null,null,null,null,null,0,null,null,null,null,0,0,"",null,null,null,null,null,0,""]
[null,"",null,null,null,null,null,null,0,null,null,null,null,0,0,"",null,null,null,null,null,0,""]
[null,"",null,null,null,null,null,null,0,null,null,null,null,0,0,"",null,null,null,null,null,0,""]
[null,"",null,null,null,null,null,null,0,null,null,null,null,0,0,"",null,null,null,null,null,0,""]
[null,"",null,null,null,null,null,null,0,null,null,null,null,0,0,"",null,null,null,null,null,0,""]
[null,"",null,null,null,null,null,null,0,null,null,null,null,0,0,"",null,null,null,null,null,0,""]
[null,"",null,null,null,null,null,null,0,null,null,null,null,0,0,"",null,null,null,null,null,0,""]
[null,"",null,null,null,null,null,null,0,null,null,null,null,0,0,"",null,null,null,null,null,0,""]
[null,"",null,null,null,null,null,null,0,null,null,null,null,0,0,"",null,null,null,null,null,0,""]
[null,"",null,null,null,null,null,null,0,null,null,null,null,0,0,"",null,null,null,null,null,0,""]
[null,"",null,null,null,null,null,null,0,null,null,null,null,0,0,"",null,null,null,null,null,0,""]
[null,"",null,null,null,null,null,null,0,null,null,null,null,0,0,"",null,null,null,null,null,0,""]
[null,"",null,null,null,null,null,null,0,null,null,null,null,0,0,"",null,null,null,null,null,0,""]
[null,"",null,null,null,null,null,null,0,null,null,null,null,0,0,"",null,null,null,null,null,0,""]
[null,"",null,null,null,null,null,null,0,null,null,null,null,0,0,"",null,null,null,null,null,0,""]
[null,"",null,null,null,null,null,null,0,null,null,null,null,0,0,"",null,null,null,null,null,0,""]
[null,"",null,null,null,null,null,null,0,null,null,null,null,0,0,"",null,null,null,null,null,0,""]
[null,"",null,null,null,null,null,null,0,null,null,null,null,0,0,"",null,null,null,null,null,0,""]
[null,"",null,null,null,null,null,null,0,null,null,null,null,0,0,"",null,null,null,null,null,0,""]
[null,"",null,null,null,null,null,null,0,null,null,null,null,0,0,"",null,null,null,null,null,0,""]
[null,"",null,null,null,null,null,null,0,null,null,null,null,0,0,"",null,null,null,null,null,0,""]
[null,"",null,null,null,null,null,null,0,null,null,null,null,0,0,"",null,null,null,null,null,0,""]
[null,"",null,null,null,null,null,null,0,null,null,null,null,0,0,"",null,null,null,null,null,0,""]
[null,"",null,null,null,null,null,null,0,null,null,null,null,0,0,"",null,null,null,null,null,0,""]
[null,"",null,null,null,null,null,null,0,null,null,null,null,{"$f":"MOD((VALUE(MID(TEXT(A2758,\"000000000000000\"),15,1))*3+VALUE(MID(TEXT(A2758,\"000000000000000\"),14,1))*7+VALUE(MID(TEXT(A2758,\"000000000000000\"),13,1))*13+VALUE(MID(TEXT(A2758,\"000000000000000\"),12,1))*17+VALUE(MID(TEXT(A2758,\"000000000000000\"),11,1))*19+VALUE(MID(TEXT(A2758,\"000000000000000\"),10,1))*23+VALUE(MID(TEXT(A2758,\"000000000000000\"),9,1))*29+VALUE(MID(TEXT(A2758,\"000000000000000\"),8,1))*37+VALUE(MID(TEXT(A2758,\"000000000000000\"),7,1))*41+VALUE(MID(TEXT(A2758,\"000000000000000\"),6,1))*43+VALUE(MID(TEXT(A2758,\"000000000000000\"),5,1))*47+VALUE(MID(TEXT(A2758,\"000000000000000\"),4,1))*53+VALUE(MID(TEXT(A2758,\"000000000000000\"),3,1))*59+VALUE(MID(TEXT(A2758,\"000000000000000\"),2,1))*67+VALUE(MID(TEXT(A2758,\"000000000000000\"),1,1))*71),11)","v":0},0,{"$f":"IF(H2758=\"REGISTRO ACTIVO\",O2758,\"\")","v":""},null,null,null,null,null,0,""]
[null,{"$f":"+P2759","v":""},null,null,null,null,null,null,{"$f":"IF(H2759=\"REGISTRO ACTIVO\",1,0)","v":0},null,null,null,null,0,{"$f":"IF(N2759=0,0,IF(N2759=1,1,11-N2759))","v":0},"",null,null,null,null,null,{"$f":"IF(H2759=\"\",0,1)","v":0},{"$f":"IF(AND(A2759>0,H2759=\"\",$V$5007>0),\"NO\",\"\")","v":""}]
[null,"",null,null,null,null,null,null,0,null,null,null,null,0,0,"",null,null,null,null,null,0,""]
[null,"",null,null,null,null,null,null,0,null,null,null,null,0,0,"",null,null,null,null,null,0,""]
[null,"",null,null,null,null,null,null,0,null,null,null,null,0,0,"",null,null,null,null,null,0,""]
[null,"",null,null,null,null,null,null,0,null,null,null,null,0,0,"",null,null,null,null,null,0,""]
[null,"",null,null,null,null,null,null,0,null,null,null,null,0,0,"",null,null,null,null,null,0,""]
[null,"",null,null,null,null,null,null,0,null,null,null,null,0,0,"",null,null,null,null,null,0,""]
[null,"",null,null,null,null,null,null,0,null,null,null,null,0,0,"",null,null,null,null,null,0,""]
[null,"",null,null,null,null,null,null,0,null,null,null,null,0,0,"",null,null,null,null,null,0,""]
[null,"",null,null,null,null,null,null,0,null,null,null,null,0,0,"",null,null,null,null,null,0,""]
[null,"",null,null,null,null,null,null,0,null,null,null,null,0,0,"",null,null,null,null,null,0,""]
[null,"",null,null,null,null,null,null,0,null,null,null,null,0,0,"",null,null,null,null,null,0,""]
[null,"",null,null,null,null,null,null,0,null,null,null,null,0,0,"",null,null,null,null,null,0,""]
[null,"",null,null,null,null,null,null,0,null,null,null,null,0,0,"",null,null,null,null,null,0,""]
[null,"",null,null,null,null,null,null,0,null,null,null,null,0,0,"",null,null,null,null,null,0,""]
[null,"",null,null,null,null,null,null,0,null,null,null,null,0,0,"",null,null,null,null,null,0,""]
[null,"",null,null,null,null,null,null,0,null,null,null,null,0,0,"",null,null,null,null,null,0,""]
[null,"",null,null,null,null,null,null,0,null,null,null,null,0,0,"",null,null,null,null,null,0,""]
[null,"",null,null,null,null,null,null,0,null,null,null,null,0,0,"",null,null,null,null,null,0,""]
[null,"",null,null,null,null,null,null,0,null,null,null,null,0,0,"",null,null,null,null,null,0,""]
[null,"",null,null,null,null,null,null,0,null,null,null,null,0,0,"",null,null,null,null,null,0,""]
[null,"",null,null,null,null,null,null,0,null,null,null,null,0,0,"",null,null,null,null,null,0,""]
[null,"",null,null,null,null,null,null,0,null,null,null,null,0,0,"",null,null,null,null,null,0,""]
[null,"",null,null,null,null,null,null,0,null,null,null,null,0,0,"",null,null,null,null,null,0,""]
[null,"",null,null,null,null,null,null,0,null,null,null,null,0,0,"",null,null,null,null,null,0,""]
[null,"",null,null,null,null,null,null,0,null,null,null,null,0,0,"",null,null,null,null,null,0,""]
[null,"",null,null,null,null,null,null,0,null,null,null,null,0,0,"",null,null,null,null,null,0,""]
[null,"",null,null,null,null,null,null,0,null,null,null,null,0,0,"",null,null,null,null,null,0,""]
[null,"",null,null,null,null,null,null,0,null,null,null,null,0,0,"",null,null,null,null,null,0,""]
[null,"",null,null,null,null,null,null,0,null,null,null,null,0,0,"",null,null,null,null,null,0,""]
[null,"",null,null,null,null,null,null,0,null,null,null,null,0,0,"",null,null,null,null,null,0,""]
[null,"",null,null,null,null,null,null,0,null,null,null,null,0,0,"",null,null,null,null,null,0,""]
[null,"",null,null,null,null,null,null,0,null,null,null,null,0,0,"",null,null,null,null,null,0,""]
[null,"",null,null,null,null,null,null,0,null,null,null,null,0,0,"",null,null,null,null,null,0,""]
[null,"",null,null,null,null,null,null,0,null,null,null,null,0,0,"",null,null,null,null,null,0,""]
[null,"",null,null,null,null,null,null,0,null,null,null,null,0,0,"",null,null,null,null,null,0,""]
[null,"",null,null,null,null,null,null,0,null,null,null,null,0,0,"",null,null,null,null,null,0,""]
[null,"",null,null,null,null,null,null,0,null,null,null,null,0,0,"",null,null,null,null,null,0,""]
[null,"",null,null,null,null,null,null,0,null,null,null,null,0,0,"",null,null,null,null,null,0,""]
[null,"",null,null,null,null,null,null,0,null,null,null,null,0,0,"",null,null,null,null,null,0,""]
[null,"",null,null,null,null,null,null,0,null,null,null,null,0,0,"",null,null,null,null,null,0,""]
[null,"",null,null,null,null,null,null,0,null,null,null,null,0,0,"",null,null,null,null,null,0,""]
[null,"",null,null,null,null,null,null,0,null,null,null,null,0,0,"",null,null,null,null,null,0,""]
[null,"",null,null,null,null,null,null,0,null,null,null,null,0,0,"",null,null,null,null,null,0,""]
[null,"",null,null,null,null,null,null,0,null,null,null,null,0,0,"",null,null,null,null,null,0,""]
[null,"",null,null,null,null,null,null,0,null,null,null,null,0,0,"",null,null,null,null,null,0,""]
[null,"",null,null,null,null,null,null,0,null,null,null,null,0,0,"",null,null,null,null,null,0,""]
[null,"",null,null,null,null,null,null,0,null,null,null,null,0,0,"",null,null,null,null,null,0,""]
[null,"",null,null,null,null,null,null,0,null,null,null,null,0,0,"",null,null,null,null,null,0,""]
[null,"",null,null,null,null,null,null,0,null,null,null,null,0,0,"",null,null,null,null,null,0,""]
[null,"",null,null,null,null,null,null,0,null,null,null,null,0,0,"",null,null,null,null,null,0,""]
[null,"",null,null,null,null,null,null,0,null,null,null,null,0,0,"",null,null,null,null,null,0,""]
[null,"",null,null,null,null,null,null,0,null,null,null,null,0,0,"",null,null,null,null,null,0,""]
[null,"",null,null,null,null,null,null,0,null,null,null,null,0,0,"",null,null,null,null,null,0,""]
[null,"",null,null,null,null,null,null,0,null,null,null,null,0,0,"",null,null,null,null,null,0,""]
[null,"",null,null,null,null,null,null,0,null,null,null,null,0,0,"",null,null,null,null,null,0,""]
[null,"",null,null,null,null,null,null,0,null,null,null,null,0,0,"",null,null,null,null,null,0,""]
[null,"",null,null,null,null,null,null,0,null,null,null,null,0,0,"",null,null,null,null,null,0,""]
[null,"",null,null,null,null,null,null,0,null,null,null,null,0,0,"",null,null,null,null,null,0,""]
[null,"",null,null,null,null,null,null,0,null,null,null,null,0,0,"",null,null,null,null,null,0,""]
[null,"",null,null,null,null,null,null,0,null,null,null,null,0,0,"",null,null,null,null,null,0,""]
[null,"",null,null,null,null,null,null,0,null,null,null,null,0,0,"",null,null,null,null,null,0,""]
[null,"",null,null,null,null,null,null,0,null,null,null,null,0,0,"",null,null,null,null,null,0,""]
[null,"",null,null,null,null,null,null,0,null,null,null,null,0,0,"",null,null,null,null,null,0,""]
[null,"",null,null,null,null,null,null,0,null,null,null,null,0,0,"",null,null,null,null,null,0,""]
[null,"",null,null,null,null,null,null,0,null,null,null,null,0,0,"",null,null,null,null,null,0,""]
[null,"",null,null,null,null,null,null,0,null,null,null,null,0,0,"",null,null,null,null,null,0,""]
[null,"",null,null,null,null,null,null,0,null,null,null,null,{"$f":"MOD((VALUE(MID(TEXT(A3014,\"000000000000000\"),15,1))*3+VALUE(MID(TEXT(A3014,\"000000000000000\"),14,1))*7+VALUE(MID(TEXT(A3014,\"000000000000000\"),13,1))*13+VALUE(MID(TEXT(A3014,\"000000000000000\"),12,1))*17+VALUE(MID(TEXT(A3014,\"000000000000000\"),11,1))*19+VALUE(MID(TEXT(A3014,\"000000000000000\"),10,1))*23+VALUE(MID(TEXT(A3014,\"000000000000000\"),9,1))*29+VALUE(MID(TEXT(A3014,\"000000000000000\"),8,1))*37+VALUE(MID(TEXT(A3014,\"000000000000000\"),7,1))*41+VALUE(MID(TEXT(A3014,\"000000000000000\"),6,1))*43+VALUE(MID(TEXT(A3014,\"000000000000000\"),5,1))*47+VALUE(MID(TEXT(A3014,\"000000000000000\"),4,1))*53+VALUE(MID(TEXT(A3014,\"000000000000000\"),3,1))*59+VALUE(MID(TEXT(A3014,\"000000000000000\"),2,1))*67+VALUE(MID(TEXT(A3014,\"000000000000000\"),1,1))*71),11)","v":0},0,{"$f":"IF(H3014=\"REGISTRO ACTIVO\",O3014,\"\")","v":""},null,null,null,null,null,0,""]
[null,{"$f":"+P3015","v":""},null,null,null,null,null,null,{"$f":"IF(H3015=\"REGISTRO ACTIVO\",1,0)","v":0},null,null,null,null,0,{"$f":"IF(N3015=0,0,IF(N3015=1,1,11-N3015))","v":0},"",null,null,null,null,null,{"$f":"IF(H3015=\"\",0,1)","v":0},{"$f":"IF(AND(A3015>0,H3015=\"\",$V$5007>0),\"NO\",\"\")","v":""}]
[null,"",null,null,null,null,null,null,0,null,null,null,null,0,0,"",null,null,null,null,null,0,""]
[null,"",null,null,null,null,null,null,0,null,null,null,null,0,0,"",null,null,null,null,null,0,""]
[null,"",null,null,null,null,null,null,0,null,null,null,null,0,0,"",null,null,null,null,null,0,""]
[null,"",null,null,null,null,null,null,0,null,null,null,null,0,0,"",null,null,null,null,null,0,""]
[null,"",null,null,null,null,null,null,0,null,null,null,null,0,0,"",null,null,null,null,null,0,""]
[null,"",null,null,null,null,null,null,0,null,null,null,null,0,0,"",null,null,null,null,null,0,""]
[null,"",null,null,null,null,null,null,0,null,null,null,null,0,0,"",null,null,null,null,null,0,""]
[null,"",null,null,null,null,null,null,0,null,null,null,null,0,0,"",null,null,null,null,null,0,""]
[null,"",null,null,null,null,null,null,0,null,null,null,null,0,0,"",null,null,null,null,null,0,""]
[null,"",null,null,null,null,null,null,0,null,null,null,null,0,0,"",null,null,null,null,null,0,""]
[null,"",null,null,null,null,null,null,0,null,null,null,null,0,0,"",null,null,null,null,null,0,""]
[null,"",null,null,null,null,null,null,0,null,null,null,null,0,0,"",null,null,null,null,null,0,""]
[null,"",null,null,null,null,null,null,0,null,null,null,null,0,0,"",null,null,null,null,null,0,""]
[null,"",null,null,null,null,null,null,0,null,null,null,null,0,0,"",null,null,null,null,null,0,""]
[null,"",null,null,null,null,null,null,0,null,null,null,null,0,0,"",null,null,null,null,null,0,""]
[null,"",null,null,null,null,null,null,0,null,null,null,null,0,0,"",null,null,null,null,null,0,""]
[null,"",null,null,null,null,null,null,0,null,null,null,null,0,0,"",null,null,null,null,null,0,""]
[null,"",null,null,null,null,null,null,0,null,null,null,null,0,0,"",null,null,null,null,null,0,""]
[null,"",null,null,null,null,null,null,0,null,null,null,null,0,0,"",null,null,null,null,null,0,""]
[null,"",null,null,null,null,null,null,0,null,null,null,null,0,0,"",null,null,null,null,null,0,""]
[null,"",null,null,null,null,null,null,0,null,null,null,null,0,0,"",null,null,null,null,null,0,""]
[null,"",null,null,null,null,null,null,0,null,null,null,null,0,0,"",null,null,null,null,null,0,""]
[null,"",null,null,null,null,null,null,0,null,null,null,null,0,0,"",null,null,null,null,null,0,""]
[null,"",null,null,null,null,null,null,0,null,null,null,null,0,0,"",null,null,null,null,null,0,""]
[null,"",null,null,null,null,null,null,0,null,null,null,null,0,0,"",null,null,null,null,null,0,""]
[null,"",null,null,null,null,null,null,0,null,null,null,null,0,0,"",null,null,null,null,null,0,""]
[null,"",null,null,null,null,null,null,0,null,null,null,null,0,0,"",null,null,null,null,null,0,""]
[null,"",null,null,null,null,null,null,0,null,null,null,null,0,0,"",null,null,null,null,null,0,""]
[null,"",null,null,null,null,null,null,0,null,null,null,null,0,0,"",null,null,null,null,null,0,""]
[null,"",null,null,null,null,null,null,0,null,null,null,null,0,0,"",null,null,null,null,null,0,""]
[null,"",null,null,null,null,null,null,0,null,null,null,null,0,0,"",null,null,null,null,null,0,""]
[null,"",null,null,null,null,null,null,0,null,null,null,null,0,0,"",null,null,null,null,null,0,""]
[null,"",null,null,null,null,null,null,0,null,null,null,null,0,0,"",null,null,null,null,null,0,""]
[null,"",null,null,null,null,null,null,0,null,null,null,null,0,0,"",null,null,null,null,null,0,""]
[null,"",null,null,null,null,null,null,0,null,null,null,null,0,0,"",null,null,null,null,null,0,""]
[null,"",null,null,null,null,null,null,0,null,null,null,null,0,0,"",null,null,null,null,null,0,""]
[null,"",null,null,null,null,null,null,0,null,null,null,null,0,0,"",null,null,null,null,null,0,""]
[null,"",null,null,null,null,null,null,0,null,null,null,null,0,0,"",null,null,null,null,null,0,""]
[null,"",null,null,null,null,null,null,0,null,null,null,null,0,0,"",null,null,null,null,null,0,""]
[null,"",null,null,null,null,null,null,0,null,null,null,null,0,0,"",null,null,null,null,null,0,""]
[null,"",null,null,null,null,null,null,0,null,null,null,null,0,0,"",null,null,null,null,null,0,""]
[null,"",null,null,null,null,null,null,0,null,null,null,null,0,0,"",null,null,null,null,null,0,""]
[null,"",null,null,null,null,null,null,0,null,null,null,null,0,0,"",null,null,null,null,null,0,""]
[null,"",null,null,null,null,null,null,0,null,null,null,null,0,0,"",null,null,null,null,null,0,""]
[null,"",null,null,null,null,null,null,0,null,null,null,null,0,0,"",null,null,null,null,null,0,""]
[null,"",null,null,null,null,null,null,0,null,null,null,null,0,0,"",null,null,null,null,null,0,""]
[null,"",null,null,null,null,null,null,0,null,null,null,null,0,0,"",null,null,null,null,null,0,""]
[null,"",null,null,null,null,null,null,0,null,null,null,null,0,0,"",null,null,null,null,null,0,""]
[null,"",null,null,null,null,null,null,0,null,null,null,null,0,0,"",null,null,null,null,null,0,""]
[null,"",null,null,null,null,null,null,0,null,null,null,null,0,0,"",null,null,null,null,null,0,""]
[null,"",null,null,null,null,null,null,0,null,null,null,null,0,0,"",null,null,null,null,null,0,""]
[null,"",null,null,null,null,null,null,0,null,null,null,null,0,0,"",null,null,null,null,null,0,""]
[null,"",null,null,null,null,null,null,0,null,null,null,null,0,0,"",null,null,null,null,null,0,""]
[null,"",null,null,null,null,null,null,0,null,null,null,null,0,0,"",null,null,null,null,null,0,""]
[null,"",null,null,null,null,null,null,0,null,null,null,null,0,0,"",null,null,null,null,null,0,""]
[null,"",null,null,null,null,null,null,0,null,null,null,null,0,0,"",null,null,null,null,null,0,""]
[null,"",null,null,null,null,null,null,0,null,null,null,null,0,0,"",null,null,null,null,null,0,""]
[null,"",null,null,null,null,null,null,0,null,null,null,null,0,0,"",null,null,null,null,null,0,""]
[null,"",null,null,null,null,null,null,0,null,null,null,null,0,0,"",null,null,null,null,null,0,""]
[null,"",null,null,null,null,null,null,0,null,null,null,null,0,0,"",null,null,null,null,null,0,""]
[null,"",null,null,null,null,null,null,0,null,null,null,null,0,0,"",null,null,null,null,null,0,""]
[null,"",null,null,null,null,null,null,0,null,null,null,null,0,0,"",null,null,null,null,null,0,""]
[null,"",null,null,null,null,null,null,0,null,null,null,null,0,0,"",null,null,null,null,null,0,""]
[null,"",null,null,null,null,null,null,0,null,null,null,null,0,0,"",null,null,null,null,null,0,""]
[null,"",null,null,null,null,null,null,0,null,null,null,null,0,0,"",null,null,null,null,null,0,""]
[null,"",null,null,null,null,null,null,0,null,null,null,null,0,0,"",null,null,null,null,null,0,""]
[null,"",null,null,null,null,null,null,0,null,null,null,null,{"$f":"MOD((VALUE(MID(TEXT(A3270,\"000000000000000\"),15,1))*3+VALUE(MID(TEXT(A3270,\"000000000000000\"),14,1))*7+VALUE(MID(TEXT(A3270,\"000000000000000\"),13,1))*13+VALUE(MID(TEXT(A3270,\"000000000000000\"),12,1))*17+VALUE(MID(TEXT(A3270,\"000000000000000\"),11,1))*19+VALUE(MID(TEXT(A3270,\"000000000000000\"),10,1))*23+VALUE(MID(TEXT(A3270,\"000000000000000\"),9,1))*29+VALUE(MID(TEXT(A3270,\"000000000000000\"),8,1))*37+VALUE(MID(TEXT(A3270,\"000000000000000\"),7,1))*41+VALUE(MID(TEXT(A3270,\"000000000000000\"),6,1))*43+VALUE(MID(TEXT(A3270,\"000000000000000\"),5,1))*47+VALUE(MID(TEXT(A3270,\"000000000000000\"),4,1))*53+VALUE(MID(TEXT(A3270,\"000000000000000\"),3,1))*59+VALUE(MID(TEXT(A3270,\"000000000000000\"),2,1))*67+VALUE(MID(TEXT(A3270,\"000000000000000\"),1,1))*71),11)","v":0},0,{"$f":"IF(H3270=\"REGISTRO ACTIVO\",O3270,\"\")","v":""},null,null,null,null,null,0,""]
[null,{"$f":"+P3271","v":""},null,null,null,null,null,null,{"$f":"IF(H3271=\"REGISTRO ACTIVO\",1,0)","v":0},null,null,null,null,0,{"$f":"IF(N3271=0,0,IF(N3271=1,1,11-N3271))","v":0},"",null,null,null,null,null,{"$f":"IF(H3271=\"\",0,1)","v":0},{"$f":"IF(AND(A3271>0,H3271=\"\",$V$5007>0),\"NO\",\"\")","v":""}]
[null,"",null,null,null,null,null,null,0,null,null,null,null,0,0,"",null,null,null,null,null,0,""]
[null,"",null,null,null,null,null,null,0,null,null,null,null,0,0,"",null,null,null,null,null,0,""]
[null,"",null,null,null,null,null,null,0,null,null,null,null,0,0,"",null,null,null,null,null,0,""]
[null,"",null,null,null,null,null,null,0,null,null,null,null,0,0,"",null,null,null,null,null,0,""]
[null,"",null,null,null,null,null,null,0,null,null,null,null,0,0,"",null,null,null,null,null,0,""]
[null,"",null,null,null,null,null,null,0,null,null,null,null,0,0,"",null,null,null,null,null,0,""]
[null,"",null,null,null,null,null,null,0,null,null,null,null,0,0,"",null,null,null,null,null,0,""]
[null,"",null,null,null,null,null,null,0,null,null,null,null,0,0,"",null,null,null,null,null,0,""]
[null,"",null,null,null,null,null,null,0,null,null,null,null,0,0,"",null,null,null,null,null,0,""]
[null,"",null,null,null,null,null,null,0,null,null,null,null,0,0,"",null,null,null,null,null,0,""]
[null,"",null,null,null,null,null,null,0,null,null,null,null,0,0,"",null,null,null,null,null,0,""]
[null,"",null,null,null,null,null,null,0,null,null,null,null,0,0,"",null,null,null,null,null,0,""]
[null,"",null,null,null,null,null,null,0,null,null,null,null,0,0,"",null,null,null,null,null,0,""]
[null,"",null,null,null,null,null,null,0,null,null,null,null,0,0,"",null,null,null,null,null,0,""]
[null,"",null,null,null,null,null,null,0,null,null,null,null,0,0,"",null,null,null,null,null,0,""]
[null,"",null,null,null,null,null,null,0,null,null,null,null,0,0,"",null,null,null,null,null,0,""]
[null,"",null,null,null,null,null,null,0,null,null,null,null,0,0,"",null,null,null,null,null,0,""]
[null,"",null,null,null,null,null,null,0,null,null,null,null,0,0,"",null,null,null,null,null,0,""]
[null,"",null,null,null,null,null,null,0,null,null,null,null,0,0,"",null,null,null,null,null,0,""]
[null,"",null,null,null,null,null,null,0,null,null,null,null,0,0,"",null,null,null,null,null,0,""]
[null,"",null,null,null,null,null,null,0,null,null,null,null,0,0,"",null,null,null,null,null,0,""]
[null,"",null,null,null,null,null,null,0,null,null,null,null,0,0,"",null,null,null,null,null,0,""]
[null,"",null,null,null,null,null,null,0,null,null,null,null,0,0,"",null,null,null,null,null,0,""]
[null,"",null,null,null,null,null,null,0,null,null,null,null,0,0,"",null,null,null,null,null,0,""]
[null,"",null,null,null,null,null,null,0,null,null,null,null,0,0,"",null,null,null,null,null,0,""]
[null,"",null,null,null,null,null,null,0,null,null,null,null,0,0,"",null,null,null,null,null,0,""]
[null,"",null,null,null,null,null,null,0,null,null,null,null,0,0,"",null,null,null,null,null,0,""]
[null,"",null,null,null,null,null,null,0,null,null,null,null,0,0,"",null,null,null,null,null,0,""]
[null,"",null,null,null,null,null,null,0,null,null,null,null,0,0,"",null,null,null,null,null,0,""]
[null,"",null,null,null,null,null,null,0,null,null,null,null,0,0,"",null,null,null,null,null,0,""]
[null,"",null,null,null,null,null,null,0,null,null,null,null,0,0,"",null,null,null,null,null,0,""]
[null,"",null,null,null,null,null,null,0,null,null,null,null,0,0,"",null,null,null,null,null,0,""]
[null,"",null,null,null,null,null,null,0,null,null,null,null,0,0,"",null,null,null,null,null,0,""]
[null,"",null,null,null,null,null,null,0,null,null,null,null,0,0,"",null,null,null,null,null,0,""]
[null,"",null,null,null,null,null,null,0,null,null,null,null,0,0,"",null,null,null,null,null,0,""]
[null,"",null,null,null,null,null,null,0,null,null,null,null,0,0,"",null,null,null,null,null,0,""]
[null,"",null,null,null,null,null,null,0,null,null,null,null,0,0,"",null,null,null,null,null,0,""]
[null,"",null,null,null,null,null,null,0,null,null,null,null,0,0,"",null,null,null,null,null,0,""]
[null,"",null,null,null,null,null,null,0,null,null,null,null,0,0,"",null,null,null,null,null,0,""]
[null,"",null,null,null,null,null,null,0,null,null,null,null,0,0,"",null,null,null,null,null,0,""]
[null,"",null,null,null,null,null,null,0,null,null,null,null,0,0,"",null,null,null,null,null,0,""]
[null,"",null,null,null,null,null,null,0,null,null,null,null,0,0,"",null,null,null,null,null,0,""]
[null,"",null,null,null,null,null,null,0,null,null,null,null,0,0,"",null,null,null,null,null,0,""]
[null,"",null,null,null,null,null,null,0,null,null,null,null,0,0,"",null,null,null,null,null,0,""]
[null,"",null,null,null,null,null,null,0,null,null,null,null,0,0,"",null,null,null,null,null,0,""]
[null,"",null,null,null,null,null,null,0,null,null,null,null,0,0,"",null,null,null,null,null,0,""]
[null,"",null,null,null,null,null,null,0,null,null,null,null,0,0,"",null,null,null,null,null,0,""]
[null,"",null,null,null,null,null,null,0,null,null,null,null,0,0,"",null,null,null,null,null,0,""]
[null,"",null,null,null,null,null,null,0,null,null,null,null,0,0,"",null,null,null,null,null,0,""]
[null,"",null,null,null,null,null,null,0,null,null,null,null,0,0,"",null,null,null,null,null,0,""]
[null,"",null,null,null,null,null,null,0,null,null,null,null,0,0,"",null,null,null,null,null,0,""]
[null,"",null,null,null,null,null,null,0,null,null,null,null,0,0,"",null,null,null,null,null,0,""]
[null,"",null,null,null,null,null,null,0,null,null,null,null,0,0,"",null,null,null,null,null,0,""]
[null,"",null,null,null,null,null,null,0,null,null,null,null,0,0,"",null,null,null,null,null,0,""]
[null,"",null,null,null,null,null,null,0,null,null,null,null,0,0,"",null,null,null,null,null,0,""]
[null,"",null,null,null,null,null,null,0,null,null,null,null,0,0,"",null,null,null,null,null,0,""]
[null,"",null,null,null,null,null,null,0,null,null,null,null,0,0,"",null,null,null,null,null,0,""]
[null,"",null,null,null,null,null,null,0,null,null,null,null,0,0,"",null,null,null,null,null,0,""]
[null,"",null,null,null,null,null,null,0,null,null,null,null,0,0,"",null,null,null,null,null,0,""]
[null,"",null,null,null,null,null,null,0,null,null,null,null,0,0,"",null,null,null,null,null,0,""]
[null,"",null,null,null,null,null,null,0,null,null,null,null,0,0,"",null,null,null,null,null,0,""]
[null,"",null,null,null,null,null,null,0,null,null,null,null,0,0,"",null,null,null,null,null,0,""]
[null,"",null,null,null,null,null,null,0,null,null,null,null,0,0,"",null,null,null,null,null,0,""]
[null,"",null,null,null,null,null,null,0,null,null,null,null,0,0,"",null,null,null,null,null,0,""]
[null,"",null,null,null,null,null,null,0,null,null,null,null,0,0,"",null,null,null,null,null,0,""]
[null,"",null,null,null,null,null,null,0,null,null,null,null,0,0,"",null,null,null,null,null,0,""]
[null,"",null,null,null,null,null,null,0,null,null,null,null,{"$f":"MOD((VALUE(MID(TEXT(A3526,\"000000000000000\"),15,1))*3+VALUE(MID(TEXT(A3526,\"000000000000000\"),14,1))*7+VALUE(MID(TEXT(A3526,\"000000000000000\"),13,1))*13+VALUE(MID(TEXT(A3526,\"000000000000000\"),12,1))*17+VALUE(MID(TEXT(A3526,\"000000000000000\"),11,1))*19+VALUE(MID(TEXT(A3526,\"000000000000000\"),10,1))*23+VALUE(MID(TEXT(A3526,\"000000000000000\"),9,1))*29+VALUE(MID(TEXT(A3526,\"000000000000000\"),8,1))*37+VALUE(MID(TEXT(A3526,\"000000000000000\"),7,1))*41+VALUE(MID(TEXT(A3526,\"000000000000000\"),6,1))*43+VALUE(MID(TEXT(A3526,\"000000000000000\"),5,1))*47+VALUE(MID(TEXT(A3526,\"000000000000000\"),4,1))*53+VALUE(MID(TEXT(A3526,\"000000000000000\"),3,1))*59+VALUE(MID(TEXT(A3526,\"000000000000000\"),2,1))*67+VALUE(MID(TEXT(A3526,\"000000000000000\"),1,1))*71),11)","v":0},0,{"$f":"IF(H3526=\"REGISTRO ACTIVO\",O3526,\"\")","v":""},null,null,null,null,null,0,""]
[null,{"$f":"+P3527","v":""},null,null,null,null,null,null,{"$f":"IF(H3527=\"REGISTRO ACTIVO\",1,0)","v":0},null,null,null,null,0,{"$f":"IF(N3527=0,0,IF(N3527=1,1,11-N3527))","v":0},"",null,null,null,null,null,{"$f":"IF(H3527=\"\",0,1)","v":0},{"$f":"IF(AND(A3527>0,H3527=\"\",$V$5007>0),\"NO\",\"\")","v":""}]
[null,"",null,null,null,null,null,null,0,null,null,null,null,0,0,"",null,null,null,null,null,0,""]
[null,"",null,null,null,null,null,null,0,null,null,null,null,0,0,"",null,null,null,null,null,0,""]
[null,"",null,null,null,null,null,null,0,null,null,null,null,0,0,"",null,null,null,null,null,0,""]
[null,"",null,null,null,null,null,null,0,null,null,null,null,0,0,"",null,null,null,null,null,0,""]
[null,"",null,null,null,null,null,null,0,null,null,null,null,0,0,"",null,null,null,null,null,0,""]
[null,"",null,null,null,null,null,null,0,null,null,null,null,0,0,"",null,null,null,null,null,0,""]
[null,"",null,null,null,null,null,null,0,null,null,null,null,0,0,"",null,null,null,null,null,0,""]
[null,"",null,null,null,null,null,null,0,null,null,null,null,0,0,"",null,null,null,null,null,0,""]
[null,"",null,null,null,null,null,null,0,null,null,null,null,0,0,"",null,null,null,null,null,0,""]
[null,"",null,null,null,null,null,null,0,null,null,null,null,0,0,"",null,null,null,null,null,0,""]
[null,"",null,null,null,null,null,null,0,null,null,null,null,0,0,"",null,null,null,null,null,0,""]
[null,"",null,null,null,null,null,null,0,null,null,null,null,0,0,"",null,null,null,null,null,0,""]
[null,"",null,null,null,null,null,null,0,null,null,null,null,0,0,"",null,null,null,null,null,0,""]
[null,"",null,null,null,null,null,null,0,null,null,null,null,0,0,"",null,null,null,null,null,0,""]
[null,"",null,null,null,null,null,null,0,null,null,null,null,0,0,"",null,null,null,null,null,0,""]
[null,"",null,null,null,null,null,null,0,null,null,null,null,0,0,"",null,null,null,null,null,0,""]
[null,"",null,null,null,null,null,null,0,null,null,null,null,0,0,"",null,null,null,null,null,0,""]
[null,"",null,null,null,null,null,null,0,null,null,null,null,0,0,"",null,null,null,null,null,0,""]
[null,"",null,null,null,null,null,null,0,null,null,null,null,0,0,"",null,null,null,null,null,0,""]
[null,"",null,null,null,null,null,null,0,null,null,null,null,0,0,"",null,null,null,null,null,0,""]
[null,"",null,null,null,null,null,null,0,null,null,null,null,0,0,"",null,null,null,null,null,0,""]
[null,"",null,null,null,null,null,null,0,null,null,null,null,0,0,"",null,null,null,null,null,0,""]
[null,"",null,null,null,null,null,null,0,null,null,null,null,0,0,"",null,null,null,null,null,0,""]
[null,"",null,null,null,null,null,null,0,null,null,null,null,0,0,"",null,null,null,null,null,0,""]
[null,"",null,null,null,null,null,null,0,null,null,null,null,0,0,"",null,null,null,null,null,0,""]
[null,"",null,null,null,null,null,null,0,null,null,null,null,0,0,"",null,null,null,null,null,0,""]
[null,"",null,null,null,null,null,null,0,null,null,null,null,0,0,"",null,null,null,null,null,0,""]
[null,"",null,null,null,null,null,null,0,null,null,null,null,0,0,"",null,null,null,null,null,0,""]
[null,"",null,null,null,null,null,null,0,null,null,null,null,0,0,"",null,null,null,null,null,0,""]
[null,"",null,null,null,null,null,null,0,null,null,null,null,0,0,"",null,null,null,null,null,0,""]
[null,"",null,null,null,null,null,null,0,null,null,null,null,0,0,"",null,null,null,null,null,0,""]
[null,"",null,null,null,null,null,null,0,null,null,null,null,0,0,"",null,null,null,null,null,0,""]
[null,"",null,null,null,null,null,null,0,null,null,null,null,0,0,"",null,null,null,null,null,0,""]
[null,"",null,null,null,null,null,null,0,null,null,null,null,0,0,"",null,null,null,null,null,0,""]
[null,"",null,null,null,null,null,null,0,null,null,null,null,0,0,"",null,null,null,null,null,0,""]
[null,"",null,null,null,null,null,null,0,null,null,null,null,0,0,"",null,null,null,null,null,0,""]
[null,"",null,null,null,null,null,null,0,null,null,null,null,0,0,"",null,null,null,null,null,0,""]
[null,"",null,null,null,null,null,null,0,null,null,null,null,0,0,"",null,null,null,null,null,0,""]
[null,"",null,null,null,null,null,null,0,null,null,null,null,0,0,"",null,null,null,null,null,0,""]
[null,"",null,null,null,null,null,null,0,null,null,null,null,0,0,"",null,null,null,null,null,0,""]
[null,"",null,null,null,null,null,null,0,null,null,null,null,0,0,"",null,null,null,null,null,0,""]
[null,"",null,null,null,null,null,null,0,null,null,null,null,0,0,"",null,null,null,null,null,0,""]
[null,"",null,null,null,null,null,null,0,null,null,null,null,0,0,"",null,null,null,null,null,0,""]
[null,"",null,null,null,null,null,null,0,null,null,null,null,0,0,"",null,null,null,null,null,0,""]
[null,"",null,null,null,null,null,null,0,null,null,null,null,0,0,"",null,null,null,null,null,0,""]
[null,"",null,null,null,null,null,null,0,null,null,null,null,0,0,"",null,null,null,null,null,0,""]
[null,"",null,null,null,null,null,null,0,null,null,null,null,0,0,"",null,null,null,null,null,0,""]
[null,"",null,null,null,null,null,null,0,null,null,null,null,0,0,"",null,null,null,null,null,0,""]
[null,"",null,null,null,null,null,null,0,null,null,null,null,0,0,"",null,null,null,null,null,0,""]
[null,"",null,null,null,null,null,null,0,null,null,null,null,0,0,"",null,null,null,null,null,0,""]
[null,"",null,null,null,null,null,null,0,null,null,null,null,0,0,"",null,null,null,null,null,0,""]
[null,"",null,null,null,null,null,null,0,null,null,null,null,0,0,"",null,null,null,null,null,0,""]
[null,"",null,null,null,null,null,null,0,null,null,null,null,0,0,"",null,null,null,null,null,0,""]
[null,"",null,null,null,null,null,null,0,null,null,null,null,0,0,"",null,null,null,null,null,0,""]
[null,"",null,null,null,null,null,null,0,null,null,null,null,0,0,"",null,null,null,null,null,0,""]
[null,"",null,null,null,null,null,null,0,null,null,null,null,0,0,"",null,null,null,null,null,0,""]
[null,"",null,null,null,null,null,null,0,null,null,null,null,0,0,"",null,null,null,null,null,0,""]
[null,"",null,null,null,null,null,null,0,null,null,null,null,0,0,"",null,null,null,null,null,0,""]
[null,"",null,null,null,null,null,null,0,null,null,null,null,0,0,"",null,null,null,null,null,0,""]
[null,"",null,null,null,null,null,null,0,null,null,null,null,0,0,"",null,null,null,null,null,0,""]
[null,"",null,null,null,null,null,null,0,null,null,null,null,0,0,"",null,null,null,null,null,0,""]
[null,"",null,null,null,null,null,null,0,null,null,null,null,0,0,"",null,null,null,null,null,0,""]
[null,"",null,null,null,null,null,null,0,null,null,null,null,0,0,"",null,null,null,null,null,0,""]
[null,"",null,null,null,null,null,null,0,null,null,null,null,0,0,"",null,null,null,null,null,0,""]
[null,"",null,null,null,null,null,null,0,null,null,null,null,0,0,"",null,null,null,null,null,0,""]
[null,"",null,null,null,null,null,null,0,null,null,null,null,0,0,"",null,null,null,null,null,0,""]
[null,"",null,null,null,null,null,null,0,null,null,null,null,{"$f":"MOD((VALUE(MID(TEXT(A3782,\"000000000000000\"),15,1))*3+VALUE(MID(TEXT(A3782,\"000000000000000\"),14,1))*7+VALUE(MID(TEXT(A3782,\"000000000000000\"),13,1))*13+VALUE(MID(TEXT(A3782,\"000000000000000\"),12,1))*17+VALUE(MID(TEXT(A3782,\"000000000000000\"),11,1))*19+VALUE(MID(TEXT(A3782,\"000000000000000\"),10,1))*23+VALUE(MID(TEXT(A3782,\"000000000000000\"),9,1))*29+VALUE(MID(TEXT(A3782,\"000000000000000\"),8,1))*37+VALUE(MID(TEXT(A3782,\"000000000000000\"),7,1))*41+VALUE(MID(TEXT(A3782,\"000000000000000\"),6,1))*43+VALUE(MID(TEXT(A3782,\"000000000000000\"),5,1))*47+VALUE(MID(TEXT(A3782,\"000000000000000\"),4,1))*53+VALUE(MID(TEXT(A3782,\"000000000000000\"),3,1))*59+VALUE(MID(TEXT(A3782,\"000000000000000\"),2,1))*67+VALUE(MID(TEXT(A3782,\"000000000000000\"),1,1))*71),11)","v":0},0,{"$f":"IF(H3782=\"REGISTRO ACTIVO\",O3782,\"\")","v":""},null,null,null,null,null,0,""]
[null,{"$f":"+P3783","v":""},null,null,null,null,null,null,{"$f":"IF(H3783=\"REGISTRO ACTIVO\",1,0)","v":0},null,null,null,null,0,{"$f":"IF(N3783=0,0,IF(N3783=1,1,11-N3783))","v":0},"",null,null,null,null,null,{"$f":"IF(H3783=\"\",0,1)","v":0},{"$f":"IF(AND(A3783>0,H3783=\"\",$V$5007>0),\"NO\",\"\")","v":""}]
[null,"",null,null,null,null,null,null,0,null,null,null,null,0,0,"",null,null,null,null,null,0,""]
[null,"",null,null,null,null,null,null,0,null,null,null,null,0,0,"",null,null,null,null,null,0,""]
[null,"",null,null,null,null,null,null,0,null,null,null,null,0,0,"",null,null,null,null,null,0,""]
[null,"",null,null,null,null,null,null,0,null,null,null,null,0,0,"",null,null,null,null,null,0,""]
[null,"",null,null,null,null,null,null,0,null,null,null,null,0,0,"",null,null,null,null,null,0,""]
[null,"",null,null,null,null,null,null,0,null,null,null,null,0,0,"",null,null,null,null,null,0,""]
[null,"",null,null,null,null,null,null,0,null,null,null,null,0,0,"",null,null,null,null,null,0,""]
[null,"",null,null,null,null,null,null,0,null,null,null,null,0,0,"",null,null,null,null,null,0,""]
[null,"",null,null,null,null,null,null,0,null,null,null,null,0,0,"",null,null,null,null,null,0,""]
[null,"",null,null,null,null,null,null,0,null,null,null,null,0,0,"",null,null,null,null,null,0,""]
[null,"",null,null,null,null,null,null,0,null,null,null,null,0,0,"",null,null,null,null,null,0,""]
[null,"",null,null,null,null,null,null,0,null,null,null,null,0,0,"",null,null,null,null,null,0,""]
[null,"",null,null,null,null,null,null,0,null,null,null,null,0,0,"",null,null,null,null,null,0,""]
[null,"",null,null,null,null,null,null,0,null,null,null,null,0,0,"",null,null,null,null,null,0,""]
[null,"",null,null,null,null,null,null,0,null,null,null,null,0,0,"",null,null,null,null,null,0,""]
[null,"",null,null,null,null,null,null,0,null,null,null,null,0,0,"",null,null,null,null,null,0,""]
[null,"",null,null,null,null,null,null,0,null,null,null,null,0,0,"",null,null,null,null,null,0,""]
[null,"",null,null,null,null,null,null,0,null,null,null,null,0,0,"",null,null,null,null,null,0,""]
[null,"",null,null,null,null,null,null,0,null,null,null,null,0,0,"",null,null,null,null,null,0,""]
[null,"",null,null,null,null,null,null,0,null,null,null,null,0,0,"",null,null,null,null,null,0,""]
[null,"",null,null,null,null,null,null,0,null,null,null,null,0,0,"",null,null,null,null,null,0,""]
[null,"",null,null,null,null,null,null,0,null,null,null,null,0,0,"",null,null,null,null,null,0,""]
[null,"",null,null,null,null,null,null,0,null,null,null,null,0,0,"",null,null,null,null,null,0,""]
[null,"",null,null,null,null,null,null,0,null,null,null,null,0,0,"",null,null,null,null,null,0,""]
[null,"",null,null,null,null,null,null,0,null,null,null,null,0,0,"",null,null,null,null,null,0,""]
[null,"",null,null,null,null,null,null,0,null,null,null,null,0,0,"",null,null,null,null,null,0,""]
[null,"",null,null,null,null,null,null,0,null,null,null,null,0,0,"",null,null,null,null,null,0,""]
[null,"",null,null,null,null,null,null,0,null,null,null,null,0,0,"",null,null,null,null,null,0,""]
[null,"",null,null,null,null,null,null,0,null,null,null,null,0,0,"",null,null,null,null,null,0,""]
[null,"",null,null,null,null,null,null,0,null,null,null,null,0,0,"",null,null,null,null,null,0,""]
[null,"",null,null,null,null,null,null,0,null,null,null,null,0,0,"",null,null,null,null,null,0,""]
[null,"",null,null,null,null,null,null,0,null,null,null,null,0,0,"",null,null,null,null,null,0,""]
[null,"",null,null,null,null,null,null,0,null,null,null,null,0,0,"",null,null,null,null,null,0,""]
[null,"",null,null,null,null,null,null,0,null,null,null,null,0,0,"",null,null,null,null,null,0,""]
[null,"",null,null,null,null,null,null,0,null,null,null,null,0,0,"",null,null,null,null,null,0,""]
[null,"",null,null,null,null,null,null,0,null,null,null,null,0,0,"",null,null,null,null,null,0,""]
[null,"",null,null,null,null,null,null,0,null,null,null,null,0,0,"",null,null,null,null,null,0,""]
[null,"",null,null,null,null,null,null,0,null,null,null,null,0,0,"",null,null,null,null,null,0,""]
[null,"",null,null,null,null,null,null,0,null,null,null,null,0,0,"",null,null,null,null,null,0,""]
[null,"",null,null,null,null,null,null,0,null,null,null,null,0,0,"",null,null,null,null,null,0,""]
[null,"",null,null,null,null,null,null,0,null,null,null,null,0,0,"",null,null,null,null,null,0,""]
[null,"",null,null,null,null,null,null,0,null,null,null,null,0,0,"",null,null,null,null,null,0,""]
[null,"",null,null,null,null,null,null,0,null,null,null,null,0,0,"",null,null,null,null,null,0,""]
[null,"",null,null,null,null,null,null,0,null,null,null,null,0,0,"",null,null,null,null,null,0,""]
[null,"",null,null,null,null,null,null,0,null,null,null,null,0,0,"",null,null,null,null,null,0,""]
[null,"",null,null,null,null,null,null,0,null,null,null,null,0,0,"",null,null,null,null,null,0,""]
[null,"",null,null,null,null,null,null,0,null,null,null,null,0,0,"",null,null,null,null,null,0,""]
[null,"",null,null,null,null,null,null,0,null,null,null,null,0,0,"",null,null,null,null,null,0,""]
[null,"",null,null,null,null,null,null,0,null,null,null,null,0,0,"",null,null,null,null,null,0,""]
[null,"",null,null,null,null,null,null,0,null,null,null,null,0,0,"",null,null,null,null,null,0,""]
[null,"",null,null,null,null,null,null,0,null,null,null,null,0,0,"",null,null,null,null,null,0,""]
[null,"",null,null,null,null,null,null,0,null,null,null,null,0,0,"",null,null,null,null,null,0,""]
[null,"",null,null,null,null,null,null,0,null,null,null,null,0,0,"",null,null,null,null,null,0,""]
[null,"",null,null,null,null,null,null,0,null,null,null,null,0,0,"",null,null,null,null,null,0,""]
[null,"",null,null,null,null,null,null,0,null,null,null,null,0,0,"",null,null,null,null,null,0,""]
[null,"",null,null,null,null,null,null,0,null,null,null,null,0,0,"",null,null,null,null,null,0,""]
[null,"",null,null,null,null,null,null,0,null,null,null,null,0,0,"",null,null,null,null,null,0,""]
[null,"",null,null,null,null,null,null,0,null,null,null,null,0,0,"",null,null,null,null,null,0,""]
[null,"",null,null,null,null,null,null,0,null,null,null,null,0,0,"",null,null,null,null,null,0,""]
[null,"",null,null,null,null,null,null,0,null,null,null,null,0,0,"",null,null,null,null,null,0,""]
[null,"",null,null,null,null,null,null,0,null,null,null,null,0,0,"",null,null,null,null,null,0,""]
[null,"",null,null,null,null,null,null,0,null,null,null,null,0,0,"",null,null,null,null,null,0,""]
[null,"",null,null,null,null,null,null,0,null,null,null,null,0,0,"",null,null,null,null,null,0,""]
[null,"",null,null,null,null,null,null,0,null,null,null,null,0,0,"",null,null,null,null,null,0,""]
[null,"",null,null,null,null,null,null,0,null,null,null,null,0,0,"",null,null,null,null,null,0,""]
[null,"",null,null,null,null,null,null,0,null,null,null,null,0,0,"",null,null,null,null,null,0,""]
[null,"",null,null,null,null,null,null,0,null,null,null,null,{"$f":"MOD((VALUE(MID(TEXT(A4038,\"000000000000000\"),15,1))*3+VALUE(MID(TEXT(A4038,\"000000000000000\"),14,1))*7+VALUE(MID(TEXT(A4038,\"000000000000000\"),13,1))*13+VALUE(MID(TEXT(A4038,\"000000000000000\"),12,1))*17+VALUE(MID(TEXT(A4038,\"000000000000000\"),11,1))*19+VALUE(MID(TEXT(A4038,\"000000000000000\"),10,1))*23+VALUE(MID(TEXT(A4038,\"000000000000000\"),9,1))*29+VALUE(MID(TEXT(A4038,\"000000000000000\"),8,1))*37+VALUE(MID(TEXT(A4038,\"000000000000000\"),7,1))*41+VALUE(MID(TEXT(A4038,\"000000000000000\"),6,1))*43+VALUE(MID(TEXT(A4038,\"000000000000000\"),5,1))*47+VALUE(MID(TEXT(A4038,\"000000000000000\"),4,1))*53+VALUE(MID(TEXT(A4038,\"000000000000000\"),3,1))*59+VALUE(MID(TEXT(A4038,\"000000000000000\"),2,1))*67+VALUE(MID(TEXT(A4038,\"000000000000000\"),1,1))*71),11)","v":0},0,{"$f":"IF(H4038=\"REGISTRO ACTIVO\",O4038,\"\")","v":""},null,null,null,null,null,0,""]
[null,{"$f":"+P4039","v":""},null,null,null,null,null,null,{"$f":"IF(H4039=\"REGISTRO ACTIVO\",1,0)","v":0},null,null,null,null,0,{"$f":"IF(N4039=0,0,IF(N4039=1,1,11-N4039))","v":0},"",null,null,null,null,null,{"$f":"IF(H4039=\"\",0,1)","v":0},{"$f":"IF(AND(A4039>0,H4039=\"\",$V$5007>0),\"NO\",\"\")","v":""}]
[null,"",null,null,null,null,null,null,0,null,null,null,null,0,0,"",null,null,null,null,null,0,""]
[null,"",null,null,null,null,null,null,0,null,null,null,null,0,0,"",null,null,null,null,null,0,""]
[null,"",null,null,null,null,null,null,0,null,null,null,null,0,0,"",null,null,null,null,null,0,""]
[null,"",null,null,null,null,null,null,0,null,null,null,null,0,0,"",null,null,null,null,null,0,""]
[null,"",null,null,null,null,null,null,0,null,null,null,null,0,0,"",null,null,null,null,null,0,""]
[null,"",null,null,null,null,null,null,0,null,null,null,null,0,0,"",null,null,null,null,null,0,""]
[null,"",null,null,null,null,null,null,0,null,null,null,null,0,0,"",null,null,null,null,null,0,""]
[null,"",null,null,null,null,null,null,0,null,null,null,null,0,0,"",null,null,null,null,null,0,""]
[null,"",null,null,null,null,null,null,0,null,null,null,null,0,0,"",null,null,null,null,null,0,""]
[null,"",null,null,null,null,null,null,0,null,null,null,null,0,0,"",null,null,null,null,null,0,""]
[null,"",null,null,null,null,null,null,0,null,null,null,null,0,0,"",null,null,null,null,null,0,""]
[null,"",null,null,null,null,null,null,0,null,null,null,null,0,0,"",null,null,null,null,null,0,""]
[null,"",null,null,null,null,null,null,0,null,null,null,null,0,0,"",null,null,null,null,null,0,""]
[null,"",null,null,null,null,null,null,0,null,null,null,null,0,0,"",null,null,null,null,null,0,""]
[null,"",null,null,null,null,null,null,0,null,null,null,null,0,0,"",null,null,null,null,null,0,""]
[null,"",null,null,null,null,null,null,0,null,null,null,null,0,0,"",null,null,null,null,null,0,""]
[null,"",null,null,null,null,null,null,0,null,null,null,null,0,0,"",null,null,null,null,null,0,""]
[null,"",null,null,null,null,null,null,0,null,null,null,null,0,0,"",null,null,null,null,null,0,""]
[null,"",null,null,null,null,null,null,0,null,null,null,null,0,0,"",null,null,null,null,null,0,""]
[null,"",null,null,null,null,null,null,0,null,null,null,null,0,0,"",null,null,null,null,null,0,""]
[null,"",null,null,null,null,null,null,0,null,null,null,null,0,0,"",null,null,null,null,null,0,""]
[null,"",null,null,null,null,null,null,0,null,null,null,null,0,0,"",null,null,null,null,null,0,""]
[null,"",null,null,null,null,null,null,0,null,null,null,null,0,0,"",null,null,null,null,null,0,""]
[null,"",null,null,null,null,null,null,0,null,null,null,null,0,0,"",null,null,null,null,null,0,""]
[null,"",null,null,null,null,null,null,0,null,null,null,null,0,0,"",null,null,null,null,null,0,""]
[null,"",null,null,null,null,null,null,0,null,null,null,null,0,0,"",null,null,null,null,null,0,""]
[null,"",null,null,null,null,null,null,0,null,null,null,null,0,0,"",null,null,null,null,null,0,""]
[null,"",null,null,null,null,null,null,0,null,null,null,null,0,0,"",null,null,null,null,null,0,""]
[null,"",null,null,null,null,null,null,0,null,null,null,null,0,0,"",null,null,null,null,null,0,""]
[null,"",null,null,null,null,null,null,0,null,null,null,null,0,0,"",null,null,null,null,null,0,""]
[null,"",null,null,null,null,null,null,0,null,null,null,null,0,0,"",null,null,null,null,null,0,""]
[null,"",null,null,null,null,null,null,0,null,null,null,null,0,0,"",null,null,null,null,null,0,""]
[null,"",null,null,null,null,null,null,0,null,null,null,null,0,0,"",null,null,null,null,null,0,""]
[null,"",null,null,null,null,null,null,0,null,null,null,null,0,0,"",null,null,null,null,null,0,""]
[null,"",null,null,null,null,null,null,0,null,null,null,null,0,0,"",null,null,null,null,null,0,""]
[null,"",null,null,null,null,null,null,0,null,null,null,null,0,0,"",null,null,null,null,null,0,""]
[null,"",null,null,null,null,null,null,0,null,null,null,null,0,0,"",null,null,null,null,null,0,""]
[null,"",null,null,null,null,null,null,0,null,null,null,null,0,0,"",null,null,null,null,null,0,""]
[null,"",null,null,null,null,null,null,0,null,null,null,null,0,0,"",null,null,null,null,null,0,""]
[null,"",null,null,null,null,null,null,0,null,null,null,null,0,0,"",null,null,null,null,null,0,""]
[null,"",null,null,null,null,null,null,0,null,null,null,null,0,0,"",null,null,null,null,null,0,""]
[null,"",null,null,null,null,null,null,0,null,null,null,null,0,0,"",null,null,null,null,null,0,""]
[null,"",null,null,null,null,null,null,0,null,null,null,null,0,0,"",null,null,null,null,null,0,""]
[null,"",null,null,null,null,null,null,0,null,null,null,null,0,0,"",null,null,null,null,null,0,""]
[null,"",null,null,null,null,null,null,0,null,null,null,null,0,0,"",null,null,null,null,null,0,""]
[null,"",null,null,null,null,null,null,0,null,null,null,null,0,0,"",null,null,null,null,null,0,""]
[null,"",null,null,null,null,null,null,0,null,null,null,null,0,0,"",null,null,null,null,null,0,""]
[null,"",null,null,null,null,null,null,0,null,null,null,null,0,0,"",null,null,null,null,null,0,""]
[null,"",null,null,null,null,null,null,0,null,null,null,null,0,0,"",null,null,null,null,null,0,""]
[null,"",null,null,null,null,null,null,0,null,null,null,null,0,0,"",null,null,null,null,null,0,""]
[null,"",null,null,null,null,null,null,0,null,null,null,null,0,0,"",null,null,null,null,null,0,""]
[null,"",null,null,null,null,null,null,0,null,null,null,null,0,0,"",null,null,null,null,null,0,""]
[null,"",null,null,null,null,null,null,0,null,null,null,null,0,0,"",null,null,null,null,null,0,""]
[null,"",null,null,null,null,null,null,0,null,null,null,null,0,0,"",null,null,null,null,null,0,""]
[null,"",null,null,null,null,null,null,0,null,null,null,null,0,0,"",null,null,null,null,null,0,""]
[null,"",null,null,null,null,null,null,0,null,null,null,null,0,0,"",null,null,null,null,null,0,""]
[null,"",null,null,null,null,null,null,0,null,null,null,null,0,0,"",null,null,null,null,null,0,""]
[null,"",null,null,null,null,null,null,0,null,null,null,null,0,0,"",null,null,null,null,null,0,""]
[null,"",null,null,null,null,null,null,0,null,null,null,null,0,0,"",null,null,null,null,null,0,""]
[null,"",null,null,null,null,null,null,0,null,null,null,null,0,0,"",null,null,null,null,null,0,""]
[null,"",null,null,null,null,null,null,0,null,null,null,null,0,0,"",null,null,null,null,null,0,""]
[null,"",null,null,null,null,null,null,0,null,null,null,null,0,0,"",null,null,null,null,null,0,""]
[null,"",null,null,null,null,null,null,0,null,null,null,null,0,0,"",null,null,null,null,null,0,""]
[null,"",null,null,null,null,null,null,0,null,null,null,null,0,0,"",null,null,null,null,null,0,""]
[null,"",null,null,null,null,null,null,0,null,null,null,null,0,0,"",null,null,null,null,null,0,""]
[null,"",null,null,null,null,null,null,0,null,null,null,null,0,0,"",null,null,null,null,null,0,""]
[null,"",null,null,null,null,null,null,0,null,null,null,null,{"$f":"MOD((VALUE(MID(TEXT(A4294,\"000000000000000\"),15,1))*3+VALUE(MID(TEXT(A4294,\"000000000000000\"),14,1))*7+VALUE(MID(TEXT(A4294,\"000000000000000\"),13,1))*13+VALUE(MID(TEXT(A4294,\"000000000000000\"),12,1))*17+VALUE(MID(TEXT(A4294,\"000000000000000\"),11,1))*19+VALUE(MID(TEXT(A4294,\"000000000000000\"),10,1))*23+VALUE(MID(TEXT(A4294,\"000000000000000\"),9,1))*29+VALUE(MID(TEXT(A4294,\"000000000000000\"),8,1))*37+VALUE(MID(TEXT(A4294,\"000000000000000\"),7,1))*41+VALUE(MID(TEXT(A4294,\"000000000000000\"),6,1))*43+VALUE(MID(TEXT(A4294,\"000000000000000\"),5,1))*47+VALUE(MID(TEXT(A4294,\"000000000000000\"),4,1))*53+VALUE(MID(TEXT(A4294,\"000000000000000\"),3,1))*59+VALUE(MID(TEXT(A4294,\"000000000000000\"),2,1))*67+VALUE(MID(TEXT(A4294,\"000000000000000\"),1,1))*71),11)","v":0},0,{"$f":"IF(H4294=\"REGISTRO ACTIVO\",O4294,\"\")","v":""},null,null,null,null,null,0,""]
[null,{"$f":"+P4295","v":""},null,null,null,null,null,null,{"$f":"IF(H4295=\"REGISTRO ACTIVO\",1,0)","v":0},null,null,null,null,0,{"$f":"IF(N4295=0,0,IF(N4295=1,1,11-N4295))","v":0},"",null,null,null,null,null,{"$f":"IF(H4295=\"\",0,1)","v":0},{"$f":"IF(AND(A4295>0,H4295=\"\",$V$5007>0),\"NO\",\"\")","v":""}]
[null,"",null,null,null,null,null,null,0,null,null,null,null,0,0,"",null,null,null,null,null,0,""]
[null,"",null,null,null,null,null,null,0,null,null,null,null,0,0,"",null,null,null,null,null,0,""]
[null,"",null,null,null,null,null,null,0,null,null,null,null,0,0,"",null,null,null,null,null,0,""]
[null,"",null,null,null,null,null,null,0,null,null,null,null,0,0,"",null,null,null,null,null,0,""]
[null,"",null,null,null,null,null,null,0,null,null,null,null,0,0,"",null,null,null,null,null,0,""]
[null,"",null,null,null,null,null,null,0,null,null,null,null,0,0,"",null,null,null,null,null,0,""]
[null,"",null,null,null,null,null,null,0,null,null,null,null,0,0,"",null,null,null,null,null,0,""]
[null,"",null,null,null,null,null,null,0,null,null,null,null,0,0,"",null,null,null,null,null,0,""]
[null,"",null,null,null,null,null,null,0,null,null,null,null,0,0,"",null,null,null,null,null,0,""]
[null,"",null,null,null,null,null,null,0,null,null,null,null,0,0,"",null,null,null,null,null,0,""]
[null,"",null,null,null,null,null,null,0,null,null,null,null,0,0,"",null,null,null,null,null,0,""]
[null,"",null,null,null,null,null,null,0,null,null,null,null,0,0,"",null,null,null,null,null,0,""]
[null,"",null,null,null,null,null,null,0,null,null,null,null,0,0,"",null,null,null,null,null,0,""]
[null,"",null,null,null,null,null,null,0,null,null,null,null,0,0,"",null,null,null,null,null,0,""]
[null,"",null,null,null,null,null,null,0,null,null,null,null,0,0,"",null,null,null,null,null,0,""]
[null,"",null,null,null,null,null,null,0,null,null,null,null,0,0,"",null,null,null,null,null,0,""]
[null,"",null,null,null,null,null,null,0,null,null,null,null,0,0,"",null,null,null,null,null,0,""]
[null,"",null,null,null,null,null,null,0,null,null,null,null,0,0,"",null,null,null,null,null,0,""]
[null,"",null,null,null,null,null,null,0,null,null,null,null,0,0,"",null,null,null,null,null,0,""]
[null,"",null,null,null,null,null,null,0,null,null,null,null,0,0,"",null,null,null,null,null,0,""]
[null,"",null,null,null,null,null,null,0,null,null,null,null,0,0,"",null,null,null,null,null,0,""]
[null,"",null,null,null,null,null,null,0,null,null,null,null,0,0,"",null,null,null,null,null,0,""]
[null,"",null,null,null,null,null,null,0,null,null,null,null,0,0,"",null,null,null,null,null,0,""]
[null,"",null,null,null,null,null,null,0,null,null,null,null,0,0,"",null,null,null,null,null,0,""]
[null,"",null,null,null,null,null,null,0,null,null,null,null,0,0,"",null,null,null,null,null,0,""]
[null,"",null,null,null,null,null,null,0,null,null,null,null,0,0,"",null,null,null,null,null,0,""]
[null,"",null,null,null,null,null,null,0,null,null,null,null,0,0,"",null,null,null,null,null,0,""]
[null,"",null,null,null,null,null,null,0,null,null,null,null,0,0,"",null,null,null,null,null,0,""]
[null,"",null,null,null,null,null,null,0,null,null,null,null,0,0,"",null,null,null,null,null,0,""]
[null,"",null,null,null,null,null,null,0,null,null,null,null,0,0,"",null,null,null,null,null,0,""]
[null,"",null,null,null,null,null,null,0,null,null,null,null,0,0,"",null,null,null,null,null,0,""]
[null,"",null,null,null,null,null,null,0,null,null,null,null,0,0,"",null,null,null,null,null,0,""]
[null,"",null,null,null,null,null,null,0,null,null,null,null,0,0,"",null,null,null,null,null,0,""]
[null,"",null,null,null,null,null,null,0,null,null,null,null,0,0,"",null,null,null,null,null,0,""]
[null,"",null,null,null,null,null,null,0,null,null,null,null,0,0,"",null,null,null,null,null,0,""]
[null,"",null,null,null,null,null,null,0,null,null,null,null,0,0,"",null,null,null,null,null,0,""]
[null,"",null,null,null,null,null,null,0,null,null,null,null,0,0,"",null,null,null,null,null,0,""]
[null,"",null,null,null,null,null,null,0,null,null,null,null,0,0,"",null,null,null,null,null,0,""]
[null,"",null,null,null,null,null,null,0,null,null,null,null,0,0,"",null,null,null,null,null,0,""]
[null,"",null,null,null,null,null,null,0,null,null,null,null,0,0,"",null,null,null,null,null,0,""]
[null,"",null,null,null,null,null,null,0,null,null,null,null,0,0,"",null,null,null,null,null,0,""]
[null,"",null,null,null,null,null,null,0,null,null,null,null,0,0,"",null,null,null,null,null,0,""]
[null,"",null,null,null,null,null,null,0,null,null,null,null,0,0,"",null,null,null,null,null,0,""]
[null,"",null,null,null,null,null,null,0,null,null,null,null,0,0,"",null,null,null,null,null,0,""]
[null,"",null,null,null,null,null,null,0,null,null,null,null,0,0,"",null,null,null,null,null,0,""]
[null,"",null,null,null,null,null,null,0,null,null,null,null,0,0,"",null,null,null,null,null,0,""]
[null,"",null,null,null,null,null,null,0,null,null,null,null,0,0,"",null,null,null,null,null,0,""]
[null,"",null,null,null,null,null,null,0,null,null,null,null,0,0,"",null,null,null,null,null,0,""]
[null,"",null,null,null,null,null,null,0,null,null,null,null,0,0,"",null,null,null,null,null,0,""]
[null,"",null,null,null,null,null,null,0,null,null,null,null,0,0,"",null,null,null,null,null,0,""]
[null,"",null,null,null,null,null,null,0,null,null,null,null,0,0,"",null,null,null,null,null,0,""]
[null,"",null,null,null,null,null,null,0,null,null,null,null,0,0,"",null,null,null,null,null,0,""]
[null,"",null,null,null,null,null,null,0,null,null,null,null,0,0,"",null,null,null,null,null,0,""]
[null,"",null,null,null,null,null,null,0,null,null,null,null,0,0,"",null,null,null,null,null,0,""]
[null,"",null,null,null,null,null,null,0,null,null,null,null,0,0,"",null,null,null,null,null,0,""]
[null,"",null,null,null,null,null,null,0,null,null,null,null,0,0,"",null,null,null,null,null,0,""]
[null,"",null,null,null,null,null,null,0,null,null,null,null,0,0,"",null,null,null,null,null,0,""]
[null,"",null,null,null,null,null,null,0,null,null,null,null,0,0,"",null,null,null,null,null,0,""]
[null,"",null,null,null,null,null,null,0,null,null,null,null,0,0,"",null,null,null,null,null,0,""]
[null,"",null,null,null,null,null,null,0,null,null,null,null,0,0,"",null,null,null,null,null,0,""]
[null,"",null,null,null,null,null,null,0,null,null,null,null,0,0,"",null,null,null,null,null,0,""]
[null,"",null,null,null,null,null,null,0,null,null,null,null,0,0,"",null,null,null,null,null,0,""]
[null,"",null,null,null,null,null,null,0,null,null,null,null,0,0,"",null,null,null,null,null,0,""]
[null,"",null,null,null,null,null,null,0,null,null,null,null,0,0,"",null,null,null,null,null,0,""]
[null,"",null,null,null,null,null,null,0,null,null,null,null,0,0,"",null,null,null,null,null,0,""]
[null,"",null,null,null,null,null,null,0,null,null,null,null,0,0,"",null,null,null,null,null,0,""]
[null,"",null,null,null,null,null,null,0,null,null,null,null,{"$f":"MOD((VALUE(MID(TEXT(A4550,\"000000000000000\"),15,1))*3+VALUE(MID(TEXT(A4550,\"000000000000000\"),14,1))*7+VALUE(MID(TEXT(A4550,\"000000000000000\"),13,1))*13+VALUE(MID(TEXT(A4550,\"000000000000000\"),12,1))*17+VALUE(MID(TEXT(A4550,\"000000000000000\"),11,1))*19+VALUE(MID(TEXT(A4550,\"000000000000000\"),10,1))*23+VALUE(MID(TEXT(A4550,\"000000000000000\"),9,1))*29+VALUE(MID(TEXT(A4550,\"000000000000000\"),8,1))*37+VALUE(MID(TEXT(A4550,\"000000000000000\"),7,1))*41+VALUE(MID(TEXT(A4550,\"000000000000000\"),6,1))*43+VALUE(MID(TEXT(A4550,\"000000000000000\"),5,1))*47+VALUE(MID(TEXT(A4550,\"000000000000000\"),4,1))*53+VALUE(MID(TEXT(A4550,\"000000000000000\"),3,1))*59+VALUE(MID(TEXT(A4550,\"000000000000000\"),2,1))*67+VALUE(MID(TEXT(A4550,\"000000000000000\"),1,1))*71),11)","v":0},0,{"$f":"IF(H4550=\"REGISTRO ACTIVO\",O4550,\"\")","v":""},null,null,null,null,null,0,""]
[null,{"$f":"+P4551","v":""},null,null,null,null,null,null,{"$f":"IF(H4551=\"REGISTRO ACTIVO\",1,0)","v":0},null,null,null,null,0,{"$f":"IF(N4551=0,0,IF(N4551=1,1,11-N4551))","v":0},"",null,null,null,null,null,{"$f":"IF(H4551=\"\",0,1)","v":0},{"$f":"IF(AND(A4551>0,H4551=\"\",$V$5007>0),\"NO\",\"\")","v":""}]
[null,"",null,null,null,null,null,null,0,null,null,null,null,0,0,"",null,null,null,null,null,0,""]
[null,"",null,null,null,null,null,null,0,null,null,null,null,0,0,"",null,null,null,null,null,0,""]
[null,"",null,null,null,null,null,null,0,null,null,null,null,0,0,"",null,null,null,null,null,0,""]
[null,"",null,null,null,null,null,null,0,null,null,null,null,0,0,"",null,null,null,null,null,0,""]
[null,"",null,null,null,null,null,null,0,null,null,null,null,0,0,"",null,null,null,null,null,0,""]
[null,"",null,null,null,null,null,null,0,null,null,null,null,0,0,"",null,null,null,null,null,0,""]
[null,"",null,null,null,null,null,null,0,null,null,null,null,0,0,"",null,null,null,null,null,0,""]
[null,"",null,null,null,null,null,null,0,null,null,null,null,0,0,"",null,null,null,null,null,0,""]
[null,"",null,null,null,null,null,null,0,null,null,null,null,0,0,"",null,null,null,null,null,0,""]
[null,"",null,null,null,null,null,null,0,null,null,null,null,0,0,"",null,null,null,null,null,0,""]
[null,"",null,null,null,null,null,null,0,null,null,null,null,0,0,"",null,null,null,null,null,0,""]
[null,"",null,null,null,null,null,null,0,null,null,null,null,0,0,"",null,null,null,null,null,0,""]
[null,"",null,null,null,null,null,null,0,null,null,null,null,0,0,"",null,null,null,null,null,0,""]
[null,"",null,null,null,null,null,null,0,null,null,null,null,0,0,"",null,null,null,null,null,0,""]
[null,"",null,null,null,null,null,null,0,null,null,null,null,0,0,"",null,null,null,null,null,0,""]
[null,"",null,null,null,null,null,null,0,null,null,null,null,0,0,"",null,null,null,null,null,0,""]
[null,"",null,null,null,null,null,null,0,null,null,null,null,0,0,"",null,null,null,null,null,0,""]
[null,"",null,null,null,null,null,null,0,null,null,null,null,0,0,"",null,null,null,null,null,0,""]
[null,"",null,null,null,null,null,null,0,null,null,null,null,0,0,"",null,null,null,null,null,0,""]
[null,"",null,null,null,null,null,null,0,null,null,null,null,0,0,"",null,null,null,null,null,0,""]
[null,"",null,null,null,null,null,null,0,null,null,null,null,0,0,"",null,null,null,null,null,0,""]
[null,"",null,null,null,null,null,null,0,null,null,null,null,0,0,"",null,null,null,null,null,0,""]
[null,"",null,null,null,null,null,null,0,null,null,null,null,0,0,"",null,null,null,null,null,0,""]
[null,"",null,null,null,null,null,null,0,null,null,null,null,0,0,"",null,null,null,null,null,0,""]
[null,"",null,null,null,null,null,null,0,null,null,null,null,0,0,"",null,null,null,null,null,0,""]
[null,"",null,null,null,null,null,null,0,null,null,null,null,0,0,"",null,null,null,null,null,0,""]
[null,"",null,null,null,null,null,null,0,null,null,null,null,0,0,"",null,null,null,null,null,0,""]
[null,"",null,null,null,null,null,null,0,null,null,null,null,0,0,"",null,null,null,null,null,0,""]
[null,"",null,null,null,null,null,null,0,null,null,null,null,0,0,"",null,null,null,null,null,0,""]
[null,"",null,null,null,null,null,null,0,null,null,null,null,0,0,"",null,null,null,null,null,0,""]
[null,"",null,null,null,null,null,null,0,null,null,null,null,0,0,"",null,null,null,null,null,0,""]
[null,"",null,null,null,null,null,null,0,null,null,null,null,0,0,"",null,null,null,null,null,0,""]
[null,"",null,null,null,null,null,null,0,null,null,null,null,0,0,"",null,null,null,null,null,0,""]
[null,"",null,null,null,null,null,null,0,null,null,null,null,0,0,"",null,null,null,null,null,0,""]
[null,"",null,null,null,null,null,null,0,null,null,null,null,0,0,"",null,null,null,null,null,0,""]
[null,"",null,null,null,null,null,null,0,null,null,null,null,0,0,"",null,null,null,null,null,0,""]
[null,"",null,null,null,null,null,null,0,null,null,null,null,0,0,"",null,null,null,null,null,0,""]
[null,"",null,null,null,null,null,null,0,null,null,null,null,0,0,"",null,null,null,null,null,0,""]
[null,"",null,null,null,null,null,null,0,null,null,null,null,0,0,"",null,null,null,null,null,0,""]
[null,"",null,null,null,null,null,null,0,null,null,null,null,0,0,"",null,null,null,null,null,0,""]
[null,"",null,null,null,null,null,null,0,null,null,null,null,0,0,"",null,null,null,null,null,0,""]
[null,"",null,null,null,null,null,null,0,null,null,null,null,0,0,"",null,null,null,null,null,0,""]
[null,"",null,null,null,null,null,null,0,null,null,null,null,0,0,"",null,null,null,null,null,0,""]
[null,"",null,null,null,null,null,null,0,null,null,null,null,0,0,"",null,null,null,null,null,0,""]
[null,"",null,null,null,null,null,null,0,null,null,null,null,0,0,"",null,null,null,null,null,0,""]
[null,"",null,null,null,null,null,null,0,null,null,null,null,0,0,"",null,null,null,null,null,0,""]
[null,"",null,null,null,null,null,null,0,null,null,null,null,0,0,"",null,null,null,null,null,0,""]
[null,"",null,null,null,null,null,null,0,null,null,null,null,0,0,"",null,null,null,null,null,0,""]
[null,"",null,null,null,null,null,null,0,null,null,null,null,0,0,"",null,null,null,null,null,0,""]
[null,"",null,null,null,null,null,null,0,null,null,null,null,0,0,"",null,null,null,null,null,0,""]
[null,"",null,null,null,null,null,null,0,null,null,null,null,0,0,"",null,null,null,null,null,0,""]
[null,"",null,null,null,null,null,null,0,null,null,null,null,0,0,"",null,null,null,null,null,0,""]
[null,"",null,null,null,null,null,null,0,null,null,null,null,0,0,"",null,null,null,null,null,0,""]
[null,"",null,null,null,null,null,null,0,null,null,null,null,0,0,"",null,null,null,null,null,0,""]
[null,"",null,null,null,null,null,null,0,null,null,null,null,0,0,"",null,null,null,null,null,0,""]
[null,"",null,null,null,null,null,null,0,null,null,null,null,0,0,"",null,null,null,null,null,0,""]
[null,"",null,null,null,null,null,null,0,null,null,null,null,0,0,"",null,null,null,null,null,0,""]
[null,"",null,null,null,null,null,null,0,null,null,null,null,0,0,"",null,null,null,null,null,0,""]
[null,"",null,null,null,null,null,null,0,null,null,null,null,0,0,"",null,null,null,null,null,0,""]
[null,"",null,null,null,null,null,null,0,null,null,null,null,0,0,"",null,null,null,null,null,0,""]
[null,"",null,null,null,null,null,null,0,null,null,null,null,0,0,"",null,null,null,null,null,0,""]
[null,"",null,null,null,null,null,null,0,null,null,null,null,0,0,"",null,null,null,null,null,0,""]
[null,"",null,null,null,null,null,null,0,null,null,null,null,0,0,"",null,null,null,null,null,0,""]
[null,"",null,null,null,null,null,null,0,null,null,null,null,0,0,"",null,null,null,null,null,0,""]
[null,"",null,null,null,null,null,null,0,null,null,null,null,0,0,"",null,null,null,null,null,0,""]
[null,"",null,null,null,null,null,null,0,null,null,null,null,0,0,"",null,null,null,null,null,0,""]
[null,"",null,null,null,null,null,null,0,null,null,null,null,0,0,"",null,null,null,null,null,0,""]
[null,"",null,null,null,null,null,null,0,null,null,null,null,0,0,"",null,null,null,null,null,0,""]
[null,"",null,null,null,null,null,null,0,null,null,null,null,0,0,"",null,null,null,null,null,0,""]
[null,"",null,null,null,null,null,null,0,null,null,null,null,0,0,"",null,null,null,null,null,0,""]
[null,"",null,null,null,null,null,null,0,null,null,null,null,0,0,"",null,null,null,null,null,0,""]
[null,"",null,null,null,null,null,null,0,null,null,null,null,0,0,"",null,null,null,null,null,0,""]
[null,"",null,null,null,null,null,null,0,null,null,null,null,0,0,"",null,null,null,null,null,0,""]
[null,"",null,null,null,null,null,null,0,null,null,null,null,0,0,"",null,null,null,null,null,0,""]
[null,"",null,null,null,null,null,null,0,null,null,null,null,0,0,"",null,null,null,null,null,0,""]
[null,"",null,null,null,null,null,null,0,null,null,null,null,0,0,"",null,null,null,null,null,0,""]
[null,"",null,null,null,null,null,null,0,null,null,null,null,0,0,"",null,null,null,null,null,0,""]
[null,"",null,null,null,null,null,null,0,null,null,null,null,0,0,"",null,null,null,null,null,0,""]
[null,"",null,null,null,null,null,null,0,null,null,null,null,0,0,"",null,null,null,null,null,0,""]
[null,"",null,null,null,null,null,null,0,null,null,null,null,0,0,"",null,null,null,null,null,0,""]
[null,"",null,null,null,null,null,null,0,null,null,null,null,0,0,"",null,null,null,null,null,0,""]
[null,"",null,null,null,null,null,null,0,null,null,null,null,0,0,"",null,null,null,null,null,0,""]
[null,"",null,null,null,null,null,null,0,null,null,null,null,0,0,"",null,null,null,null,null,0,""]
[null,"",null,null,null,null,null,null,0,null,null,null,null,0,0,"",null,null,null,null,null,0,""]
[null,"",null,null,null,null,null,null,0,null,null,null,null,0,0,"",null,null,null,null,null,0,""]
[null,"",null,null,null,null,null,null,0,null,null,null,null,0,0,"",null,null,null,null,null,0,""]
[null,"",null,null,null,null,null,null,0,null,null,null,null,0,0,"",null,null,null,null,null,0,""]
[null,"",null,null,null,null,null,null,0,null,null,null,null,0,0,"",null,null,null,null,null,0,""]
[null,"",null,null,null,null,null,null,0,null,null,null,null,0,0,"",null,null,null,null,null,0,""]
[null,"",null,null,null,null,null,null,0,null,null,null,null,0,0,"",null,null,null,null,null,0,""]
[null,"",null,null,null,null,null,null,0,null,null,null,null,0,0,"",null,null,null,null,null,0,""]
[null,"",null,null,null,null,null,null,0,null,null,null,null,0,0,"",null,null,null,null,null,0,""]
[null,"",null,null,null,null,null,null,0,null,null,null,null,0,0,"",null,null,null,null,null,0,""]
[null,"",null,null,null,null,null,null,0,null,null,null,null,0,0,"",null,null,null,null,null,0,""]
[null,"",null,null,null,null,null,null,0,null,null,null,null,0,0,"",null,null,null,null,null,0,""]
[null,"",null,null,null,null,null,null,0,null,null,null,null,0,0,"",null,null,null,null,null,0,""]
[null,"",null,null,null,null,null,null,0,null,null,null,null,{"$f":"MOD((VALUE(MID(TEXT(A4806,\"000000000000000\"),15,1))*3+VALUE(MID(TEXT(A4806,\"000000000000000\"),14,1))*7+VALUE(MID(TEXT(A4806,\"000000000000000\"),13,1))*13+VALUE(MID(TEXT(A4806,\"000000000000000\"),12,1))*17+VALUE(MID(TEXT(A4806,\"000000000000000\"),11,1))*19+VALUE(MID(TEXT(A4806,\"000000000000000\"),10,1))*23+VALUE(MID(TEXT(A4806,\"000000000000000\"),9,1))*29+VALUE(MID(TEXT(A4806,\"000000000000000\"),8,1))*37+VALUE(MID(TEXT(A4806,\"000000000000000\"),7,1))*41+VALUE(MID(TEXT(A4806,\"000000000000000\"),6,1))*43+VALUE(MID(TEXT(A4806,\"000000000000000\"),5,1))*47+VALUE(MID(TEXT(A4806,\"000000000000000\"),4,1))*53+VALUE(MID(TEXT(A4806,\"000000000000000\"),3,1))*59+VALUE(MID(TEXT(A4806,\"000000000000000\"),2,1))*67+VALUE(MID(TEXT(A4806,\"000000000000000\"),1,1))*71),11)","v":0},0,{"$f":"IF(H4806=\"REGISTRO ACTIVO\",O4806,\"\")","v":""},null,null,null,null,null,0,""]
[null,{"$f":"+P4807","v":""},null,null,null,null,null,null,{"$f":"IF(H4807=\"REGISTRO ACTIVO\",1,0)","v":0},null,null,null,null,0,{"$f":"IF(N4807=0,0,IF(N4807=1,1,11-N4807))","v":0},"",null,null,null,null,null,{"$f":"IF(H4807=\"\",0,1)","v":0},{"$f":"IF(AND(A4807>0,H4807=\"\",$V$5007>0),\"NO\",\"\")","v":""}]
[null,"",null,null,null,null,null,null,0,null,null,null,null,0,0,"",null,null,null,null,null,0,""]
[null,"",null,null,null,null,null,null,0,null,null,null,null,0,0,"",null,null,null,null,null,0,""]
[null,"",null,null,null,null,null,null,0,null,null,null,null,0,0,"",null,null,null,null,null,0,""]
[null,"",null,null,null,null,null,null,0,null,null,null,null,0,0,"",null,null,null,null,null,0,""]
[null,"",null,null,null,null,null,null,0,null,null,null,null,0,0,"",null,null,null,null,null,0,""]
[null,"",null,null,null,null,null,null,0,null,null,null,null,0,0,"",null,null,null,null,null,0,""]
[null,"",null,null,null,null,null,null,0,null,null,null,null,0,0,"",null,null,null,null,null,0,""]
[null,"",null,null,null,null,null,null,0,null,null,null,null,0,0,"",null,null,null,null,null,0,""]
[null,"",null,null,null,null,null,null,0,null,null,null,null,0,0,"",null,null,null,null,null,0,""]
[null,"",null,null,null,null,null,null,0,null,null,null,null,0,0,"",null,null,null,null,null,0,""]
[null,"",null,null,null,null,null,null,0,null,null,null,null,0,0,"",null,null,null,null,null,0,""]
[null,"",null,null,null,null,null,null,0,null,null,null,null,0,0,"",null,null,null,null,null,0,""]
[null,"",null,null,null,null,null,null,0,null,null,null,null,0,0,"",null,null,null,null,null,0,""]
[null,"",null,null,null,null,null,null,0,null,null,null,null,0,0,"",null,null,null,null,null,0,""]
[null,"",null,null,null,null,null,null,0,null,null,null,null,0,0,"",null,null,null,null,null,0,""]
[null,"",null,null,null,null,null,null,0,null,null,null,null,0,0,"",null,null,null,null,null,0,""]
[null,"",null,null,null,null,null,null,0,null,null,null,null,0,0,"",null,null,null,null,null,0,""]
[null,"",null,null,null,null,null,null,0,null,null,null,null,0,0,"",null,null,null,null,null,0,""]
[null,"",null,null,null,null,null,null,0,null,null,null,null,0,0,"",null,null,null,null,null,0,""]
[null,"",null,null,null,null,null,null,0,null,null,null,null,0,0,"",null,null,null,null,null,0,""]
[null,"",null,null,null,null,null,null,0,null,null,null,null,0,0,"",null,null,null,null,null,0,""]
[null,"",null,null,null,null,null,null,0,null,null,null,null,0,0,"",null,null,null,null,null,0,""]
[null,"",null,null,null,null,null,null,0,null,null,null,null,0,0,"",null,null,null,null,null,0,""]
[null,"",null,null,null,null,null,null,0,null,null,null,null,0,0,"",null,null,null,null,null,0,""]
[null,"",null,null,null,null,null,null,0,null,null,null,null,0,0,"",null,null,null,null,null,0,""]
[null,"",null,null,null,null,null,null,0,null,null,null,null,0,0,"",null,null,null,null,null,0,""]
[null,"",null,null,null,null,null,null,0,null,null,null,null,0,0,"",null,null,null,null,null,0,""]
[null,"",null,null,null,null,null,null,0,null,null,null,null,0,0,"",null,null,null,null,null,0,""]
[null,"",null,null,null,null,null,null,0,null,null,null,null,0,0,"",null,null,null,null,null,0,""]
[null,"",null,null,null,null,null,null,0,null,null,null,null,0,0,"",null,null,null,null,null,0,""]
[null,"",null,null,null,null,null,null,0,null,null,null,null,0,0,"",null,null,null,null,null,0,""]
[null,"",null,null,null,null,null,null,0,null,null,null,null,0,0,"",null,null,null,null,null,0,""]
[null,"",null,null,null,null,null,null,0,null,null,null,null,0,0,"",null,null,null,null,null,0,""]
[null,"",null,null,null,null,null,null,0,null,null,null,null,0,0,"",null,null,null,null,null,0,""]
[null,"",null,null,null,null,null,null,0,null,null,null,null,0,0,"",null,null,null,null,null,0,""]
[null,"",null,null,null,null,null,null,0,null,null,null,null,0,0,"",null,null,null,null,null,0,""]
[null,"",null,null,null,null,null,null,0,null,null,null,null,0,0,"",null,null,null,null,null,0,""]
[null,"",null,null,null,null,null,null,0,null,null,null,null,0,0,"",null,null,null,null,null,0,""]
[null,"",null,null,null,null,null,null,0,null,null,null,null,0,0,"",null,null,null,null,null,0,""]
[null,"",null,null,null,null,null,null,0,null,null,null,null,0,0,"",null,null,null,null,null,0,""]
[null,"",null,null,null,null,null,null,0,null,null,null,null,0,0,"",null,null,null,null,null,0,""]
[null,"",null,null,null,null,null,null,0,null,null,null,null,0,0,"",null,null,null,null,null,0,""]
[null,"",null,null,null,null,null,null,0,null,null,null,null,0,0,"",null,null,null,null,null,0,""]
[null,"",null,null,null,null,null,null,0,null,null,null,null,0,0,"",null,null,null,null,null,0,""]
[null,"",null,null,null,null,null,null,0,null,null,null,null,0,0,"",null,null,null,null,null,0,""]
[null,"",null,null,null,null,null,null,0,null,null,null,null,0,0,"",null,null,null,null,null,0,""]
[null,"",null,null,null,null,null,null,0,null,null,null,null,0,0,"",null,null,null,null,null,0,""]
[null,"",null,null,null,null,null,null,0,null,null,null,null,0,0,"",null,null,null,null,null,0,""]
[null,"",null,null,null,null,null,null,0,null,null,null,null,0,0,"",null,null,null,null,null,0,""]
[null,"",null,null,null,null,null,null,0,null,null,null,null,0,0,"",null,null,null,null,null,0,""]
[null,"",null,null,null,null,null,null,0,null,null,null,null,0,0,"",null,null,null,null,null,0,""]
[null,"",null,null,null,null,null,null,0,null,null,null,null,0,0,"",null,null,null,null,null,0,""]
[null,"",null,null,null,null,null,null,0,null,null,null,null,0,0,"",null,null,null,null,null,0,""]
[null,"",null,null,null,null,null,null,0,null,null,null,null,0,0,"",null,null,null,null,null,0,""]
[null,"",null,null,null,null,null,null,0,null,null,null,null,0,0,"",null,null,null,null,null,0,""]
[null,"",null,null,null,null,null,null,0,null,null,null,null,0,0,"",null,null,null,null,null,0,""]
[null,"",null,null,null,null,null,null,0,null,null,null,null,0,0,"",null,null,null,null,null,0,""]
[null,"",null,null,null,null,null,null,0,null,null,null,null,0,0,"",null,null,null,null,null,0,""]
[null,"",null,null,null,null,null,null,0,null,null,null,null,0,0,"",null,null,null,null,null,0,""]
[null,"",null,null,null,null,null,null,0,null,null,null,null,0,0,"",null,null,null,null,null,0,""]
[null,"",null,null,null,null,null,null,0,null,null,null,null,0,0,"",null,null,null,null,null,0,""]
[null,"",null,null,null,null,null,null,0,null,null,null,null,0,0,"",null,null,null,null,null,0,""]
[null,"",null,null,null,null,null,null,0,null,null,null,null,{"$f":"MOD((VALUE(MID(TEXT(A4870,\"000000000000000\"),15,1))*3+VALUE(MID(TEXT(A4870,\"000000000000000\"),14,1))*7+VALUE(MID(TEXT(A4870,\"000000000000000\"),13,1))*13+VALUE(MID(TEXT(A4870,\"000000000000000\"),12,1))*17+VALUE(MID(TEXT(A4870,\"000000000000000\"),11,1))*19+VALUE(MID(TEXT(A4870,\"000000000000000\"),10,1))*23+VALUE(MID(TEXT(A4870,\"000000000000000\"),9,1))*29+VALUE(MID(TEXT(A4870,\"000000000000000\"),8,1))*37+VALUE(MID(TEXT(A4870,\"000000000000000\"),7,1))*41+VALUE(MID(TEXT(A4870,\"000000000000000\"),6,1))*43+VALUE(MID(TEXT(A4870,\"000000000000000\"),5,1))*47+VALUE(MID(TEXT(A4870,\"000000000000000\"),4,1))*53+VALUE(MID(TEXT(A4870,\"000000000000000\"),3,1))*59+VALUE(MID(TEXT(A4870,\"000000000000000\"),2,1))*67+VALUE(MID(TEXT(A4870,\"000000000000000\"),1,1))*71),11)","v":0},0,{"$f":"IF(H4870=\"REGISTRO ACTIVO\",O4870,\"\")","v":""},null,null,null,null,null,0,""]
[null,{"$f":"+P4871","v":""},null,null,null,null,null,null,{"$f":"IF(H4871=\"REGISTRO ACTIVO\",1,0)","v":0},null,null,null,null,0,{"$f":"IF(N4871=0,0,IF(N4871=1,1,11-N4871))","v":0},"",null,null,null,null,null,{"$f":"IF(H4871=\"\",0,1)","v":0},{"$f":"IF(AND(A4871>0,H4871=\"\",$V$5007>0),\"NO\",\"\")","v":""}]
[null,"",null,null,null,null,null,null,0,null,null,null,null,0,0,"",null,null,null,null,null,0,""]
[null,"",null,null,null,null,null,null,0,null,null,null,null,0,0,"",null,null,null,null,null,0,""]
[null,"",null,null,null,null,null,null,0,null,null,null,null,0,0,"",null,null,null,null,null,0,""]
[null,"",null,null,null,null,null,null,0,null,null,null,null,0,0,"",null,null,null,null,null,0,""]
[null,"",null,null,null,null,null,null,0,null,null,null,null,0,0,"",null,null,null,null,null,0,""]
[null,"",null,null,null,null,null,null,0,null,null,null,null,0,0,"",null,null,null,null,null,0,""]
[null,"",null,null,null,null,null,null,0,null,null,null,null,0,0,"",null,null,null,null,null,0,""]
[null,"",null,null,null,null,null,null,0,null,null,null,null,0,0,"",null,null,null,null,null,0,""]
[null,"",null,null,null,null,null,null,0,null,null,null,null,0,0,"",null,null,null,null,null,0,""]
[null,"",null,null,null,null,null,null,0,null,null,null,null,0,0,"",null,null,null,null,null,0,""]
[null,"",null,null,null,null,null,null,0,null,null,null,null,0,0,"",null,null,null,null,null,0,""]
[null,"",null,null,null,null,null,null,0,null,null,null,null,0,0,"",null,null,null,null,null,0,""]
[null,"",null,null,null,null,null,null,0,null,null,null,null,0,0,"",null,null,null,null,null,0,""]
[null,"",null,null,null,null,null,null,0,null,null,null,null,0,0,"",null,null,null,null,null,0,""]
[null,"",null,null,null,null,null,null,0,null,null,null,null,0,0,"",null,null,null,null,null,0,""]
[null,"",null,null,null,null,null,null,0,null,null,null,null,0,0,"",null,null,null,null,null,0,""]
[null,"",null,null,null,null,null,null,0,null,null,null,null,0,0,"",null,null,null,null,null,0,""]
[null,"",null,null,null,null,null,null,0,null,null,null,null,0,0,"",null,null,null,null,null,0,""]
[null,"",null,null,null,null,null,null,0,null,null,null,null,0,0,"",null,null,null,null,null,0,""]
[null,"",null,null,null,null,null,null,0,null,null,null,null,0,0,"",null,null,null,null,null,0,""]
[null,"",null,null,null,null,null,null,0,null,null,null,null,0,0,"",null,null,null,null,null,0,""]
[null,"",null,null,null,null,null,null,0,null,null,null,null,0,0,"",null,null,null,null,null,0,""]
[null,"",null,null,null,null,null,null,0,null,null,null,null,0,0,"",null,null,null,null,null,0,""]
[null,"",null,null,null,null,null,null,0,null,null,null,null,0,0,"",null,null,null,null,null,0,""]
[null,"",null,null,null,null,null,null,0,null,null,null,null,0,0,"",null,null,null,null,null,0,""]
[null,"",null,null,null,null,null,null,0,null,null,null,null,0,0,"",null,null,null,null,null,0,""]
[null,"",null,null,null,null,null,null,0,null,null,null,null,0,0,"",null,null,null,null,null,0,""]
[null,"",null,null,null,null,null,null,0,null,null,null,null,0,0,"",null,null,null,null,null,0,""]
[null,"",null,null,null,null,null,null,0,null,null,null,null,0,0,"",null,null,null,null,null,0,""]
[null,"",null,null,null,null,null,null,0,null,null,null,null,0,0,"",null,null,null,null,null,0,""]
[null,"",null,null,null,null,null,null,0,null,null,null,null,0,0,"",null,null,null,null,null,0,""]
[null,"",null,null,null,null,null,null,0,null,null,null,null,0,0,"",null,null,null,null,null,0,""]
[null,"",null,null,null,null,null,null,0,null,null,null,null,0,0,"",null,null,null,null,null,0,""]
[null,"",null,null,null,null,null,null,0,null,null,null,null,0,0,"",null,null,null,null,null,0,""]
[null,"",null,null,null,null,null,null,0,null,null,null,null,0,0,"",null,null,null,null,null,0,""]
[null,"",null,null,null,null,null,null,0,null,null,null,null,0,0,"",null,null,null,null,null,0,""]
[null,"",null,null,null,null,null,null,0,null,null,null,null,0,0,"",null,null,null,null,null,0,""]
[null,"",null,null,null,null,null,null,0,null,null,null,null,0,0,"",null,null,null,null,null,0,""]
[null,"",null,null,null,null,null,null,0,null,null,null,null,0,0,"",null,null,null,null,null,0,""]
[null,"",null,null,null,null,null,null,0,null,null,null,null,0,0,"",null,null,null,null,null,0,""]
[null,"",null,null,null,null,null,null,0,null,null,null,null,0,0,"",null,null,null,null,null,0,""]
[null,"",null,null,null,null,null,null,0,null,null,null,null,0,0,"",null,null,null,null,null,0,""]
[null,"",null,null,null,null,null,null,0,null,null,null,null,0,0,"",null,null,null,null,null,0,""]
[null,"",null,null,null,null,null,null,0,null,null,null,null,0,0,"",null,null,null,null,null,0,""]
[null,"",null,null,null,null,null,null,0,null,null,null,null,0,0,"",null,null,null,null,null,0,""]
[null,"",null,null,null,null,null,null,0,null,null,null,null,0,0,"",null,null,null,null,null,0,""]
[null,"",null,null,null,null,null,null,0,null,null,null,null,0,0,"",null,null,null,null,null,0,""]
[null,"",null,null,null,null,null,null,0,null,null,null,null,0,0,"",null,null,null,null,null,0,""]
[null,"",null,null,null,null,null,null,0,null,null,null,null,0,0,"",null,null,null,null,null,0,""]
[null,"",null,null,null,null,null,null,0,null,null,null,null,0,0,"",null,null,null,null,null,0,""]
[null,"",null,null,null,null,null,null,0,null,null,null,null,0,0,"",null,null,null,null,null,0,""]
[null,"",null,null,null,null,null,null,0,null,null,null,null,0,0,"",null,null,null,null,null,0,""]
[null,"",null,null,null,null,null,null,0,null,null,null,null,0,0,"",null,null,null,null,null,0,""]
[null,"",null,null,null,null,null,null,0,null,null,null,null,0,0,"",null,null,null,null,null,0,""]
[null,"",null,null,null,null,null,null,0,null,null,null,null,0,0,"",null,null,null,null,null,0,""]
[null,"",null,null,null,null,null,null,0,null,null,null,null,0,0,"",null,null,null,null,null,0,""]
[null,"",null,null,null,null,null,null,0,null,null,null,null,0,0,"",null,null,null,null,null,0,""]
[null,"",null,null,null,null,null,null,0,null,null,null,null,0,0,"",null,null,null,null,null,0,""]
[null,"",null,null,null,null,null,null,0,null,null,null,null,0,0,"",null,null,null,null,null,0,""]
[null,"",null,null,null,null,null,null,0,null,null,null,null,0,0,"",null,null,null,null,null,0,""]
[null,"",null,null,null,null,null,null,0,null,null,null,null,0,0,"",null,null,null,null,null,0,""]
[null,"",null,null,null,null,null,null,0,null,null,null,null,0,0,"",null,null,null,null,null,0,""]
[null,"",null,null,null,null,null,null,0,null,null,null,null,{"$f":"MOD((VALUE(MID(TEXT(A4934,\"000000000000000\"),15,1))*3+VALUE(MID(TEXT(A4934,\"000000000000000\"),14,1))*7+VALUE(MID(TEXT(A4934,\"000000000000000\"),13,1))*13+VALUE(MID(TEXT(A4934,\"000000000000000\"),12,1))*17+VALUE(MID(TEXT(A4934,\"000000000000000\"),11,1))*19+VALUE(MID(TEXT(A4934,\"000000000000000\"),10,1))*23+VALUE(MID(TEXT(A4934,\"000000000000000\"),9,1))*29+VALUE(MID(TEXT(A4934,\"000000000000000\"),8,1))*37+VALUE(MID(TEXT(A4934,\"000000000000000\"),7,1))*41+VALUE(MID(TEXT(A4934,\"000000000000000\"),6,1))*43+VALUE(MID(TEXT(A4934,\"000000000000000\"),5,1))*47+VALUE(MID(TEXT(A4934,\"000000000000000\"),4,1))*53+VALUE(MID(TEXT(A4934,\"000000000000000\"),3,1))*59+VALUE(MID(TEXT(A4934,\"000000000000000\"),2,1))*67+VALUE(MID(TEXT(A4934,\"000000000000000\"),1,1))*71),11)","v":0},0,{"$f":"IF(H4934=\"REGISTRO ACTIVO\",O4934,\"\")","v":""},null,null,null,null,null,0,""]
[null,{"$f":"+P4935","v":""},null,null,null,null,null,null,{"$f":"IF(H4935=\"REGISTRO ACTIVO\",1,0)","v":0},null,null,null,null,0,{"$f":"IF(N4935=0,0,IF(N4935=1,1,11-N4935))","v":0},"",null,null,null,null,null,{"$f":"IF(H4935=\"\",0,1)","v":0},{"$f":"IF(AND(A4935>0,H4935=\"\",$V$5007>0),\"NO\",\"\")","v":""}]
[null,"",null,null,null,null,null,null,0,null,null,null,null,0,0,"",null,null,null,null,null,0,""]
[null,"",null,null,null,null,null,null,0,null,null,null,null,0,0,"",null,null,null,null,null,0,""]
[null,"",null,null,null,null,null,null,0,null,null,null,null,0,0,"",null,null,null,null,null,0,""]
[null,"",null,null,null,null,null,null,0,null,null,null,null,0,0,"",null,null,null,null,null,0,""]
[null,"",null,null,null,null,null,null,0,null,null,null,null,0,0,"",null,null,null,null,null,0,""]
[null,"",null,null,null,null,null,null,0,null,null,null,null,0,0,"",null,null,null,null,null,0,""]
[null,"",null,null,null,null,null,null,0,null,null,null,null,0,0,"",null,null,null,null,null,0,""]
[null,"",null,null,null,null,null,null,0,null,null,null,null,0,0,"",null,null,null,null,null,0,""]
[null,"",null,null,null,null,null,null,0,null,null,null,null,0,0,"",null,null,null,null,null,0,""]
[null,"",null,null,null,null,null,null,0,null,null,null,null,0,0,"",null,null,null,null,null,0,""]
[null,"",null,null,null,null,null,null,0,null,null,null,null,0,0,"",null,null,null,null,null,0,""]
[null,"",null,null,null,null,null,null,0,null,null,null,null,0,0,"",null,null,null,null,null,0,""]
[null,"",null,null,null,null,null,null,0,null,null,null,null,0,0,"",null,null,null,null,null,0,""]
[null,"",null,null,null,null,null,null,0,null,null,null,null,0,0,"",null,null,null,null,null,0,""]
[null,"",null,null,null,null,null,null,0,null,null,null,null,0,0,"",null,null,null,null,null,0,""]
[null,"",null,null,null,null,null,null,0,null,null,null,null,0,0,"",null,null,null,null,null,0,""]
[null,"",null,null,null,null,null,null,0,null,null,null,null,0,0,"",null,null,null,null,null,0,""]
[null,"",null,null,null,null,null,null,0,null,null,null,null,0,0,"",null,null,null,null,null,0,""]
[null,"",null,null,null,null,null,null,0,null,null,null,null,0,0,"",null,null,null,null,null,0,""]
[null,"",null,null,null,null,null,null,0,null,null,null,null,0,0,"",null,null,null,null,null,0,""]
[null,"",null,null,null,null,null,null,0,null,null,null,null,0,0,"",null,null,null,null,null,0,""]
[null,"",null,null,null,null,null,null,0,null,null,null,null,0,0,"",null,null,null,null,null,0,""]
[null,"",null,null,null,null,null,null,0,null,null,null,null,0,0,"",null,null,null,null,null,0,""]
[null,"",null,null,null,null,null,null,0,null,null,null,null,0,0,"",null,null,null,null,null,0,""]
[null,"",null,null,null,null,null,null,0,null,null,null,null,0,0,"",null,null,null,null,null,0,""]
[null,"",null,null,null,null,null,null,0,null,null,null,null,0,0,"",null,null,null,null,null,0,""]
[null,"",null,null,null,null,null,null,0,null,null,null,null,0,0,"",null,null,null,null,null,0,""]
[null,"",null,null,null,null,null,null,0,null,null,null,null,0,0,"",null,null,null,null,null,0,""]
[null,"",null,null,null,null,null,null,0,null,null,null,null,0,0,"",null,null,null,null,null,0,""]
[null,"",null,null,null,null,null,null,0,null,null,null,null,0,0,"",null,null,null,null,null,0,""]
[null,"",null,null,null,null,null,null,0,null,null,null,null,0,0,"",null,null,null,null,null,0,""]
[null,"",null,null,null,null,null,null,0,null,null,null,null,0,0,"",null,null,null,null,null,0,""]
[null,"",null,null,null,null,null,null,0,null,null,null,null,0,0,"",null,null,null,null,null,0,""]
[null,"",null,null,null,null,null,null,0,null,null,null,null,0,0,"",null,null,null,null,null,0,""]
[null,"",null,null,null,null,null,null,0,null,null,null,null,0,0,"",null,null,null,null,null,0,""]
[null,"",null,null,null,null,null,null,0,null,null,null,null,0,0,"",null,null,null,null,null,0,""]
[null,"",null,null,null,null,null,null,0,null,null,null,null,0,0,"",null,null,null,null,null,0,""]
[null,"",null,null,null,null,null,null,0,null,null,null,null,0,0,"",null,null,null,null,null,0,""]
[null,"",null,null,null,null,null,null,0,null,null,null,null,0,0,"",null,null,null,null,null,0,""]
[null,"",null,null,null,null,null,null,0,null,null,null,null,0,0,"",null,null,null,null,null,0,""]
[null,"",null,null,null,null,null,null,0,null,null,null,null,0,0,"",null,null,null,null,null,0,""]
[null,"",null,null,null,null,null,null,0,null,null,null,null,0,0,"",null,null,null,null,null,0,""]
[null,"",null,null,null,null,null,null,0,null,null,null,null,0,0,"",null,null,null,null,null,0,""]
[null,"",null,null,null,null,null,null,0,null,null,null,null,0,0,"",null,null,null,null,null,0,""]
[null,"",null,null,null,null,null,null,0,null,null,null,null,0,0,"",null,null,null,null,null,0,""]
[null,"",null,null,null,null,null,null,0,null,null,null,null,0,0,"",null,null,null,null,null,0,""]
[null,"",null,null,null,null,null,null,0,null,null,null,null,0,0,"",null,null,null,null,null,0,""]
[null,"",null,null,null,null,null,null,0,null,null,null,null,0,0,"",null,null,null,null,null,0,""]
[null,"",null,null,null,null,null,null,0,null,null,null,null,0,0,"",null,null,null,null,null,0,""]
[null,"",null,null,null,null,null,null,0,null,null,null,null,0,0,"",null,null,null,null,null,0,""]
[null,"",null,null,null,null,null,null,0,null,null,null,null,0,0,"",null,null,null,null,null,0,""]
[null,"",null,null,null,null,null,null,0,null,null,null,null,0,0,"",null,null,null,null,null,0,""]
[null,"",null,null,null,null,null,null,0,null,null,null,null,0,0,"",null,null,null,null,null,0,""]
[null,"",null,null,null,null,null,null,0,null,null,null,null,0,0,"",null,null,null,null,null,0,""]
[null,"",null,null,null,null,null,null,0,null,null,null,null,0,0,"",null,null,null,null,null,0,""]
[null,"",null,null,null,null,null,null,0,null,null,null,null,0,0,"",null,null,null,null,null,0,""]
[null,"",null,null,null,null,null,null,0,null,null,null,null,0,0,"",null,null,null,null,null,0,""]
[null,"",null,null,null,null,null,null,0,null,null,null,null,0,0,"",null,null,null,null,null,0,""]
[null,"",null,null,null,null,null,null,0,null,null,null,null,0,0,"",null,null,null,null,null,0,""]
[null,"",null,null,null,null,null,null,0,null,null,null,null,0,0,"",null,null,null,null,null,0,""]
[null,"",null,null,null,null,null,null,0,null,null,null,null,0,0,"",null,null,null,null,null,0,""]
[null,"",null,null,null,null,null,null,0,null,null,null,null,0,0,"",null,null,null,null,null,0,""]
[null,"",null,null,null,null,null,null,0,null,null,null,null,{"$f":"MOD((VALUE(MID(TEXT(A4998,\"000000000000000\"),15,1))*3+VALUE(MID(TEXT(A4998,\"000000000000000\"),14,1))*7+VALUE(MID(TEXT(A4998,\"000000000000000\"),13,1))*13+VALUE(MID(TEXT(A4998,\"000000000000000\"),12,1))*17+VALUE(MID(TEXT(A4998,\"000000000000000\"),11,1))*19+VALUE(MID(TEXT(A4998,\"000000000000000\"),10,1))*23+VALUE(MID(TEXT(A4998,\"000000000000000\"),9,1))*29+VALUE(MID(TEXT(A4998,\"000000000000000\"),8,1))*37+VALUE(MID(TEXT(A4998,\"000000000000000\"),7,1))*41+VALUE(MID(TEXT(A4998,\"000000000000000\"),6,1))*43+VALUE(MID(TEXT(A4998,\"000000000000000\"),5,1))*47+VALUE(MID(TEXT(A4998,\"000000000000000\"),4,1))*53+VALUE(MID(TEXT(A4998,\"000000000000000\"),3,1))*59+VALUE(MID(TEXT(A4998,\"000000000000000\"),2,1))*67+VALUE(MID(TEXT(A4998,\"000000000000000\"),1,1))*71),11)","v":0},0,{"$f":"IF(H4998=\"REGISTRO ACTIVO\",O4998,\"\")","v":""},null,null,null,null,null,0,""]
[null,{"$f":"+P4999","v":""},null,null,null,null,null,null,{"$f":"IF(H4999=\"REGISTRO ACTIVO\",1,0)","v":0},null,null,null,null,0,{"$f":"IF(N4999=0,0,IF(N4999=1,1,11-N4999))","v":0},"",null,null,null,null,null,{"$f":"IF(H4999=\"\",0,1)","v":0},{"$f":"IF(AND(A4999>0,H4999=\"\",$V$5007>0),\"NO\",\"\")","v":""}]
[null,"",null,null,null,null,null,null,0,null,null,null,null,0,0,"",null,null,null,null,null,0,""]
[null,"",null,null,null,null,null,null,0,null,null,null,null,0,0,"",null,null,null,null,null,0,""]
[null,"",null,null,null,null,null,null,0,null,null,null,null,0,0,"",null,null,null,null,null,0,""]
[null,"",null,null,null,null,null,null,0,null,null,null,null,0,0,"",null,null,null,null,null,0,""]
[null,"",null,null,null,null,null,null,0,null,null,null,null,0,0,"",null,null,null,null,null,0,""]
[null,"",null,null,null,null,null,null,0,null,null,null,null,0,0,"",null,null,null,null,null,0,""]
[null,"",null,null,null,null,null,null,0,null,null,null,null,0,0,"",null,null,null,null,null,0,""]
["X","X","X","X","X","X","X",null,null,null,null,null,null,"X","X","X",null,null,null,null,null,{"$f":"SUM(V6:V5006)","v":0}]
[]
[]
[]
[]
[]
[]
[]
[null,null,null,null,null,null,null,"x"]

{"sheet":"Información","index":1,"n_rows":19,"n_cols":3,"rows_kept":19,"cut":false,"hidden":false,"merged":[[3,2,3,10],[4,2,4,10]]}
[]
[null,null,"Información de la herramienta:"]
[null,null,"Esta es una herramienta para  confirmar si un numero de documento, cedula o NIT,  está registrado en el RUT de la DIAN"]
[null,null,"Al dar clic en el boton procesar, el aplicativo se conecta con la base de datos de la DIAN y trae los nombres y razón social, y por tanto se determina si el tercero tiene RUT."]
[null,null," Usted podrá realizar el proceso por cada tercero directamente en la web oficial de la DIAN en el siguiente enlace\n"]
[null,null,"Dado lo anterior, lo que hace esta herramienta es realizar la consulta de manera masiva para los números de documentos que quiera verificar."]
[null,null,"En pruebas realizadas, el aplicativo consulta 100 documentos en 70 segundos en promedio, el tiempo dependerá de la velocidad de su equipo y de internet."]
[null,null,"Si requiere consultar grandes cantidades de documentos, recomendable hacerlo de 500 en 500 por proceso. "]
[null,null,"Lo que debe hacer es digitar o copiar los números de documentos en la columna NIT y dar clic en el botón \"Procesar\""]
[null,null,"Se recomienda mientras se está realizando la búsqueda, no tener más archivos abiertos del Excel para que el proceso corra lo más rápido posible."]
[null,null,"El aplicativo emitirá un mensaje cuando finalice la búsqueda."]
[]
[]
[]
[]
[null,null,"Autor:"]
[null,null,"Wilmer Cordoba Trujillo"]
[null,null,"William Dussan Salazar"]
[null,null,"Derechos Reservados 2021"]

{"sheet":"REG","index":2,"n_rows":8,"n_cols":3,"rows_kept":8,"cut":false,"hidden":false,"merged":[]}
[]
[]
[null,"NUMERO","LICENCIA"]
[null,0,"5648-6589-587"]
[null,1,5235]
[null,2]
[null,3]
[null,4]